Workbook

Sheet Home
B1: =uxb_works!$B$92 -> Decarbonisation Technologies for Cities | C1: =uxb_works!$B$92 -> Decarbonisation Technologies for Cities | BA1: 0 | BB1: 0

Sheet Indicator_Ranking
A1: =uxb_works!$B$92 -> Decarbonisation Technologies for Cities | BA1: 1 | BB1: 0
AT2: =iIndiRank!V2 -> 
A6: =uxb_works!$C$5 -> The active weight profile has been changed from its default setting | B6: =uxb_works!$C$5 -> The active weight profile has been changed from its default setting | C6: =uxb_works!$C$5 -> The active weight profile has been changed from its default setting | D6: =uxb_works!$C$5 -> The active weight profile has been changed from its default setting
A8: =uxb_works!$D$67 -> <no filter> -I- No. of technologies in this group: 26 | B8: =uxb_works!$D$67 -> <no filter> -I- No. of technologies in this group: 26 | C8: =uxb_works!$D$67 -> <no filter> -I- No. of technologies in this group: 26 | D8: =uxb_works!$D$67 -> <no filter> -I- No. of technologies in this group: 26
C10: =iIndiRank!$G$2 -> TOTAL SCORE
C11: =iIndiRank!$F$2 ->  | BO11: =C11 -> 
K12: =COUNT(J15:J40) -> 26 | L12: Rank | N12: Technology | P12: Score | Q12: Visualisation | V12: =IF(COUNTIF(V15:V40,"<>0")=0,1,COUNTIF(V15:V40,"<>0")) -> 1 | W12: =iIndiRank!AU1 -> 0 | Y12: =IF(COUNTIF(Y15:Y40,"<>0")=0,1,COUNTIF(Y15:Y40,"<>0")) -> 1 | Z12: =iIndiRank!AX1 -> 0 | AB12: =IF(COUNTIF(AB15:AB40,"<>0")=0,1,COUNTIF(AB15:AB40,"<>0")) -> 1 | AC12: =iIndiRank!BA1 -> 0 | AE12: =IF(COUNTIF(AE15:AE40,"<>0")=0,1,COUNTIF(AE15:AE40,"<>0")) -> 1 | AF12: =iIndiRank!BD1 -> 0 | AH12: =IF(COUNTIF(AH15:AH40,"<>0")=0,1,COUNTIF(AH15:AH40,"<>0")) -> 1 | AI12: =iIndiRank!BG1 -> 0
W13: =IF(W12<>0,iIndiRank!AU3,"") ->  | Z13: =IF(Z12<>0,iIndiRank!AX3,"") ->  | AC13: =IF(AC12<>0,iIndiRank!BA3,"") ->  | AF13: =IF(AF12<>0,iIndiRank!BD3,"") ->  | AI13: =IF(AI12<>0,iIndiRank!BG3,"") -> 
E14: =iIndiRank!AO2 -> 0 | J14: =IF(uxb_works!$J$21=1,COUNTIF(J15:J40,">0"),MAX(V14,Indicator_Ranking!Y14,Indicator_Ranking!AB14,Indicator_Ranking!AE14,Indicator_Ranking!AH14)) -> 26 | O14: Score / 100 | V14: =COUNTIF(V15:V40,">0") -> 0 | Y14: =COUNTIF(Y15:Y40,">0") -> 0 | AB14: =COUNTIF(AB15:AB40,">0") -> 0 | AE14: =COUNTIF(AE15:AE40,">0") -> 0 | AH14: =COUNTIF(AH15:AH40,">0") -> 0
C15: The total score is the weighted sum of the following category scores: 1) IMPACT SCORE 2) SCALABILITY SCORE 3) INVESTMENT SCORE Source: EI Calculation | J15: =iIndiRank!L6 -> 1 | K15: =IF(J15=0,"-",IF(P15<uxb_works!$N$120,0,IF(P15<uxb_works!$N$121,1,IF(P15<uxb_works!$N$122,2,3)))) -> 3 | M15: =iIndiRank!P6 -> 1 | N15: =iIndiRank!Q6 -> Distributed solar power | O15: =iIndiRank!R6 -> 10.4 | P15: =iIndiRank!T6 -> 10.4 | Q15: =IF(ISNUMBER(O15),REPT("|",O15*3),"") -> ||||||||||||||||||||||||||||||| | V15: =iIndiRank!AT6 -> 0 | W15: =iIndiRank!AU6 -> 0 | Y15: =iIndiRank!AW6 -> 0 | Z15: =iIndiRank!AX6 -> 0 | AB15: =iIndiRank!AZ6 -> 0 | AC15: =iIndiRank!BA6 -> 0 | AE15: =iIndiRank!BC6 -> 0 | AF15: =iIndiRank!BD6 -> 0 | AH15: =iIndiRank!BF6 -> 0 | AI15: =iIndiRank!BG6 -> 0
J16: =iIndiRank!L7 -> 1 | K16: =IF(J16=0,"-",IF(P16<uxb_works!$N$120,0,IF(P16<uxb_works!$N$121,1,IF(P16<uxb_works!$N$122,2,3)))) -> 2 | M16: =iIndiRank!P7 -> 2 | N16: =iIndiRank!Q7 -> Distributed energy storage | O16: =iIndiRank!R7 -> 9.9 | P16: =iIndiRank!T7 -> 9.9 | Q16: =IF(ISNUMBER(O16),REPT("|",O16*3),"") -> ||||||||||||||||||||||||||||| | V16: =iIndiRank!AT7 -> 0 | W16: =iIndiRank!AU7 -> 0 | Y16: =iIndiRank!AW7 -> 0 | Z16: =iIndiRank!AX7 -> 0 | AB16: =iIndiRank!AZ7 -> 0 | AC16: =iIndiRank!BA7 -> 0 | AE16: =iIndiRank!BC7 -> 0 | AF16: =iIndiRank!BD7 -> 0 | AH16: =iIndiRank!BF7 -> 0 | AI16: =iIndiRank!BG7 -> 0 | BA16: =W13 ->  | BD16: =Z13 ->  | BG16: =AC13 ->  | BJ16: =AF13 ->  | BM16: =AI13 -> 
J17: =iIndiRank!L8 -> 1 | K17: =IF(J17=0,"-",IF(P17<uxb_works!$N$120,0,IF(P17<uxb_works!$N$121,1,IF(P17<uxb_works!$N$122,2,3)))) -> 2 | M17: =iIndiRank!P8 -> 3 | N17: =iIndiRank!Q8 -> Smart grids & smart meters | O17: =iIndiRank!R8 -> 9.7 | P17: =iIndiRank!T8 -> 9.7 | Q17: ||||||||||||||||||||||||||||| | V17: =iIndiRank!AT8 -> 0 | W17: =iIndiRank!AU8 -> 0 | Y17: =iIndiRank!AW8 -> 0 | Z17: =iIndiRank!AX8 -> 0 | AB17: =iIndiRank!AZ8 -> 0 | AC17: =iIndiRank!BA8 -> 0 | AE17: =iIndiRank!BC8 -> 0 | AF17: =iIndiRank!BD8 -> 0 | AH17: =iIndiRank!BF8 -> 0 | AI17: =iIndiRank!BG8 -> 0
J18: =iIndiRank!L9 -> 1 | K18: =IF(J18=0,"-",IF(P18<uxb_works!$N$120,0,IF(P18<uxb_works!$N$121,1,IF(P18<uxb_works!$N$122,2,3)))) -> 2 | M18: =iIndiRank!P9 -> =4 | N18: =iIndiRank!Q9 -> Dynamic glass | O18: =iIndiRank!R9 -> 9.5 | P18: =iIndiRank!T9 -> 9.5 | Q18: |||||||||||||||||||||||||||| | V18: =iIndiRank!AT9 -> 0 | W18: =iIndiRank!AU9 -> 0 | Y18: =iIndiRank!AW9 -> 0 | Z18: =iIndiRank!AX9 -> 0 | AB18: =iIndiRank!AZ9 -> 0 | AC18: =iIndiRank!BA9 -> 0 | AE18: =iIndiRank!BC9 -> 0 | AF18: =iIndiRank!BD9 -> 0 | AH18: =iIndiRank!BF9 -> 0 | AI18: =iIndiRank!BG9 -> 0
J19: =iIndiRank!L10 -> 1 | K19: =IF(J19=0,"-",IF(P19<uxb_works!$N$120,0,IF(P19<uxb_works!$N$121,1,IF(P19<uxb_works!$N$122,2,3)))) -> 2 | M19: =iIndiRank!P10 -> =4 | N19: =iIndiRank!Q10 -> Thermal energy storage | O19: =iIndiRank!R10 -> 9.5 | P19: =iIndiRank!T10 -> 9.5 | Q19: |||||||||||||||||||||||||||| | V19: =iIndiRank!AT10 -> 0 | W19: =iIndiRank!AU10 -> 0 | Y19: =iIndiRank!AW10 -> 0 | Z19: =iIndiRank!AX10 -> 0 | AB19: =iIndiRank!AZ10 -> 0 | AC19: =iIndiRank!BA10 -> 0 | AE19: =iIndiRank!BC10 -> 0 | AF19: =iIndiRank!BD10 -> 0 | AH19: =iIndiRank!BF10 -> 0 | AI19: =iIndiRank!BG10 -> 0
J20: =iIndiRank!L11 -> 1 | K20: =IF(J20=0,"-",IF(P20<uxb_works!$N$120,0,IF(P20<uxb_works!$N$121,1,IF(P20<uxb_works!$N$122,2,3)))) -> 2 | M20: =iIndiRank!P11 -> =6 | N20: =iIndiRank!Q11 -> Unified communications (VOIP) | O20: =iIndiRank!R11 -> 9.4 | P20: =iIndiRank!T11 -> 9.4 | Q20: |||||||||||||||||||||||||||| | V20: =iIndiRank!AT11 -> 0 | W20: =iIndiRank!AU11 -> 0 | Y20: =iIndiRank!AW11 -> 0 | Z20: =iIndiRank!AX11 -> 0 | AB20: =iIndiRank!AZ11 -> 0 | AC20: =iIndiRank!BA11 -> 0 | AE20: =iIndiRank!BC11 -> 0 | AF20: =iIndiRank!BD11 -> 0 | AH20: =iIndiRank!BF11 -> 0 | AI20: =iIndiRank!BG11 -> 0
J21: =iIndiRank!L12 -> 1 | K21: =IF(J21=0,"-",IF(P21<uxb_works!$N$120,0,IF(P21<uxb_works!$N$121,1,IF(P21<uxb_works!$N$122,2,3)))) -> 2 | M21: =iIndiRank!P12 -> =6 | N21: =iIndiRank!Q12 -> Electric vehicle charging ports | O21: =iIndiRank!R12 -> 9.4 | P21: =iIndiRank!T12 -> 9.4 | Q21: |||||||||||||||||||||||||||| | V21: =iIndiRank!AT12 -> 0 | W21: =iIndiRank!AU12 -> 0 | Y21: =iIndiRank!AW12 -> 0 | Z21: =iIndiRank!AX12 -> 0 | AB21: =iIndiRank!AZ12 -> 0 | AC21: =iIndiRank!BA12 -> 0 | AE21: =iIndiRank!BC12 -> 0 | AF21: =iIndiRank!BD12 -> 0 | AH21: =iIndiRank!BF12 -> 0 | AI21: =iIndiRank!BG12 -> 0
J22: =iIndiRank!L13 -> 1 | K22: =IF(J22=0,"-",IF(P22<uxb_works!$N$120,0,IF(P22<uxb_works!$N$121,1,IF(P22<uxb_works!$N$122,2,3)))) -> 2 | M22: =iIndiRank!P13 -> 8 | N22: =iIndiRank!Q13 -> High-efficiency heat pumps | O22: =iIndiRank!R13 -> 9.3 | P22: =iIndiRank!T13 -> 9.3 | Q22: ||||||||||||||||||||||||||| | V22: =iIndiRank!AT13 -> 0 | W22: =iIndiRank!AU13 -> 0 | Y22: =iIndiRank!AW13 -> 0 | Z22: =iIndiRank!AX13 -> 0 | AB22: =iIndiRank!AZ13 -> 0 | AC22: =iIndiRank!BA13 -> 0 | AE22: =iIndiRank!BC13 -> 0 | AF22: =iIndiRank!BD13 -> 0 | AH22: =iIndiRank!BF13 -> 0 | AI22: =iIndiRank!BG13 -> 0
J23: =iIndiRank!L14 -> 1 | K23: =IF(J23=0,"-",IF(P23<uxb_works!$N$120,0,IF(P23<uxb_works!$N$121,1,IF(P23<uxb_works!$N$122,2,3)))) -> 2 | M23: =iIndiRank!P14 -> =9 | N23: =iIndiRank!Q14 -> Low-carbon cement & concrete alternatives | O23: =iIndiRank!R14 -> 9.1 | P23: =iIndiRank!T14 -> 9.1 | Q23: ||||||||||||||||||||||||||| | V23: =iIndiRank!AT14 -> 0 | W23: =iIndiRank!AU14 -> 0 | Y23: =iIndiRank!AW14 -> 0 | Z23: =iIndiRank!AX14 -> 0 | AB23: =iIndiRank!AZ14 -> 0 | AC23: =iIndiRank!BA14 -> 0 | AE23: =iIndiRank!BC14 -> 0 | AF23: =iIndiRank!BD14 -> 0 | AH23: =iIndiRank!BF14 -> 0 | AI23: =iIndiRank!BG14 -> 0
J24: =iIndiRank!L15 -> 1 | K24: =IF(J24=0,"-",IF(P24<uxb_works!$N$120,0,IF(P24<uxb_works!$N$121,1,IF(P24<uxb_works!$N$122,2,3)))) -> 2 | M24: =iIndiRank!P15 -> =9 | N24: =iIndiRank!Q15 -> Electric vehicles (EVs) | O24: =iIndiRank!R15 -> 9.1 | P24: =iIndiRank!T15 -> 9.1 | Q24: ||||||||||||||||||||||||||| | V24: =iIndiRank!AT15 -> 0 | W24: =iIndiRank!AU15 -> 0 | Y24: =iIndiRank!AW15 -> 0 | Z24: =iIndiRank!AX15 -> 0 | AB24: =iIndiRank!AZ15 -> 0 | AC24: =iIndiRank!BA15 -> 0 | AE24: =iIndiRank!BC15 -> 0 | AF24: =iIndiRank!BD15 -> 0 | AH24: =iIndiRank!BF15 -> 0 | AI24: =iIndiRank!BG15 -> 0
J25: =iIndiRank!L16 -> 1 | K25: =IF(J25=0,"-",IF(P25<uxb_works!$N$120,0,IF(P25<uxb_works!$N$121,1,IF(P25<uxb_works!$N$122,2,3)))) -> 2 | M25: =iIndiRank!P16 -> 11 | N25: =iIndiRank!Q16 -> Battery energy storage | O25: =iIndiRank!R16 -> 8.8 | P25: =iIndiRank!T16 -> 8.8 | Q25: |||||||||||||||||||||||||| | V25: =iIndiRank!AT16 -> 0 | W25: =iIndiRank!AU16 -> 0 | Y25: =iIndiRank!AW16 -> 0 | Z25: =iIndiRank!AX16 -> 0 | AB25: =iIndiRank!AZ16 -> 0 | AC25: =iIndiRank!BA16 -> 0 | AE25: =iIndiRank!BC16 -> 0 | AF25: =iIndiRank!BD16 -> 0 | AH25: =iIndiRank!BF16 -> 0 | AI25: =iIndiRank!BG16 -> 0
J26: =iIndiRank!L17 -> 1 | K26: =IF(J26=0,"-",IF(P26<uxb_works!$N$120,0,IF(P26<uxb_works!$N$121,1,IF(P26<uxb_works!$N$122,2,3)))) -> 2 | M26: =iIndiRank!P17 -> 12 | N26: =iIndiRank!Q17 -> District heating & cooling systems (DHC) | O26: =iIndiRank!R17 -> 8.5 | P26: =iIndiRank!T17 -> 8.5 | Q26: ||||||||||||||||||||||||| | V26: =iIndiRank!AT17 -> 0 | W26: =iIndiRank!AU17 -> 0 | Y26: =iIndiRank!AW17 -> 0 | Z26: =iIndiRank!AX17 -> 0 | AB26: =iIndiRank!AZ17 -> 0 | AC26: =iIndiRank!BA17 -> 0 | AE26: =iIndiRank!BC17 -> 0 | AF26: =iIndiRank!BD17 -> 0 | AH26: =iIndiRank!BF17 -> 0 | AI26: =iIndiRank!BG17 -> 0
J27: =iIndiRank!L18 -> 1 | K27: =IF(J27=0,"-",IF(P27<uxb_works!$N$120,0,IF(P27<uxb_works!$N$121,1,IF(P27<uxb_works!$N$122,2,3)))) -> 2 | M27: =iIndiRank!P18 -> =13 | N27: =iIndiRank!Q18 -> Green roofs | O27: =iIndiRank!R18 -> 8.1 | P27: =iIndiRank!T18 -> 8.1 | Q27: |||||||||||||||||||||||| | V27: =iIndiRank!AT18 -> 0 | W27: =iIndiRank!AU18 -> 0 | Y27: =iIndiRank!AW18 -> 0 | Z27: =iIndiRank!AX18 -> 0 | AB27: =iIndiRank!AZ18 -> 0 | AC27: =iIndiRank!BA18 -> 0 | AE27: =iIndiRank!BC18 -> 0 | AF27: =iIndiRank!BD18 -> 0 | AH27: =iIndiRank!BF18 -> 0 | AI27: =iIndiRank!BG18 -> 0
J28: =iIndiRank!L19 -> 1 | K28: =IF(J28=0,"-",IF(P28<uxb_works!$N$120,0,IF(P28<uxb_works!$N$121,1,IF(P28<uxb_works!$N$122,2,3)))) -> 2 | M28: =iIndiRank!P19 -> =13 | N28: =iIndiRank!Q19 -> Mobility as a Service (MaaS) | O28: =iIndiRank!R19 -> 8.1 | P28: =iIndiRank!T19 -> 8.1 | Q28: |||||||||||||||||||||||| | V28: =iIndiRank!AT19 -> 0 | W28: =iIndiRank!AU19 -> 0 | Y28: =iIndiRank!AW19 -> 0 | Z28: =iIndiRank!AX19 -> 0 | AB28: =iIndiRank!AZ19 -> 0 | AC28: =iIndiRank!BA19 -> 0 | AE28: =iIndiRank!BC19 -> 0 | AF28: =iIndiRank!BD19 -> 0 | AH28: =iIndiRank!BF19 -> 0 | AI28: =iIndiRank!BG19 -> 0
J29: =iIndiRank!L20 -> 1 | K29: =IF(J29=0,"-",IF(P29<uxb_works!$N$120,0,IF(P29<uxb_works!$N$121,1,IF(P29<uxb_works!$N$122,2,3)))) -> 2 | M29: =iIndiRank!P20 -> =15 | N29: =iIndiRank!Q20 -> High-performance glass | O29: =iIndiRank!R20 -> 8 | P29: =iIndiRank!T20 -> 8 | Q29: |||||||||||||||||||||||| | V29: =iIndiRank!AT20 -> 0 | W29: =iIndiRank!AU20 -> 0 | Y29: =iIndiRank!AW20 -> 0 | Z29: =iIndiRank!AX20 -> 0 | AB29: =iIndiRank!AZ20 -> 0 | AC29: =iIndiRank!BA20 -> 0 | AE29: =iIndiRank!BC20 -> 0 | AF29: =iIndiRank!BD20 -> 0 | AH29: =iIndiRank!BF20 -> 0 | AI29: =iIndiRank!BG20 -> 0
J30: =iIndiRank!L21 -> 1 | K30: =IF(J30=0,"-",IF(P30<uxb_works!$N$120,0,IF(P30<uxb_works!$N$121,1,IF(P30<uxb_works!$N$122,2,3)))) -> 2 | M30: =iIndiRank!P21 -> =15 | N30: =iIndiRank!Q21 -> Waste robotics | O30: =iIndiRank!R21 -> 8 | P30: =iIndiRank!T21 -> 8 | Q30: |||||||||||||||||||||||| | V30: =iIndiRank!AT21 -> 0 | W30: =iIndiRank!AU21 -> 0 | Y30: =iIndiRank!AW21 -> 0 | Z30: =iIndiRank!AX21 -> 0 | AB30: =iIndiRank!AZ21 -> 0 | AC30: =iIndiRank!BA21 -> 0 | AE30: =iIndiRank!BC21 -> 0 | AF30: =iIndiRank!BD21 -> 0 | AH30: =iIndiRank!BF21 -> 0 | AI30: =iIndiRank!BG21 -> 0
J31: =iIndiRank!L22 -> 1 | K31: =IF(J31=0,"-",IF(P31<uxb_works!$N$120,0,IF(P31<uxb_works!$N$121,1,IF(P31<uxb_works!$N$122,2,3)))) -> 2 | M31: =iIndiRank!P22 -> =15 | N31: =iIndiRank!Q22 -> Smart charging | O31: =iIndiRank!R22 -> 8 | P31: =iIndiRank!T22 -> 8 | Q31: |||||||||||||||||||||||| | V31: =iIndiRank!AT22 -> 0 | W31: =iIndiRank!AU22 -> 0 | Y31: =iIndiRank!AW22 -> 0 | Z31: =iIndiRank!AX22 -> 0 | AB31: =iIndiRank!AZ22 -> 0 | AC31: =iIndiRank!BA22 -> 0 | AE31: =iIndiRank!BC22 -> 0 | AF31: =iIndiRank!BD22 -> 0 | AH31: =iIndiRank!BF22 -> 0 | AI31: =iIndiRank!BG22 -> 0
J32: =iIndiRank!L23 -> 1 | K32: =IF(J32=0,"-",IF(P32<uxb_works!$N$120,0,IF(P32<uxb_works!$N$121,1,IF(P32<uxb_works!$N$122,2,3)))) -> 1 | M32: =iIndiRank!P23 -> 18 | N32: =iIndiRank!Q23 -> Autonomous vehicles (AVs) | O32: =iIndiRank!R23 -> 7.7 | P32: =iIndiRank!T23 -> 7.7 | Q32: ||||||||||||||||||||||| | V32: =iIndiRank!AT23 -> 0 | W32: =iIndiRank!AU23 -> 0 | Y32: =iIndiRank!AW23 -> 0 | Z32: =iIndiRank!AX23 -> 0 | AB32: =iIndiRank!AZ23 -> 0 | AC32: =iIndiRank!BA23 -> 0 | AE32: =iIndiRank!BC23 -> 0 | AF32: =iIndiRank!BD23 -> 0 | AH32: =iIndiRank!BF23 -> 0 | AI32: =iIndiRank!BG23 -> 0
J33: =iIndiRank!L24 -> 1 | K33: =IF(J33=0,"-",IF(P33<uxb_works!$N$120,0,IF(P33<uxb_works!$N$121,1,IF(P33<uxb_works!$N$122,2,3)))) -> 1 | M33: =iIndiRank!P24 -> 19 | N33: =iIndiRank!Q24 -> Environmentally friendly insulation | O33: =iIndiRank!R24 -> 7.6 | P33: =iIndiRank!T24 -> 7.6 | Q33: |||||||||||||||||||||| | V33: =iIndiRank!AT24 -> 0 | W33: =iIndiRank!AU24 -> 0 | Y33: =iIndiRank!AW24 -> 0 | Z33: =iIndiRank!AX24 -> 0 | AB33: =iIndiRank!AZ24 -> 0 | AC33: =iIndiRank!BA24 -> 0 | AE33: =iIndiRank!BC24 -> 0 | AF33: =iIndiRank!BD24 -> 0 | AH33: =iIndiRank!BF24 -> 0 | AI33: =iIndiRank!BG24 -> 0
J34: =iIndiRank!L25 -> 1 | K34: =IF(J34=0,"-",IF(P34<uxb_works!$N$120,0,IF(P34<uxb_works!$N$121,1,IF(P34<uxb_works!$N$122,2,3)))) -> 1 | M34: =iIndiRank!P25 -> =20 | N34: =iIndiRank!Q25 -> Cool roofs | O34: =iIndiRank!R25 -> 7.3 | P34: =iIndiRank!T25 -> 7.3 | Q34: ||||||||||||||||||||| | V34: =iIndiRank!AT25 -> 0 | W34: =iIndiRank!AU25 -> 0 | Y34: =iIndiRank!AW25 -> 0 | Z34: =iIndiRank!AX25 -> 0 | AB34: =iIndiRank!AZ25 -> 0 | AC34: =iIndiRank!BA25 -> 0 | AE34: =iIndiRank!BC25 -> 0 | AF34: =iIndiRank!BD25 -> 0 | AH34: =iIndiRank!BF25 -> 0 | AI34: =iIndiRank!BG25 -> 0
J35: =iIndiRank!L26 -> 1 | K35: =IF(J35=0,"-",IF(P35<uxb_works!$N$120,0,IF(P35<uxb_works!$N$121,1,IF(P35<uxb_works!$N$122,2,3)))) -> 1 | M35: =iIndiRank!P26 -> =20 | N35: =iIndiRank!Q26 -> Battery operation enhancements | O35: =iIndiRank!R26 -> 7.3 | P35: =iIndiRank!T26 -> 7.3 | Q35: ||||||||||||||||||||| | V35: =iIndiRank!AT26 -> 0 | W35: =iIndiRank!AU26 -> 0 | Y35: =iIndiRank!AW26 -> 0 | Z35: =iIndiRank!AX26 -> 0 | AB35: =iIndiRank!AZ26 -> 0 | AC35: =iIndiRank!BA26 -> 0 | AE35: =iIndiRank!BC26 -> 0 | AF35: =iIndiRank!BD26 -> 0 | AH35: =iIndiRank!BF26 -> 0 | AI35: =iIndiRank!BG26 -> 0
J36: =iIndiRank!L27 -> 1 | K36: =IF(J36=0,"-",IF(P36<uxb_works!$N$120,0,IF(P36<uxb_works!$N$121,1,IF(P36<uxb_works!$N$122,2,3)))) -> 1 | M36: =iIndiRank!P27 -> 22 | N36: =iIndiRank!Q27 -> Vehicle-to-grid technologies (V2G) | O36: =iIndiRank!R27 -> 7.2 | P36: =iIndiRank!T27 -> 7.2 | Q36: ||||||||||||||||||||| | V36: =iIndiRank!AT27 -> 0 | W36: =iIndiRank!AU27 -> 0 | Y36: =iIndiRank!AW27 -> 0 | Z36: =iIndiRank!AX27 -> 0 | AB36: =iIndiRank!AZ27 -> 0 | AC36: =iIndiRank!BA27 -> 0 | AE36: =iIndiRank!BC27 -> 0 | AF36: =iIndiRank!BD27 -> 0 | AH36: =iIndiRank!BF27 -> 0 | AI36: =iIndiRank!BG27 -> 0
J37: =iIndiRank!L28 -> 1 | K37: =IF(J37=0,"-",IF(P37<uxb_works!$N$120,0,IF(P37<uxb_works!$N$121,1,IF(P37<uxb_works!$N$122,2,3)))) -> 1 | M37: =iIndiRank!P28 -> 23 | N37: =iIndiRank!Q28 -> Hydrogen transport vehicles | O37: =iIndiRank!R28 -> 6.9 | P37: =iIndiRank!T28 -> 6.9 | Q37: |||||||||||||||||||| | V37: =iIndiRank!AT28 -> 0 | W37: =iIndiRank!AU28 -> 0 | Y37: =iIndiRank!AW28 -> 0 | Z37: =iIndiRank!AX28 -> 0 | AB37: =iIndiRank!AZ28 -> 0 | AC37: =iIndiRank!BA28 -> 0 | AE37: =iIndiRank!BC28 -> 0 | AF37: =iIndiRank!BD28 -> 0 | AH37: =iIndiRank!BF28 -> 0 | AI37: =iIndiRank!BG28 -> 0
J38: =iIndiRank!L29 -> 1 | K38: =IF(J38=0,"-",IF(P38<uxb_works!$N$120,0,IF(P38<uxb_works!$N$121,1,IF(P38<uxb_works!$N$122,2,3)))) -> 1 | M38: =iIndiRank!P29 -> =24 | N38: =iIndiRank!Q29 -> Digital twins | O38: =iIndiRank!R29 -> 6.8 | P38: =iIndiRank!T29 -> 6.8 | Q38: |||||||||||||||||||| | V38: =iIndiRank!AT29 -> 0 | W38: =iIndiRank!AU29 -> 0 | Y38: =iIndiRank!AW29 -> 0 | Z38: =iIndiRank!AX29 -> 0 | AB38: =iIndiRank!AZ29 -> 0 | AC38: =iIndiRank!BA29 -> 0 | AE38: =iIndiRank!BC29 -> 0 | AF38: =iIndiRank!BD29 -> 0 | AH38: =iIndiRank!BF29 -> 0 | AI38: =iIndiRank!BG29 -> 0
J39: =iIndiRank!L30 -> 1 | K39: =IF(J39=0,"-",IF(P39<uxb_works!$N$120,0,IF(P39<uxb_works!$N$121,1,IF(P39<uxb_works!$N$122,2,3)))) -> 1 | M39: =iIndiRank!P30 -> =24 | N39: =iIndiRank!Q30 -> Building automation systems (BAS) | O39: =iIndiRank!R30 -> 6.8 | P39: =iIndiRank!T30 -> 6.8 | Q39: |||||||||||||||||||| | V39: =iIndiRank!AT30 -> 0 | W39: =iIndiRank!AU30 -> 0 | Y39: =iIndiRank!AW30 -> 0 | Z39: =iIndiRank!AX30 -> 0 | AB39: =iIndiRank!AZ30 -> 0 | AC39: =iIndiRank!BA30 -> 0 | AE39: =iIndiRank!BC30 -> 0 | AF39: =iIndiRank!BD30 -> 0 | AH39: =iIndiRank!BF30 -> 0 | AI39: =iIndiRank!BG30 -> 0
J40: =iIndiRank!L31 -> 1 | K40: =IF(J40=0,"-",IF(P40<uxb_works!$N$120,0,IF(P40<uxb_works!$N$121,1,IF(P40<uxb_works!$N$122,2,3)))) -> 1 | M40: =iIndiRank!P31 -> 26 | N40: =iIndiRank!Q31 -> Subway advanced control system | O40: =iIndiRank!R31 -> 5.3 | P40: =iIndiRank!T31 -> 5.3 | Q40: ||||||||||||||| | V40: =iIndiRank!AT31 -> 0 | W40: =iIndiRank!AU31 -> 0 | Y40: =iIndiRank!AW31 -> 0 | Z40: =iIndiRank!AX31 -> 0 | AB40: =iIndiRank!AZ31 -> 0 | AC40: =iIndiRank!BA31 -> 0 | AE40: =iIndiRank!BC31 -> 0 | AF40: =iIndiRank!BD31 -> 0 | AH40: =iIndiRank!BF31 -> 0 | AI40: =iIndiRank!BG31 -> 0

Sheet Detail
B1: =uxb_works!B93 -> Decarbonisation Technologies for Cities | D1: =uxb_works!B92 -> Decarbonisation Technologies for Cities | BA1: 1 | BB1: 1
B6: The active weight profile has been changed from its default setting
D12: Framework | H12: Score | J12: ="Data: "&uxb_works!C26 -> Data: Green roofs | L12: Sources
B15: =iTBD!I4 -> 2 | C15: =iTBD!C4 -> 0 | D15: =UPPER(iTBD!F4) -> TOTAL SCORE | H15: =IF(iTBD!H4="","-",iTBD!H4) -> High | J15: =iTBD!K4 ->  | L15: =iTBD!L4 -> 
B16: =iTBD!I5 -> 1 | C16: =iTBD!C5 -> 1 | D16: =iTBD!F5 -> 1) IMPACT SCORE | H16: =IF(iTBD!H5="","-",iTBD!H5) -> Medium | J16: =iTBD!K5 ->  | L16: =iTBD!L5 -> 
B17: =iTBD!I6 -> 0 | C17: =iTBD!C6 -> 2 | D17: =iTBD!F6 -> 1.1) Comparability with traditional alternative | H17: =IF(iTBD!H6="","-",iTBD!H6) -> Low | J17: =iTBD!K6 -> There is conflicting evidence over whether green roofs operate as well as traditional roofs. They are able to perform the essential elements of a roof such as protect buildings from the elements and weather. [1] They improvements upon roofs in that they improve stormwater management and extend a roof's life. [1] But, depending on rooftop design, they can be more prone to leakage than ordinary roofs and require more maintenance to carry out the same function. [2] | L17: =iTBD!L6 -> [1] Castleton, H. F., Stovin, V., Beck, S. B. M., & Davison, J. B. (2010). Green roofs; building energy savings and the potential for retrofit. Energy and Buildings, 42(10), 1582-1591. doi:https://doi.org/10.1016/j.enbuild.2010.05.004 [2] Shafique, M., Kim, R., & Rafiq, M. (2018). Green roof benefits, opportunities and challenges – A review. Renewable and Sustainable Energy Reviews, 90, 757-773. doi:https://doi.org/10.1016/j.rser.2018.04.006
B18: =iTBD!I7 -> 3 | C18: =iTBD!C7 -> 2 | D18: =iTBD!F7 -> 1.2) Carbon emissions reduction | H18: =IF(iTBD!H7="","-",iTBD!H7) -> Very High | J18: =iTBD!K7 -> 0.6–1.1 Gigatons CO2 equivalent reduced / sequestered (2020–2050) [1] | L18: =iTBD!L7 -> [1] Project Drawdown. (2021) "Green & Cool Roofs". https://drawdown.org/solutions/green-and-cool-roofs/technical-summary
B19: =iTBD!I8 -> 3 | C19: =iTBD!C8 -> 2 | D19: =iTBD!F8 -> 1.3) Potential additional benefits | H19: =IF(iTBD!H8="","-",iTBD!H8) -> Very High | J19: =iTBD!K8 -> Improves stormwater management by storing water in the green roof system which reduces and delays runoff during high periods of rainfall. [1] Improves water runoff quality [2] Improves urban air quality [3] Extends period between replacing roof [4] Reduces urban heat island effect [4] Enhances architectural interest [4] Reduces energy costs for cooling and/or heating of buildings. They can save between 9% in energy usage for heating in buildings with well-insulated roofs to 45% in buildings with non-insulated roofs. Green roofs do not reduce energy consumption for cooling in well insulated building but can reduce energy consumption by 45% in non-insulated buildings; meaning energy savings can sit between 2 to 44%, respectively per year. [5] | L19: =iTBD!L8 -> [1] Mentens, J., Raes, D., & Hermy, M. (2006). Green roofs as a tool for solving the rainwater runoff problem in the urbanized 21st century? Landscape and Urban Planning, 77(3), 217-226. doi:https://doi.org/10.1016/j.landurbplan.2005.02.010 [2] Berndtsson, J. C., Bengtsson, L., & Jinno, K. (2009). Runoff water quality from intensive and extensive vegetated roofs. Ecological Engineering, 35(3), 369-380. doi:https://doi.org/10.1016/j.ecoleng.2008.09.020 [3] Yang, J., Yu, Q., & Gong, P. (2008). Quantifying air pollution removal by green roofs in Chicago. Atmospheric Environment, 42(31), 7266-7273. doi:https://doi.org/10.1016/j.atmosenv.2008.07.003 [4] Castleton, H. F., Stovin, V., Beck, S. B. M., & Davison, J. B. (2010). Green roofs; building energy savings and the potential for retrofit. Energy and Buildings, 42(10), 1582-1591. doi:https://doi.org/10.1016/j.enbuild.2010.05.004 [5] Niachou, Aikaterini, et al. "Analysis of the green roof thermal properties and investigation of its energy performance." Energy and buildings 33.7 (2001): 719-729.
B20: =iTBD!I9 -> 1 | C20: =iTBD!C9 -> 2 | D20: =iTBD!F9 -> 1.4) Potential harms / consequences | H20: =IF(iTBD!H9="","-",iTBD!H9) -> Medium | J20: =iTBD!K9 -> Increased maintenance costs & frequency [1-5] There is evidence that green roofs can be more prone to causing building damage if improperly installed. [1-5] | L20: =iTBD!L9 -> [1] Mentens, J., Raes, D., & Hermy, M. (2006). Green roofs as a tool for solving the rainwater runoff problem in the urbanized 21st century? Landscape and Urban Planning, 77(3), 217-226. doi:https://doi.org/10.1016/j.landurbplan.2005.02.010 [2] Berndtsson, J. C., Bengtsson, L., & Jinno, K. (2009). Runoff water quality from intensive and extensive vegetated roofs. Ecological Engineering, 35(3), 369-380. doi:https://doi.org/10.1016/j.ecoleng.2008.09.020 [3] Yang, J., Yu, Q., & Gong, P. (2008). Quantifying air pollution removal by green roofs in Chicago. Atmospheric Environment, 42(31), 7266-7273. doi:https://doi.org/10.1016/j.atmosenv.2008.07.003 [4] Castleton, H. F., Stovin, V., Beck, S. B. M., & Davison, J. B. (2010). Green roofs; building energy savings and the potential for retrofit. Energy and Buildings, 42(10), 1582-1591. doi:https://doi.org/10.1016/j.enbuild.2010.05.004 [5] Niachou, Aikaterini, et al. "Analysis of the green roof thermal properties and investigation of its energy performance." Energy and buildings 33.7 (2001): 719-729.
B21: =iTBD!I10 -> 2 | C21: =iTBD!C10 -> 1 | D21: =iTBD!F10 -> 2) SCALABILITY SCORE | H21: =IF(iTBD!H10="","-",iTBD!H10) -> High | J21: =iTBD!K10 ->  | L21: =iTBD!L10 -> 
B22: =iTBD!I11 -> 3 | C22: =iTBD!C11 -> 2 | D22: =iTBD!F11 -> 2.1) Current state of development | H22: =IF(iTBD!H11="","-",iTBD!H11) -> Very High | J22: =iTBD!K11 -> Evidence it is out of research phase [1-9] Yes, there is evidence of availability to purchase in Germany [1] Yes, there is evidence of availability to purchase in France [2] Yes, there is evidence of availability to purchase in Spain [3] Yes, there is evidence of availability to purchase in Italy [4] Yes, there is evidence of availability to purchase in UK [5] Yes, there is evidence of availability to purchase in US [6] Yes, there is evidence of availability to purchase in India [7] Yes, there is evidence of availability to purchase in South Korea [8] Yes, there is evidence of availability to purchase in Singapore [9] | L22: =iTBD!L11 -> [1] ZinCo (2021) "Zinco" https://www.zinco.de/ [2] Mon Toit Vert (2021) "Mon Toit Vert" https://www.montoitvert.fr/ [3] Techos Verdes Madrid (2021) "Techos Verdes" https://www.techosverdesmadrid.es/ [4] RasenFix (2021) "Prodotti per tetti verdi" https://www.rasenfix.com/it/tetti-verdi/prodotti/ [5] HS RoofClad (2021) "Green Roofing" https://www.hsroofclad.com/roofing-services/green-roofing/ [6] Liveroof (2021) "Live Roof" https://liveroof.com/ [7] IndiaMart (2021) "Green Roofs at Best Price" https://dir.indiamart.com/impcat/green-roofs.html [8] ZinCo (2021) "Zinco South Korea" https://zinco-greenroof.com/worldwide/south-korea [9] Prince's Landscape (2021) "#1 Best Green Roof Garden Systems in Singapore" https://www.princelandscape.com/green-roof-system/
B23: =iTBD!I12 -> 1 | C23: =iTBD!C12 -> 2 | D23: =iTBD!F12 -> 2.2) Initial investment costs | H23: =IF(iTBD!H12="","-",iTBD!H12) -> Medium | J23: =iTBD!K12 -> $623.65–954.38 billion $US for net first cost to implement solution [1] | L23: =iTBD!L12 -> [1] Project Drawdown. (2021) "Cool & Green Roofs" https://drawdown.org/solutions/green-and-cool-roofs
B24: =iTBD!I13 -> 3 | C24: =iTBD!C13 -> 2 | D24: =iTBD!F13 -> 2.3) Ease of integration | H24: =IF(iTBD!H13="","-",iTBD!H13) -> Very High | J24: =iTBD!K13 -> There is no evidence of additional investment needed but it does require additional maintenance [1,2] | L24: =iTBD!L13 -> [1] Mentens, J., Raes, D., & Hermy, M. (2006). Green roofs as a tool for solving the rainwater runoff problem in the urbanized 21st century? Landscape and Urban Planning, 77(3), 217-226. doi:https://doi.org/10.1016/j.landurbplan.2005.02.010 [2] Berndtsson, J. C., Bengtsson, L., & Jinno, K. (2009). Runoff water quality from intensive and extensive vegetated roofs. Ecological Engineering, 35(3), 369-380. doi:https://doi.org/10.1016/j.ecoleng.2008.09.020
B25: =iTBD!I14 -> 1 | C25: =iTBD!C14 -> 1 | D25: =iTBD!F14 -> 3) INVESTMENT SCORE | H25: =IF(iTBD!H14="","-",iTBD!H14) -> Medium | J25: =iTBD!K14 ->  | L25: =iTBD!L14 -> 
B26: =iTBD!I15 -> 0 | C26: =iTBD!C15 -> 2 | D26: =iTBD!F15 -> 3.1) Current level of investment | H26: =IF(iTBD!H15="","-",iTBD!H15) -> Low | J26: =iTBD!K15 -> Evidence of current level of investment according to crunchbase: $388,274.37 + $2,734,370.00 + $118,044.13 + $60,000.00 + $50,000.00 = $3,350,688.50 | L26: =iTBD!L15 -> Crunchbase
B27: =iTBD!I16 -> 0 | C27: =iTBD!C16 -> 2 | D27: =iTBD!F16 -> 3.2) Availability of private funding | H27: =IF(iTBD!H16="","-",iTBD!H16) -> Low | J27: =iTBD!K16 -> Evidence of 4 Investors in total Evidence of 1 Lead Investor | L27: =iTBD!L16 -> Crunchbase
B28: =iTBD!I17 -> 3 | C28: =iTBD!C17 -> 2 | D28: =iTBD!F17 -> 3.3) Availability of public funding | H28: =IF(iTBD!H17="","-",iTBD!H17) -> Very High | J28: =iTBD!K17 -> Berlin, Germany: Yes there is evidence of subsidies, tax incentives, policies & projects, or grants & funding bodies in Germany [1]. Ther Berlin city senate is funding and implementing the "Thousand Green Roofs" program which aims to reduce rainwater wastage. Paris, France: Yes, there is evidence of subsidies, tax incentives, policies & projects, or grants & funding bodies in France: Paris has a 'greening the city' plan in place which promotes increased use of plants throughout the city by encouraging community green spaces. One of the spaces where the public is encouraged to plant is on roofs [2] Barcelona, Spain: Yes, there is evidence of subsidies, tax incentives, policies & projects, or grants & funding bodies in Spain: Barcelona City Council’s Municipal Institute of Urban Landscape has a Green Roofs Competition which promotes the establishment of new green roofs in the city. The top 10 winning projects receive a 75% cost subsidy, up to €100,000 per roof. [3.1] The State Housing Plan 2018-2021 also sets out policy support to actions which reduce the energy consumption of buildings in Article 36 [3.2] Florence, Italy: Yes evidence of subsidies, tax incentives, policies & projects, or grants & funding bodies in Italy [4]: Italian national tax revenue agency offers 36% tax subsidy up to a maximum sum of 1800 euros London, UK: No evidence of subsidies, tax incentives, policies & projects, or grants & funding bodies in UK: there are currently no government support (grants, funding, incentives) available for green roof initiatives [5] San Francisco & New York, US: Yes evidence of subsidies, tax incentives, policies & projects, or grants & funding bodies in US: The Green Roof Tax Abatement is a one-time property tax abatement for properties with green roofs offered through the NYC Department of Finance [6] Delhi, India: No evidence of subsidies, tax incentives, policies & projects, or grants & funding bodies in India [7] Seoul, South Korea: Yes evidence of subsidies, tax incentives, policies & projects, or grants & funding bodies in South Korea: The Seoul Metropolitan Government subsidizes 70% of the cost of green roof installation. [8] Singapore, Singapore: Yes evidence of subsidies, tax incentives, policies & projects, or grants & funding bodies in Singapore: the National Parks Board implemented the Skyrise Greenery Incentive Scheme (SGIS) which finances up to 50% of the installation of rooftop greenery and vertical greenery. [9] | L28: =iTBD!L17 -> [1] Der Regierende Bürgermeister Senatskanzlei (2021), Richtlinien der Regierungspolitik 2016-2021, https://www.berlin.de/rbmskzl/regierender-buergermeister/senat/richtlinien-der-politik/#4 [2] Marie de Paris (2021), Comment participer à la végétalisation de la ville ? https://www.paris.fr/pages/conseils-pour-vegetaliser-16321 [3.1] Ayuntamiento de Barcelona (2021) Second Green Roofs Competition https://ajuntament.barcelona.cat/ecologiaurbana/es/concurso-cubiertas-verdes [3.2] Ministerio de Fomento, España (2018) Real Decreto 106/2018, de 9 de marzo, por el que se regula el Plan Estatal de Vivienda 2018-2021. https://www.boe.es/eli/es/rd/2018/03/09/106 [4]Agenzia delle Entrate (2021) https://www.agenziaentrate.gov.it/portale/web/guest/aree-tematiche/casa/agevolazioni/bonus-verde?p_p_id=it_sogei_portlet_cookie_portlet_CookieBarWidgetPortlet_INSTANCE_footer_gestione_cookie&p_p_state=normal&p_p_mode=view&_it_sogei_portlet_cookie_portlet_CookieBarWidgetPortlet_INSTANCE_footer_gestione_cookie_javax.portlet.action=saveCoockie&_it_sogei_portlet_cookie_portlet_CookieBarWidgetPortlet_INSTANCE_footer_gestione_cookie_redirectUrl=%2Fportale%2Fweb%2Fguest%2Faree-tematiche%2Fcasa%2Fagevolazioni%2Fbonus-verde&p_p_lifecycle=0 [5] Renewable Energy Hub UK. https://www.renewableenergyhub.co.uk/main/green-roof-information/green-roof-finance-options/ [6] NYC Department of Finance (2021) "Green Roof Tax Abatement" https://www1.nyc.gov/site/finance/benefits/landlords-green-roof.page [7] TERI (2016). https://www.teriin.org/sites/default/files/2018-03/2014BG08%20CMDA.pdf [8] Seoul Metropolitan Government (2021). https://news.seoul.go.kr/env/archives/510850 [9] Skyrise Greenery (2021) https://www.nparks.gov.sg/skyrisegreenery/incentive-scheme

Sheet Scores
A1: s | L1: 1 | N1: =uxb_works!$B$92 -> Decarbonisation Technologies for Cities | W1: Del_HMOption | Y1: 1 | AV1: =uxb_works!B52 -> 1 | AW1: 0 | AX1: 30 | AY1: 60 | AZ1: 80 | BA1: 1 | BB1: 2 | BH1: 1 | BI1: 8 | BJ1: 1 | BK1: 1 | BL1: 1 | BM1: 1 | BN1: 1 | BO1: 1 | BP1: 1 | BQ1: 1 | BR1: 1 | BS1: 1 | BT1: 1 | BU1: 1 | BV1: 1 | BW1: 1
P3: 1 | Q3: =P3+1 -> 2 | R3: =Q3+1 -> 3 | S3: 4 | T3: 5 | U3: 6 | V3: 7 | W3: 8 | X3: 9 | Y3: 10 | Z3: 11 | AA3: 12 | AB3: 13 | AC3: =AB3+1 -> 14 | AD3: =AC3+1 -> 15 | AE3: 16 | AF3: 17 | AG3: =AF3+1 -> 18 | AH3: =AG3+1 -> 19 | AI3: =AH3+1 -> 20 | AJ3: =AI3+1 -> 21 | AK3: =AJ3+1 -> 22 | AL3: =AK3+1 -> 23 | AM3: =AL3+1 -> 24 | AN3: =AM3+1 -> 25 | AO3: =AN3+1 -> 26 | AP3: 27
A4: =uxb_works!B111 -> 1 | N4: =uxb_works!O111 -> 0 | P4: =INDEX(tblTerritories!$V$3:$V$28,Scores!P3) -> 1 | Q4: =INDEX(tblTerritories!$V$3:$V$28,Scores!Q3) -> 2 | R4: =INDEX(tblTerritories!$V$3:$V$28,Scores!R3) -> 3 | S4: =INDEX(tblTerritories!$V$3:$V$28,Scores!S3) -> 4 | T4: =INDEX(tblTerritories!$V$3:$V$28,Scores!T3) -> 5 | U4: =INDEX(tblTerritories!$V$3:$V$28,Scores!U3) -> 6 | V4: =INDEX(tblTerritories!$V$3:$V$28,Scores!V3) -> 7 | W4: =INDEX(tblTerritories!$V$3:$V$28,Scores!W3) -> 8 | X4: =INDEX(tblTerritories!$V$3:$V$28,Scores!X3) -> 9 | Y4: =INDEX(tblTerritories!$V$3:$V$28,Scores!Y3) -> 10 | Z4: =INDEX(tblTerritories!$V$3:$V$28,Scores!Z3) -> 11 | AA4: =INDEX(tblTerritories!$V$3:$V$28,Scores!AA3) -> 12 | AB4: =INDEX(tblTerritories!$V$3:$V$28,Scores!AB3) -> 13 | AC4: =INDEX(tblTerritories!$V$3:$V$28,Scores!AC3) -> 14 | AD4: =INDEX(tblTerritories!$V$3:$V$28,Scores!AD3) -> 15 | AE4: =INDEX(tblTerritories!$V$3:$V$28,Scores!AE3) -> 16 | AF4: =INDEX(tblTerritories!$V$3:$V$28,Scores!AF3) -> 17 | AG4: =INDEX(tblTerritories!$V$3:$V$28,Scores!AG3) -> 18 | AH4: =INDEX(tblTerritories!$V$3:$V$28,Scores!AH3) -> 19 | AI4: =INDEX(tblTerritories!$V$3:$V$28,Scores!AI3) -> 20 | AJ4: =INDEX(tblTerritories!$V$3:$V$28,Scores!AJ3) -> 21 | AK4: =INDEX(tblTerritories!$V$3:$V$28,Scores!AK3) -> 22 | AL4: =INDEX(tblTerritories!$V$3:$V$28,Scores!AL3) -> 23 | AM4: =INDEX(tblTerritories!$V$3:$V$28,Scores!AM3) -> 24 | AN4: =INDEX(tblTerritories!$V$3:$V$28,Scores!AN3) -> 25 | AO4: =INDEX(tblTerritories!$V$3:$V$28,Scores!AO3) -> 26 | AX4: =P4 -> 1 | AY4: 2 | AZ4: 3 | BA4: 4 | BB4: 5 | BC4: 6 | BD4: 7 | BE4: 8 | BF4: 9 | BG4: 10 | BH4: 11 | BI4: 12 | BJ4: 13 | BK4: =AC4 -> 14 | BL4: 15 | BM4: 16 | BN4: 17 | BO4: 18 | BP4: 19 | BQ4: 20 | BR4: 21 | BS4: 22 | BT4: 23 | BU4: 24 | BV4: 25 | BW4: 26
N6: =uxb_works!C5 -> The active weight profile has been changed from its default setting
N8: =uxb_works!D67 -> <no filter> -I- No. of technologies in this group: 26
B10: =tblIndicators!A1 -> line | F10: =tblIndicators!G1 -> DEPTH | H10: =tblIndicators!AC1 -> Format | K10: =SUM(K11:K24) -> 14 | N10: Indicators | P10: =IF(P$4="","",INDEX(tblTerritories!$C$3:$C$33,P$4)) -> Green roofs | Q10: =IF(Q$4="","",INDEX(tblTerritories!$C$3:$C$33,Q$4)) -> Cool roofs | R10: =IF(R$4="","",INDEX(tblTerritories!$C$3:$C$33,R$4)) -> Dynamic glass | S10: =IF(S$4="","",INDEX(tblTerritories!$C$3:$C$33,S$4)) -> High-performance glass | T10: =IF(T$4="","",INDEX(tblTerritories!$C$3:$C$33,T$4)) -> Environmentally friendly insulation | U10: =IF(U$4="","",INDEX(tblTerritories!$C$3:$C$33,U$4)) -> High-efficiency heat pumps | V10: =IF(V$4="","",INDEX(tblTerritories!$C$3:$C$33,V$4)) -> Low-carbon cement & concrete alternatives | W10: =IF(W$4="","",INDEX(tblTerritories!$C$3:$C$33,W$4)) -> Digital twins | X10: =IF(X$4="","",INDEX(tblTerritories!$C$3:$C$33,X$4)) -> Building automation systems (BAS) | Y10: =IF(Y$4="","",INDEX(tblTerritories!$C$3:$C$33,Y$4)) -> Unified communications (VOIP) | Z10: =IF(Z$4="","",INDEX(tblTerritories!$C$3:$C$33,Z$4)) -> Subway advanced control system | AA10: =IF(AA$4="","",INDEX(tblTerritories!$C$3:$C$33,AA$4)) -> Smart grids & smart meters | AB10: =IF(AB$4="","",INDEX(tblTerritories!$C$3:$C$33,AB$4)) -> Distributed energy storage | AC10: =IF(AC$4="","",INDEX(tblTerritories!$C$3:$C$33,AC$4)) -> District heating & cooling systems (DHC) | AD10: =IF(AD$4="","",INDEX(tblTerritories!$C$3:$C$33,AD$4)) -> Battery energy storage | AE10: =IF(AE$4="","",INDEX(tblTerritories!$C$3:$C$33,AE$4)) -> Thermal energy storage | AF10: =IF(AF$4="","",INDEX(tblTerritories!$C$3:$C$33,AF$4)) -> Distributed solar power | AG10: =IF(AG$4="","",INDEX(tblTerritories!$C$3:$C$33,AG$4)) -> Waste robotics | AH10: =IF(AH$4="","",INDEX(tblTerritories!$C$3:$C$33,AH$4)) -> Electric vehicles (EVs) | AI10: =IF(AI$4="","",INDEX(tblTerritories!$C$3:$C$33,AI$4)) -> Electric vehicle charging ports | AJ10: =IF(AJ$4="","",INDEX(tblTerritories!$C$3:$C$33,AJ$4)) -> Smart charging | AK10: =IF(AK$4="","",INDEX(tblTerritories!$C$3:$C$33,AK$4)) -> Vehicle-to-grid technologies (V2G) | AL10: =IF(AL$4="","",INDEX(tblTerritories!$C$3:$C$33,AL$4)) -> Battery operation enhancements | AM10: =IF(AM$4="","",INDEX(tblTerritories!$C$3:$C$33,AM$4)) -> Hydrogen transport vehicles | AN10: =IF(AN$4="","",INDEX(tblTerritories!$C$3:$C$33,AN$4)) -> Mobility as a Service (MaaS) | AO10: =IF(AO$4="","",INDEX(tblTerritories!$C$3:$C$33,AO$4)) -> Autonomous vehicles (AVs) | AX10: =IF(P10="",0,1) -> 1 | AY10: 1 | AZ10: 1 | BA10: 1 | BB10: 1 | BC10: 1 | BD10: 1 | BE10: 1 | BF10: 1 | BG10: 1 | BH10: 1 | BI10: 1 | BJ10: 1 | BK10: =IF(AC10="",0,1) -> 1 | BL10: 1 | BM10: 1 | BN10: 1 | BO10: 1 | BP10: 1 | BQ10: 1 | BR10: 1 | BS10: 1 | BT10: 1 | BU10: 1 | BV10: 1 | BW10: 1
B11: =tblIndicators!A2 -> 1 | F11: 6 | H11: =tblIndicators!AC2 -> #,##0.0 | K11: =IF(uxb_works!$B$46>=L11,1,0) -> 1 | L11: =tblIndicators!G2 -> 0 | N11: =iScores!N6 -> TOTAL SCORE | P11: 8.1 | Q11: 7.3 | R11: 9.5 | S11: 8 | T11: 7.6 | U11: 9.3 | V11: 9.1 | W11: 6.8 | X11: 6.8 | Y11: 9.4 | Z11: 5.3 | AA11: 9.7 | AB11: 9.9 | AC11: 8.5 | AD11: 8.8 | AE11: 9.5 | AF11: 10.4 | AG11: 8 | AH11: 9.1 | AI11: 9.4 | AJ11: 8 | AK11: 7.2 | AL11: 7.3 | AM11: 6.9 | AN11: 8.1 | AO11: 7.7 | AR11: =tblIndicators!U2 -> 1 | AS11: =CHOOSE($AR11,$AX$1,iScores!#REF!) -> 30 | AT11: =CHOOSE($AR11,$AY$1,iScores!#REF!) -> 60 | AU11: =CHOOSE($AR11,$AZ$1,iScores!#REF!) -> 80 | AX11: =CHOOSE($AV$1,0,IF(AX$10=0,0,IF(P11<$AS11,1,IF(P11<$AT11,2,IF(P11<$AU11,3,4)))),IF(AX$10=0,0,IF(P11<$AS11,5,IF(P11<$AT11,6,IF(P11<$AU11,7,8))))) -> 0 | AY11: =CHOOSE($AV$1,0,IF(AY$10=0,0,IF(Q11<=$AS11,1,IF(Q11<=$AT11,2,IF(Q11<=$AU11,3,4)))),IF(AY$10=0,0,IF(Q11<=$AS11,5,IF(Q11<=$AT11,6,IF(Q11<=$AU11,7,8))))) -> 0 | AZ11: =CHOOSE($AV$1,0,IF(AZ$10=0,0,IF(R11<=$AS11,1,IF(R11<=$AT11,2,IF(R11<=$AU11,3,4)))),IF(AZ$10=0,0,IF(R11<=$AS11,5,IF(R11<=$AT11,6,IF(R11<=$AU11,7,8))))) -> 0 | BA11: =CHOOSE($AV$1,0,IF(BA$10=0,0,IF(S11<=$AS11,1,IF(S11<=$AT11,2,IF(S11<=$AU11,3,4)))),IF(BA$10=0,0,IF(S11<=$AS11,5,IF(S11<=$AT11,6,IF(S11<=$AU11,7,8))))) -> 0 | BB11: =CHOOSE($AV$1,0,IF(BB$10=0,0,IF(T11<=$AS11,1,IF(T11<=$AT11,2,IF(T11<=$AU11,3,4)))),IF(BB$10=0,0,IF(T11<=$AS11,5,IF(T11<=$AT11,6,IF(T11<=$AU11,7,8))))) -> 0 | BC11: =CHOOSE($AV$1,0,IF(BC$10=0,0,IF(U11<=$AS11,1,IF(U11<=$AT11,2,IF(U11<=$AU11,3,4)))),IF(BC$10=0,0,IF(U11<=$AS11,5,IF(U11<=$AT11,6,IF(U11<=$AU11,7,8))))) -> 0 | BD11: =CHOOSE($AV$1,0,IF(BD$10=0,0,IF(V11<=$AS11,1,IF(V11<=$AT11,2,IF(V11<=$AU11,3,4)))),IF(BD$10=0,0,IF(V11<=$AS11,5,IF(V11<=$AT11,6,IF(V11<=$AU11,7,8))))) -> 0 | BE11: =CHOOSE($AV$1,0,IF(BE$10=0,0,IF(W11<=$AS11,1,IF(W11<=$AT11,2,IF(W11<=$AU11,3,4)))),IF(BE$10=0,0,IF(W11<=$AS11,5,IF(W11<=$AT11,6,IF(W11<=$AU11,7,8))))) -> 0 | BF11: =CHOOSE($AV$1,0,IF(BF$10=0,0,IF(X11<=$AS11,1,IF(X11<=$AT11,2,IF(X11<=$AU11,3,4)))),IF(BF$10=0,0,IF(X11<=$AS11,5,IF(X11<=$AT11,6,IF(X11<=$AU11,7,8))))) -> 0 | BG11: =CHOOSE($AV$1,0,IF(BG$10=0,0,IF(Y11<=$AS11,1,IF(Y11<=$AT11,2,IF(Y11<=$AU11,3,4)))),IF(BG$10=0,0,IF(Y11<=$AS11,5,IF(Y11<=$AT11,6,IF(Y11<=$AU11,7,8))))) -> 0 | BH11: =CHOOSE($AV$1,0,IF(BH$10=0,0,IF(Z11<=$AS11,1,IF(Z11<=$AT11,2,IF(Z11<=$AU11,3,4)))),IF(BH$10=0,0,IF(Z11<=$AS11,5,IF(Z11<=$AT11,6,IF(Z11<=$AU11,7,8))))) -> 0 | BI11: =CHOOSE($AV$1,0,IF(BI$10=0,0,IF(AA11<=$AS11,1,IF(AA11<=$AT11,2,IF(AA11<=$AU11,3,4)))),IF(BI$10=0,0,IF(AA11<=$AS11,5,IF(AA11<=$AT11,6,IF(AA11<=$AU11,7,8))))) -> 0 | BJ11: =CHOOSE($AV$1,0,IF(BJ$10=0,0,IF(AB11<=$AS11,1,IF(AB11<=$AT11,2,IF(AB11<=$AU11,3,4)))),IF(BJ$10=0,0,IF(AB11<=$AS11,5,IF(AB11<=$AT11,6,IF(AB11<=$AU11,7,8))))) -> 0 | BK11: =CHOOSE($AV$1,0,IF(BK$10=0,0,IF(AC11<=$AS11,1,IF(AC11<=$AT11,2,IF(AC11<=$AU11,3,4)))),IF(BK$10=0,0,IF(AC11<=$AS11,5,IF(AC11<=$AT11,6,IF(AC11<=$AU11,7,8))))) -> 0 | BL11: =CHOOSE($AV$1,0,IF(BL$10=0,0,IF(AD11<=$AS11,1,IF(AD11<=$AT11,2,IF(AD11<=$AU11,3,4)))),IF(BL$10=0,0,IF(AD11<=$AS11,5,IF(AD11<=$AT11,6,IF(AD11<=$AU11,7,8))))) -> 0 | BM11: =CHOOSE($AV$1,0,IF(BM$10=0,0,IF(AE11<=$AS11,1,IF(AE11<=$AT11,2,IF(AE11<=$AU11,3,4)))),IF(BM$10=0,0,IF(AE11<=$AS11,5,IF(AE11<=$AT11,6,IF(AE11<=$AU11,7,8))))) -> 0 | BN11: =CHOOSE($AV$1,0,IF(BN$10=0,0,IF(AF11<=$AS11,1,IF(AF11<=$AT11,2,IF(AF11<=$AU11,3,4)))),IF(BN$10=0,0,IF(AF11<=$AS11,5,IF(AF11<=$AT11,6,IF(AF11<=$AU11,7,8))))) -> 0 | BO11: =CHOOSE($AV$1,0,IF(BO$10=0,0,IF(AG11<=$AS11,1,IF(AG11<=$AT11,2,IF(AG11<=$AU11,3,4)))),IF(BO$10=0,0,IF(AG11<=$AS11,5,IF(AG11<=$AT11,6,IF(AG11<=$AU11,7,8))))) -> 0 | BP11: =CHOOSE($AV$1,0,IF(BP$10=0,0,IF(AH11<=$AS11,1,IF(AH11<=$AT11,2,IF(AH11<=$AU11,3,4)))),IF(BP$10=0,0,IF(AH11<=$AS11,5,IF(AH11<=$AT11,6,IF(AH11<=$AU11,7,8))))) -> 0 | BQ11: =CHOOSE($AV$1,0,IF(BQ$10=0,0,IF(AI11<=$AS11,1,IF(AI11<=$AT11,2,IF(AI11<=$AU11,3,4)))),IF(BQ$10=0,0,IF(AI11<=$AS11,5,IF(AI11<=$AT11,6,IF(AI11<=$AU11,7,8))))) -> 0 | BR11: =CHOOSE($AV$1,0,IF(BR$10=0,0,IF(AJ11<=$AS11,1,IF(AJ11<=$AT11,2,IF(AJ11<=$AU11,3,4)))),IF(BR$10=0,0,IF(AJ11<=$AS11,5,IF(AJ11<=$AT11,6,IF(AJ11<=$AU11,7,8))))) -> 0 | BS11: =CHOOSE($AV$1,0,IF(BS$10=0,0,IF(AK11<=$AS11,1,IF(AK11<=$AT11,2,IF(AK11<=$AU11,3,4)))),IF(BS$10=0,0,IF(AK11<=$AS11,5,IF(AK11<=$AT11,6,IF(AK11<=$AU11,7,8))))) -> 0 | BT11: =CHOOSE($AV$1,0,IF(BT$10=0,0,IF(AL11<=$AS11,1,IF(AL11<=$AT11,2,IF(AL11<=$AU11,3,4)))),IF(BT$10=0,0,IF(AL11<=$AS11,5,IF(AL11<=$AT11,6,IF(AL11<=$AU11,7,8))))) -> 0 | BU11: =CHOOSE($AV$1,0,IF(BU$10=0,0,IF(AM11<=$AS11,1,IF(AM11<=$AT11,2,IF(AM11<=$AU11,3,4)))),IF(BU$10=0,0,IF(AM11<=$AS11,5,IF(AM11<=$AT11,6,IF(AM11<=$AU11,7,8))))) -> 0 | BV11: =CHOOSE($AV$1,0,IF(BV$10=0,0,IF(AN11<=$AS11,1,IF(AN11<=$AT11,2,IF(AN11<=$AU11,3,4)))),IF(BV$10=0,0,IF(AN11<=$AS11,5,IF(AN11<=$AT11,6,IF(AN11<=$AU11,7,8))))) -> 0 | BW11: =CHOOSE($AV$1,0,IF(BW$10=0,0,IF(AO11<=$AS11,1,IF(AO11<=$AT11,2,IF(AO11<=$AU11,3,4)))),IF(BW$10=0,0,IF(AO11<=$AS11,5,IF(AO11<=$AT11,6,IF(AO11<=$AU11,7,8))))) -> 0
B12: =tblIndicators!A3 -> 2 | F12: =tblIndicators!G3 -> 1 | H12: =tblIndicators!AC3 -> #,##0.0 | K12: =IF(uxb_works!$B$47=1,1,IF(uxb_works!$B$46>=L12,1,0)) -> 1 | L12: =tblIndicators!G3 -> 1 | N12: =iScores!N7 -> 1) IMPACT SCORE | P12: 2.8 | Q12: 3.3 | R12: 3.5 | S12: 3 | T12: 2.3 | U12: 3.3 | V12: 3.8 | W12: 2.8 | X12: 2.8 | Y12: 2.8 | Z12: 3.3 | AA12: 3 | AB12: 3.3 | AC12: 3.5 | AD12: 2.5 | AE12: 3.5 | AF12: 3.8 | AG12: 3 | AH12: 2.8 | AI12: 2.8 | AJ12: 3 | AK12: 3.5 | AL12: 2.3 | AM12: 2.3 | AN12: 2.8 | AO12: 2 | AR12: =tblIndicators!U3 -> 1 | AS12: =CHOOSE($AR12,$AX$1,iScores!#REF!) -> 30 | AT12: =CHOOSE($AR12,$AY$1,iScores!#REF!) -> 60 | AU12: =CHOOSE($AR12,$AZ$1,iScores!#REF!) -> 80 | AX12: =CHOOSE($AV$1,0,IF(AX$10=0,0,IF(P12<=$AS12,1,IF(P12<=$AT12,2,IF(P12<=$AU12,3,4)))),IF(AX$10=0,0,IF(P12<=$AS12,5,IF(P12<=$AT12,6,IF(P12<=$AU12,7,8))))) -> 0 | AY12: 0 | AZ12: 0 | BA12: 0 | BB12: 0 | BC12: 0 | BD12: 0 | BE12: 0 | BF12: 0 | BG12: 0 | BH12: 0 | BI12: 0 | BJ12: 0 | BK12: 0 | BL12: 0 | BM12: 0 | BN12: 0 | BO12: 0 | BP12: 0 | BQ12: 0 | BR12: 0 | BS12: 0 | BT12: 0 | BU12: 0 | BV12: 0 | BW12: 0
B13: =tblIndicators!A4 -> 3 | F13: =tblIndicators!G4 -> 2 | H13: =tblIndicators!AC4 -> #,##0 | K13: =IF(uxb_works!$B$47=1,1,IF(uxb_works!$B$46>=L13,1,0)) -> 1 | L13: =tblIndicators!G4 -> 2 | N13: =iScores!N8 -> 1.1) Comparability with traditional alternative | P13: 1 | Q13: 3 | R13: 3 | S13: 3 | T13: 1 | U13: 3 | V13: 3 | W13: 3 | X13: 3 | Y13: 2 | Z13: 2 | AA13: 3 | AB13: 3 | AC13: 3 | AD13: 3 | AE13: 3 | AF13: 3 | AG13: 3 | AH13: 1 | AI13: 4 | AJ13: 4 | AK13: 4 | AL13: 4 | AM13: 2 | AN13: 3 | AO13: 3 | AR13: =tblIndicators!U4 -> 1 | AS13: =CHOOSE($AR13,$AX$1,iScores!#REF!) -> 30 | AT13: =CHOOSE($AR13,$AY$1,iScores!#REF!) -> 60 | AU13: =CHOOSE($AR13,$AZ$1,iScores!#REF!) -> 80 | AX13: 0 | AY13: 0 | AZ13: 0 | BA13: 0 | BB13: 0 | BC13: 0 | BD13: 0 | BE13: 0 | BF13: 0 | BG13: 0 | BH13: 0 | BI13: 0 | BJ13: 0 | BK13: 0 | BL13: 0 | BM13: 0 | BN13: 0 | BO13: 0 | BP13: 0 | BQ13: 0 | BR13: 0 | BS13: 0 | BT13: 0 | BU13: 0 | BV13: 0 | BW13: 0
B14: =tblIndicators!A5 -> 4 | F14: =tblIndicators!G5 -> 2 | H14: =tblIndicators!AC5 -> #,##0 | K14: =IF(uxb_works!$B$47=1,1,IF(uxb_works!$B$46>=L14,1,0)) -> 1 | L14: =tblIndicators!G5 -> 2 | N14: =iScores!N9 -> 1.2) Carbon emissions reduction | P14: 4 | Q14: 4 | R14: 4 | S14: 4 | T14: 4 | U14: 4 | V14: 4 | W14: 3 | X14: 4 | Y14: 4 | Z14: 4 | AA14: 4 | AB14: 2 | AC14: 4 | AD14: 2 | AE14: 4 | AF14: 4 | AG14: 2 | AH14: 4 | AI14: 3 | AJ14: 2 | AK14: 4 | AL14: 1 | AM14: 2 | AN14: 2 | AO14: 1 | AR14: =tblIndicators!U5 -> 1 | AS14: =CHOOSE($AR14,$AX$1,iScores!#REF!) -> 30 | AT14: =CHOOSE($AR14,$AY$1,iScores!#REF!) -> 60 | AU14: =CHOOSE($AR14,$AZ$1,iScores!#REF!) -> 80 | AX14: 0 | AY14: 0 | AZ14: 0 | BA14: 0 | BB14: 0 | BC14: 0 | BD14: 0 | BE14: 0 | BF14: 0 | BG14: 0 | BH14: 0 | BI14: 0 | BJ14: 0 | BK14: 0 | BL14: 0 | BM14: 0 | BN14: 0 | BO14: 0 | BP14: 0 | BQ14: 0 | BR14: 0 | BS14: 0 | BT14: 0 | BU14: 0 | BV14: 0 | BW14: 0
B15: =tblIndicators!A6 -> 5 | F15: =tblIndicators!G6 -> 2 | H15: =tblIndicators!AC6 -> #,##0 | K15: =IF(uxb_works!$B$47=1,1,IF(uxb_works!$B$46>=L15,1,0)) -> 1 | L15: =tblIndicators!G6 -> 2 | N15: =iScores!N10 -> 1.3) Potential additional benefits | P15: 4 | Q15: 4 | R15: 4 | S15: 2 | T15: 2 | U15: 4 | V15: 4 | W15: 3 | X15: 2 | Y15: 3 | Z15: 4 | AA15: 4 | AB15: 4 | AC15: 4 | AD15: 3 | AE15: 4 | AF15: 4 | AG15: 4 | AH15: 4 | AI15: 1 | AJ15: 3 | AK15: 4 | AL15: 2 | AM15: 3 | AN15: 4 | AO15: 3 | AR15: =tblIndicators!U6 -> 1 | AS15: =CHOOSE($AR15,$AX$1,iScores!#REF!) -> 30 | AT15: =CHOOSE($AR15,$AY$1,iScores!#REF!) -> 60 | AU15: =CHOOSE($AR15,$AZ$1,iScores!#REF!) -> 80 | AX15: 0 | AY15: 0 | AZ15: 0 | BA15: 0 | BB15: 0 | BC15: 0 | BD15: 0 | BE15: 0 | BF15: 0 | BG15: 0 | BH15: 0 | BI15: 0 | BJ15: 0 | BK15: 0 | BL15: 0 | BM15: 0 | BN15: 0 | BO15: 0 | BP15: 0 | BQ15: 0 | BR15: 0 | BS15: 0 | BT15: 0 | BU15: 0 | BV15: 0 | BW15: 0
B16: =tblIndicators!A7 -> 6 | F16: =tblIndicators!G7 -> 2 | H16: =tblIndicators!AC7 -> #,##0 | K16: =IF(uxb_works!$B$47=1,1,IF(uxb_works!$B$46>=L16,1,0)) -> 1 | L16: =tblIndicators!G7 -> 2 | N16: =iScores!N11 -> 1.4) Potential harms / consequences | P16: 2 | Q16: 2 | R16: 3 | S16: 3 | T16: 2 | U16: 2 | V16: 4 | W16: 2 | X16: 2 | Y16: 2 | Z16: 3 | AA16: 1 | AB16: 4 | AC16: 3 | AD16: 2 | AE16: 3 | AF16: 4 | AG16: 3 | AH16: 2 | AI16: 3 | AJ16: 3 | AK16: 2 | AL16: 2 | AM16: 2 | AN16: 2 | AO16: 1 | AR16: =tblIndicators!U7 -> 1 | AS16: =CHOOSE($AR16,$AX$1,iScores!#REF!) -> 30 | AT16: =CHOOSE($AR16,$AY$1,iScores!#REF!) -> 60 | AU16: =CHOOSE($AR16,$AZ$1,iScores!#REF!) -> 80 | AX16: 0 | AY16: 0 | AZ16: 0 | BA16: 0 | BB16: 0 | BC16: 0 | BD16: 0 | BE16: 0 | BF16: 0 | BG16: 0 | BH16: 0 | BI16: 0 | BJ16: 0 | BK16: 0 | BL16: 0 | BM16: 0 | BN16: 0 | BO16: 0 | BP16: 0 | BQ16: 0 | BR16: 0 | BS16: 0 | BT16: 0 | BU16: 0 | BV16: 0 | BW16: 0
B17: =tblIndicators!A8 -> 7 | F17: =tblIndicators!G8 -> 1 | H17: =tblIndicators!AC8 -> #,##0.0 | K17: =IF(uxb_works!$B$47=1,1,IF(uxb_works!$B$46>=L17,1,0)) -> 1 | L17: =tblIndicators!G8 -> 1 | N17: =iScores!N12 -> 2) SCALABILITY SCORE | P17: 3.3 | Q17: 3.3 | R17: 4 | S17: 3.3 | T17: 4 | U17: 4 | V17: 4 | W17: 2 | X17: 2.3 | Y17: 3.3 | Z17: 1.7 | AA17: 3.3 | AB17: 2.7 | AC17: 2.7 | AD17: 3.3 | AE17: 3.7 | AF17: 3 | AG17: 4 | AH17: 2.3 | AI17: 3.3 | AJ17: 3 | AK17: 2.7 | AL17: 2.3 | AM17: 2 | AN17: 3.3 | AO17: 2 | AR17: =tblIndicators!U8 -> 1 | AS17: =CHOOSE($AR17,$AX$1,iScores!#REF!) -> 30 | AT17: =CHOOSE($AR17,$AY$1,iScores!#REF!) -> 60 | AU17: =CHOOSE($AR17,$AZ$1,iScores!#REF!) -> 80 | AX17: 0 | AY17: 0 | AZ17: 0 | BA17: 0 | BB17: 0 | BC17: 0 | BD17: 0 | BE17: 0 | BF17: 0 | BG17: 0 | BH17: 0 | BI17: 0 | BJ17: 0 | BK17: 0 | BL17: 0 | BM17: 0 | BN17: 0 | BO17: 0 | BP17: 0 | BQ17: 0 | BR17: 0 | BS17: 0 | BT17: 0 | BU17: 0 | BV17: 0 | BW17: 0
B18: =tblIndicators!A9 -> 8 | F18: =tblIndicators!G9 -> 2 | H18: =tblIndicators!AC9 -> #,##0 | K18: =IF(uxb_works!$B$47=1,1,IF(uxb_works!$B$46>=L18,1,0)) -> 1 | L18: =tblIndicators!G9 -> 2 | N18: =iScores!N13 -> 2.1) Current state of development | P18: 4 | Q18: 4 | R18: 4 | S18: 4 | T18: 4 | U18: 4 | V18: 4 | W18: 4 | X18: 4 | Y18: 4 | Z18: 2 | AA18: 4 | AB18: 4 | AC18: 4 | AD18: 4 | AE18: 4 | AF18: 4 | AG18: 4 | AH18: 4 | AI18: 4 | AJ18: 4 | AK18: 3 | AL18: 1 | AM18: 1 | AN18: 4 | AO18: 4 | AR18: =tblIndicators!U9 -> 1 | AS18: =CHOOSE($AR18,$AX$1,iScores!#REF!) -> 30 | AT18: =CHOOSE($AR18,$AY$1,iScores!#REF!) -> 60 | AU18: =CHOOSE($AR18,$AZ$1,iScores!#REF!) -> 80 | AX18: 0 | AY18: 0 | AZ18: 0 | BA18: 0 | BB18: 0 | BC18: 0 | BD18: 0 | BE18: 0 | BF18: 0 | BG18: 0 | BH18: 0 | BI18: 0 | BJ18: 0 | BK18: 0 | BL18: 0 | BM18: 0 | BN18: 0 | BO18: 0 | BP18: 0 | BQ18: 0 | BR18: 0 | BS18: 0 | BT18: 0 | BU18: 0 | BV18: 0 | BW18: 0
B19: =tblIndicators!A10 -> 9 | F19: =tblIndicators!G10 -> 2 | H19: =tblIndicators!AC10 -> #,##0 | K19: =IF(uxb_works!$B$47=1,1,IF(uxb_works!$B$46>=L19,1,0)) -> 1 | L19: =tblIndicators!G10 -> 2 | N19: =iScores!N14 -> 2.2) Initial investment costs | P19: 2 | Q19: 2 | R19: 4 | S19: 2 | T19: 4 | U19: 4 | V19: 4 | W19: 1 | X19: 2 | Y19: 3 | Z19: 2 | AA19: 2 | AB19: 3 | AC19: 3 | AD19: 3 | AE19: 4 | AF19: 3 | AG19: 4 | AH19: 2 | AI19: 3 | AJ19: 3 | AK19: 2 | AL19: 2 | AM19: 2 | AN19: 3 | AO19: 1 | AR19: =tblIndicators!U10 -> 1 | AS19: =CHOOSE($AR19,$AX$1,iScores!#REF!) -> 30 | AT19: =CHOOSE($AR19,$AY$1,iScores!#REF!) -> 60 | AU19: =CHOOSE($AR19,$AZ$1,iScores!#REF!) -> 80 | AX19: 0 | AY19: 0 | AZ19: 0 | BA19: 0 | BB19: 0 | BC19: 0 | BD19: 0 | BE19: 0 | BF19: 0 | BG19: 0 | BH19: 0 | BI19: 0 | BJ19: 0 | BK19: 0 | BL19: 0 | BM19: 0 | BN19: 0 | BO19: 0 | BP19: 0 | BQ19: 0 | BR19: 0 | BS19: 0 | BT19: 0 | BU19: 0 | BV19: 0 | BW19: 0
B20: =tblIndicators!A11 -> 10 | F20: =tblIndicators!G11 -> 2 | H20: =tblIndicators!AC11 -> #,##0 | K20: =IF(uxb_works!$B$47=1,1,IF(uxb_works!$B$46>=L20,1,0)) -> 1 | L20: =tblIndicators!G11 -> 2 | N20: =iScores!N15 -> 2.3) Ease of integration | P20: 4 | Q20: 4 | R20: 4 | S20: 4 | T20: 4 | U20: 4 | V20: 4 | W20: 1 | X20: 1 | Y20: 3 | Z20: 1 | AA20: 4 | AB20: 1 | AC20: 1 | AD20: 3 | AE20: 3 | AF20: 2 | AG20: 4 | AH20: 1 | AI20: 3 | AJ20: 2 | AK20: 3 | AL20: 4 | AM20: 3 | AN20: 3 | AO20: 1 | AR20: =tblIndicators!U11 -> 1 | AS20: =CHOOSE($AR20,$AX$1,iScores!#REF!) -> 30 | AT20: =CHOOSE($AR20,$AY$1,iScores!#REF!) -> 60 | AU20: =CHOOSE($AR20,$AZ$1,iScores!#REF!) -> 80 | AX20: 0 | AY20: 0 | AZ20: 0 | BA20: 0 | BB20: 0 | BC20: 0 | BD20: 0 | BE20: 0 | BF20: 0 | BG20: 0 | BH20: 0 | BI20: 0 | BJ20: 0 | BK20: 0 | BL20: 0 | BM20: 0 | BN20: 0 | BO20: 0 | BP20: 0 | BQ20: 0 | BR20: 0 | BS20: 0 | BT20: 0 | BU20: 0 | BV20: 0 | BW20: 0
B21: =tblIndicators!A12 -> 11 | F21: =tblIndicators!G12 -> 1 | H21: =tblIndicators!AC12 -> #,##0.0 | K21: =IF(uxb_works!$B$47=1,1,IF(uxb_works!$B$46>=L21,1,0)) -> 1 | L21: =tblIndicators!G12 -> 1 | N21: =iScores!N16 -> 3) INVESTMENT SCORE | P21: 2 | Q21: 0.7 | R21: 2 | S21: 1.7 | T21: 1.3 | U21: 2 | V21: 1.3 | W21: 2 | X21: 1.7 | Y21: 3.3 | Z21: 0.3 | AA21: 3.3 | AB21: 4 | AC21: 2.3 | AD21: 3 | AE21: 2.3 | AF21: 3.7 | AG21: 1 | AH21: 4 | AI21: 3.3 | AJ21: 2 | AK21: 1 | AL21: 2.7 | AM21: 2.7 | AN21: 2 | AO21: 3.7 | AR21: =tblIndicators!U12 -> 1 | AS21: =CHOOSE($AR21,$AX$1,iScores!#REF!) -> 30 | AT21: =CHOOSE($AR21,$AY$1,iScores!#REF!) -> 60 | AU21: =CHOOSE($AR21,$AZ$1,iScores!#REF!) -> 80 | AX21: 0 | AY21: 0 | AZ21: 0 | BA21: 0 | BB21: 0 | BC21: 0 | BD21: 0 | BE21: 0 | BF21: 0 | BG21: 0 | BH21: 0 | BI21: 0 | BJ21: 0 | BK21: 0 | BL21: 0 | BM21: 0 | BN21: 0 | BO21: 0 | BP21: 0 | BQ21: 0 | BR21: 0 | BS21: 0 | BT21: 0 | BU21: 0 | BV21: 0 | BW21: 0
B22: =tblIndicators!A13 -> 12 | F22: =tblIndicators!G13 -> 2 | H22: =tblIndicators!AC13 -> #,##0 | K22: =IF(uxb_works!$B$47=1,1,IF(uxb_works!$B$46>=L22,1,0)) -> 1 | L22: =tblIndicators!G13 -> 2 | N22: =iScores!N17 -> 3.1) Current level of investment | P22: 1 | Q22: 0 | R22: 3 | S22: 1 | T22: 1 | U22: 1 | V22: 1 | W22: 3 | X22: 1 | Y22: 4 | Z22: 0 | AA22: 3 | AB22: 4 | AC22: 3 | AD22: 3 | AE22: 2 | AF22: 4 | AG22: 1 | AH22: 4 | AI22: 3 | AJ22: 1 | AK22: 1 | AL22: 3 | AM22: 3 | AN22: 3 | AO22: 4 | AR22: =tblIndicators!U13 -> 1 | AS22: =CHOOSE($AR22,$AX$1,iScores!#REF!) -> 30 | AT22: =CHOOSE($AR22,$AY$1,iScores!#REF!) -> 60 | AU22: =CHOOSE($AR22,$AZ$1,iScores!#REF!) -> 80 | AX22: 0 | AY22: 0 | AZ22: 0 | BA22: 0 | BB22: 0 | BC22: 0 | BD22: 0 | BE22: 0 | BF22: 0 | BG22: 0 | BH22: 0 | BI22: 0 | BJ22: 0 | BK22: 0 | BL22: 0 | BM22: 0 | BN22: 0 | BO22: 0 | BP22: 0 | BQ22: 0 | BR22: 0 | BS22: 0 | BT22: 0 | BU22: 0 | BV22: 0 | BW22: 0
B23: =tblIndicators!A14 -> 13 | F23: =tblIndicators!G14 -> 2 | H23: =tblIndicators!AC14 -> #,##0 | K23: =IF(uxb_works!$B$47=1,1,IF(uxb_works!$B$46>=L23,1,0)) -> 1 | L23: =tblIndicators!G14 -> 2 | N23: =iScores!N18 -> 3.2) Availability of private funding | P23: 1 | Q23: 0 | R23: 1 | S23: 1 | T23: 1 | U23: 1 | V23: 1 | W23: 2 | X23: 2 | Y23: 4 | Z23: 0 | AA23: 3 | AB23: 4 | AC23: 1 | AD23: 2 | AE23: 2 | AF23: 3 | AG23: 1 | AH23: 4 | AI23: 3 | AJ23: 1 | AK23: 1 | AL23: 2 | AM23: 1 | AN23: 2 | AO23: 4 | AR23: =tblIndicators!U14 -> 1 | AS23: =CHOOSE($AR23,$AX$1,iScores!#REF!) -> 30 | AT23: =CHOOSE($AR23,$AY$1,iScores!#REF!) -> 60 | AU23: =CHOOSE($AR23,$AZ$1,iScores!#REF!) -> 80 | AX23: 0 | AY23: 0 | AZ23: 0 | BA23: 0 | BB23: 0 | BC23: 0 | BD23: 0 | BE23: 0 | BF23: 0 | BG23: 0 | BH23: 0 | BI23: 0 | BJ23: 0 | BK23: 0 | BL23: 0 | BM23: 0 | BN23: 0 | BO23: 0 | BP23: 0 | BQ23: 0 | BR23: 0 | BS23: 0 | BT23: 0 | BU23: 0 | BV23: 0 | BW23: 0
B24: =tblIndicators!A15 -> 14 | F24: =tblIndicators!G15 -> 2 | H24: =tblIndicators!AC15 -> #,##0 | K24: =IF(uxb_works!$B$47=1,1,IF(uxb_works!$B$46>=L24,1,0)) -> 1 | L24: =tblIndicators!G15 -> 2 | N24: =iScores!N19 -> 3.3) Availability of public funding | P24: 4 | Q24: 2 | R24: 2 | S24: 3 | T24: 2 | U24: 4 | V24: 2 | W24: 1 | X24: 2 | Y24: 2 | Z24: 1 | AA24: 4 | AB24: 4 | AC24: 3 | AD24: 4 | AE24: 3 | AF24: 4 | AG24: 1 | AH24: 4 | AI24: 4 | AJ24: 4 | AK24: 1 | AL24: 3 | AM24: 4 | AN24: 1 | AO24: 3 | AR24: =tblIndicators!U15 -> 1 | AS24: =CHOOSE($AR24,$AX$1,iScores!#REF!) -> 30 | AT24: =CHOOSE($AR24,$AY$1,iScores!#REF!) -> 60 | AU24: =CHOOSE($AR24,$AZ$1,iScores!#REF!) -> 80 | AX24: 0 | AY24: 0 | AZ24: 0 | BA24: 0 | BB24: 0 | BC24: 0 | BD24: 0 | BE24: 0 | BF24: 0 | BG24: 0 | BH24: 0 | BI24: 0 | BJ24: 0 | BK24: 0 | BL24: 0 | BM24: 0 | BN24: 0 | BO24: 0 | BP24: 0 | BQ24: 0 | BR24: 0 | BS24: 0 | BT24: 0 | BU24: 0 | BV24: 0 | BW24: 0
B25: =tblIndicators!#REF! ->  | F25: =tblIndicators!#REF! ->  | H25: =tblIndicators!#REF! ->  | K25: =IF(uxb_works!$B$47=1,1,0) -> 0 | L25: =tblIndicators!#REF! ->  | N25: =iScores!N20 -> 0 | BD25: =CHOOSE($AV$1,0,IF(BD$10=0,0,IF(V25<=$AX$1,1,IF(V25<=$AY$1,2,3))),IF(BD$10=0,0,IF(V25<=$AX$1,4,IF(V25<=$AY$1,5,6)))) -> 0 | BE25: =CHOOSE($AV$1,0,IF(BE$10=0,0,IF(W25<=$AX$1,1,IF(W25<=$AY$1,2,3))),IF(BE$10=0,0,IF(W25<=$AX$1,4,IF(W25<=$AY$1,5,6)))) -> 0 | BF25: =CHOOSE($AV$1,0,IF(BF$10=0,0,IF(X25<=$AX$1,1,IF(X25<=$AY$1,2,3))),IF(BF$10=0,0,IF(X25<=$AX$1,4,IF(X25<=$AY$1,5,6)))) -> 0 | BG25: =CHOOSE($AV$1,0,IF(BG$10=0,0,IF(Y25<=$AX$1,1,IF(Y25<=$AY$1,2,3))),IF(BG$10=0,0,IF(Y25<=$AX$1,4,IF(Y25<=$AY$1,5,6)))) -> 0 | BH25: =CHOOSE($AV$1,0,IF(BH$10=0,0,IF(Z25<=$AX$1,1,IF(Z25<=$AY$1,2,3))),IF(BH$10=0,0,IF(Z25<=$AX$1,4,IF(Z25<=$AY$1,5,6)))) -> 0 | BI25: =CHOOSE($AV$1,0,IF(BI$10=0,0,IF(AA25<=$AX$1,1,IF(AA25<=$AY$1,2,3))),IF(BI$10=0,0,IF(AA25<=$AX$1,4,IF(AA25<=$AY$1,5,6)))) -> 0 | BJ25: =CHOOSE($AV$1,0,IF(BJ$10=0,0,IF(AB25<=$AX$1,1,IF(AB25<=$AY$1,2,3))),IF(BJ$10=0,0,IF(AB25<=$AX$1,4,IF(AB25<=$AY$1,5,6)))) -> 0 | BK25: =CHOOSE($AV$1,0,IF(BK$10=0,0,IF(AC25<=$AX$1,1,IF(AC25<=$AY$1,2,3))),IF(BK$10=0,0,IF(AC25<=$AX$1,4,IF(AC25<=$AY$1,5,6)))) -> 0 | BL25: =CHOOSE($AV$1,0,IF(BL$10=0,0,IF(AD25<=$AX$1,1,IF(AD25<=$AY$1,2,3))),IF(BL$10=0,0,IF(AD25<=$AX$1,4,IF(AD25<=$AY$1,5,6)))) -> 0 | BM25: =CHOOSE($AV$1,0,IF(BM$10=0,0,IF(AE25<=$AX$1,1,IF(AE25<=$AY$1,2,3))),IF(BM$10=0,0,IF(AE25<=$AX$1,4,IF(AE25<=$AY$1,5,6)))) -> 0 | BN25: =CHOOSE($AV$1,0,IF(BN$10=0,0,IF(AF25<=$AX$1,1,IF(AF25<=$AY$1,2,3))),IF(BN$10=0,0,IF(AF25<=$AX$1,4,IF(AF25<=$AY$1,5,6)))) -> 0 | BO25: =CHOOSE($AV$1,0,IF(BO$10=0,0,IF(AG25<=$AX$1,1,IF(AG25<=$AY$1,2,3))),IF(BO$10=0,0,IF(AG25<=$AX$1,4,IF(AG25<=$AY$1,5,6)))) -> 0 | BP25: =CHOOSE($AV$1,0,IF(BP$10=0,0,IF(AH25<=$AX$1,1,IF(AH25<=$AY$1,2,3))),IF(BP$10=0,0,IF(AH25<=$AX$1,4,IF(AH25<=$AY$1,5,6)))) -> 0 | BQ25: =CHOOSE($AV$1,0,IF(BQ$10=0,0,IF(AI25<=$AX$1,1,IF(AI25<=$AY$1,2,3))),IF(BQ$10=0,0,IF(AI25<=$AX$1,4,IF(AI25<=$AY$1,5,6)))) -> 0 | BR25: =CHOOSE($AV$1,0,IF(BR$10=0,0,IF(AJ25<=$AX$1,1,IF(AJ25<=$AY$1,2,3))),IF(BR$10=0,0,IF(AJ25<=$AX$1,4,IF(AJ25<=$AY$1,5,6)))) -> 0 | BS25: =CHOOSE($AV$1,0,IF(BS$10=0,0,IF(AK25<=$AX$1,1,IF(AK25<=$AY$1,2,3))),IF(BS$10=0,0,IF(AK25<=$AX$1,4,IF(AK25<=$AY$1,5,6)))) -> 0 | BT25: =CHOOSE($AV$1,0,IF(BT$10=0,0,IF(AL25<=$AX$1,1,IF(AL25<=$AY$1,2,3))),IF(BT$10=0,0,IF(AL25<=$AX$1,4,IF(AL25<=$AY$1,5,6)))) -> 0 | BU25: =CHOOSE($AV$1,0,IF(BU$10=0,0,IF(AM25<=$AX$1,1,IF(AM25<=$AY$1,2,3))),IF(BU$10=0,0,IF(AM25<=$AX$1,4,IF(AM25<=$AY$1,5,6)))) -> 0 | BV25: =CHOOSE($AV$1,0,IF(BV$10=0,0,IF(AN25<=$AX$1,1,IF(AN25<=$AY$1,2,3))),IF(BV$10=0,0,IF(AN25<=$AX$1,4,IF(AN25<=$AY$1,5,6)))) -> 0 | BW25: =CHOOSE($AV$1,0,IF(BW$10=0,0,IF(AO25<=$AX$1,1,IF(AO25<=$AY$1,2,3))),IF(BW$10=0,0,IF(AO25<=$AX$1,4,IF(AO25<=$AY$1,5,6)))) -> 0
B26: =tblIndicators!#REF! ->  | F26: =tblIndicators!#REF! ->  | H26: =tblIndicators!#REF! ->  | K26: =IF(uxb_works!$B$47=1,1,0) -> 0 | L26: 0 | N26: =iScores!N21 -> 0 | AX26: =CHOOSE($AV$1,0,IF(AX$10=0,0,IF(P26<=$AX$1,1,IF(P26<=$AY$1,2,3))),IF(AX$10=0,0,IF(P26<=$AX$1,4,IF(P26<=$AY$1,5,6)))) -> 0 | AY26: =CHOOSE($AV$1,0,IF(AY$10=0,0,IF(Q26<=$AX$1,1,IF(Q26<=$AY$1,2,3))),IF(AY$10=0,0,IF(Q26<=$AX$1,4,IF(Q26<=$AY$1,5,6)))) -> 0 | AZ26: =CHOOSE($AV$1,0,IF(AZ$10=0,0,IF(R26<=$AX$1,1,IF(R26<=$AY$1,2,3))),IF(AZ$10=0,0,IF(R26<=$AX$1,4,IF(R26<=$AY$1,5,6)))) -> 0 | BA26: =CHOOSE($AV$1,0,IF(BA$10=0,0,IF(S26<=$AX$1,1,IF(S26<=$AY$1,2,3))),IF(BA$10=0,0,IF(S26<=$AX$1,4,IF(S26<=$AY$1,5,6)))) -> 0 | BB26: =CHOOSE($AV$1,0,IF(BB$10=0,0,IF(T26<=$AX$1,1,IF(T26<=$AY$1,2,3))),IF(BB$10=0,0,IF(T26<=$AX$1,4,IF(T26<=$AY$1,5,6)))) -> 0 | BC26: =CHOOSE($AV$1,0,IF(BC$10=0,0,IF(U26<=$AX$1,1,IF(U26<=$AY$1,2,3))),IF(BC$10=0,0,IF(U26<=$AX$1,4,IF(U26<=$AY$1,5,6)))) -> 0 | BD26: 0 | BE26: 0 | BF26: 0 | BG26: 0 | BH26: 0 | BI26: 0 | BJ26: 0 | BK26: 0 | BL26: 0 | BM26: 0 | BN26: 0 | BO26: 0 | BP26: 0 | BQ26: 0 | BR26: 0 | BS26: 0 | BT26: 0 | BU26: 0 | BV26: 0 | BW26: 0
B27: =tblIndicators!#REF! ->  | F27: =tblIndicators!#REF! ->  | H27: =tblIndicators!#REF! ->  | K27: =IF(uxb_works!$B$47=1,1,0) -> 0 | L27: =tblIndicators!#REF! ->  | N27: =iScores!N22 -> 0 | AX27: 0 | AY27: 0 | AZ27: 0 | BA27: 0 | BB27: 0 | BC27: 0 | BD27: 0 | BE27: 0 | BF27: 0 | BG27: 0 | BH27: 0 | BI27: 0 | BJ27: 0 | BK27: 0 | BL27: 0 | BM27: 0 | BN27: 0 | BO27: 0 | BP27: 0 | BQ27: 0 | BR27: 0 | BS27: 0 | BT27: 0 | BU27: 0 | BV27: 0 | BW27: 0
B28: =tblIndicators!#REF! ->  | F28: =tblIndicators!#REF! ->  | H28: =tblIndicators!#REF! ->  | K28: =IF(uxb_works!$B$47=1,1,0) -> 0 | L28: =tblIndicators!#REF! ->  | N28: =iScores!N23 -> 0 | AX28: 0 | AY28: 0 | AZ28: 0 | BA28: 0 | BB28: 0 | BC28: 0 | BD28: 0 | BE28: 0 | BF28: 0 | BG28: 0 | BH28: 0 | BI28: 0 | BJ28: 0 | BK28: 0 | BL28: 0 | BM28: 0 | BN28: 0 | BO28: 0 | BP28: 0 | BQ28: 0 | BR28: 0 | BS28: 0 | BT28: 0 | BU28: 0 | BV28: 0 | BW28: 0
B29: =tblIndicators!#REF! ->  | F29: =tblIndicators!#REF! ->  | H29: =tblIndicators!#REF! ->  | K29: =IF(uxb_works!$B$47=1,1,0) -> 0 | L29: =tblIndicators!#REF! ->  | N29: =iScores!N24 -> 0 | AX29: 0 | AY29: 0 | AZ29: 0 | BA29: 0 | BB29: 0 | BC29: 0 | BD29: 0 | BE29: 0 | BF29: 0 | BG29: 0 | BH29: 0 | BI29: 0 | BJ29: 0 | BK29: 0 | BL29: 0 | BM29: 0 | BN29: 0 | BO29: 0 | BP29: 0 | BQ29: 0 | BR29: 0 | BS29: 0 | BT29: 0 | BU29: 0 | BV29: 0 | BW29: 0
B30: =tblIndicators!#REF! ->  | F30: =tblIndicators!#REF! ->  | H30: =tblIndicators!#REF! ->  | K30: =IF(uxb_works!$B$47=1,1,0) -> 0 | L30: =tblIndicators!#REF! ->  | N30: =iScores!N25 -> 0 | AX30: 0 | AY30: 0 | AZ30: 0 | BA30: 0 | BB30: 0 | BC30: 0 | BD30: 0 | BE30: 0 | BF30: 0 | BG30: 0 | BH30: 0 | BI30: 0 | BJ30: 0 | BK30: 0 | BL30: 0 | BM30: 0 | BN30: 0 | BO30: 0 | BP30: 0 | BQ30: 0 | BR30: 0 | BS30: 0 | BT30: 0 | BU30: 0 | BV30: 0 | BW30: 0
B31: =tblIndicators!#REF! ->  | F31: =tblIndicators!#REF! ->  | H31: =tblIndicators!#REF! ->  | K31: =IF(uxb_works!$B$47=1,1,0) -> 0 | L31: =tblIndicators!#REF! ->  | N31: =iScores!N26 -> 0 | AX31: 0 | AY31: 0 | AZ31: 0 | BA31: 0 | BB31: 0 | BC31: 0 | BD31: 0 | BE31: 0 | BF31: 0 | BG31: 0 | BH31: 0 | BI31: 0 | BJ31: 0 | BK31: 0 | BL31: 0 | BM31: 0 | BN31: 0 | BO31: 0 | BP31: 0 | BQ31: 0 | BR31: 0 | BS31: 0 | BT31: 0 | BU31: 0 | BV31: 0 | BW31: 0
B32: =tblIndicators!#REF! ->  | F32: =tblIndicators!#REF! ->  | H32: =tblIndicators!#REF! ->  | K32: =IF(uxb_works!$B$47=1,1,0) -> 0 | L32: =tblIndicators!#REF! ->  | N32: =iScores!N27 -> 0 | AX32: 0 | AY32: 0 | AZ32: 0 | BA32: 0 | BB32: 0 | BC32: 0 | BD32: 0 | BE32: 0 | BF32: 0 | BG32: 0 | BH32: 0 | BI32: 0 | BJ32: 0 | BK32: 0 | BL32: 0 | BM32: 0 | BN32: 0 | BO32: 0 | BP32: 0 | BQ32: 0 | BR32: 0 | BS32: 0 | BT32: 0 | BU32: 0 | BV32: 0 | BW32: 0
B33: =tblIndicators!#REF! ->  | F33: =tblIndicators!#REF! ->  | H33: =tblIndicators!#REF! ->  | K33: =IF(uxb_works!$B$47=1,1,0) -> 0 | L33: =tblIndicators!#REF! ->  | N33: =iScores!N28 -> 0 | AX33: 0 | AY33: 0 | AZ33: 0 | BA33: 0 | BB33: 0 | BC33: 0 | BD33: 0 | BE33: 0 | BF33: 0 | BG33: 0 | BH33: 0 | BI33: 0 | BJ33: 0 | BK33: 0 | BL33: 0 | BM33: 0 | BN33: 0 | BO33: 0 | BP33: 0 | BQ33: 0 | BR33: 0 | BS33: 0 | BT33: 0 | BU33: 0 | BV33: 0 | BW33: 0
B34: =tblIndicators!#REF! ->  | F34: =tblIndicators!#REF! ->  | H34: =tblIndicators!#REF! ->  | K34: =IF(uxb_works!$B$47=1,1,0) -> 0 | L34: =tblIndicators!#REF! ->  | N34: =iScores!N29 -> 0 | AX34: 0 | AY34: 0 | AZ34: 0 | BA34: 0 | BB34: 0 | BC34: 0 | BD34: 0 | BE34: 0 | BF34: 0 | BG34: 0 | BH34: 0 | BI34: 0 | BJ34: 0 | BK34: 0 | BL34: 0 | BM34: 0 | BN34: 0 | BO34: 0 | BP34: 0 | BQ34: 0 | BR34: 0 | BS34: 0 | BT34: 0 | BU34: 0 | BV34: 0 | BW34: 0
B35: =tblIndicators!#REF! ->  | F35: =tblIndicators!#REF! ->  | H35: =tblIndicators!#REF! ->  | K35: =IF(uxb_works!$B$47=1,1,0) -> 0 | L35: =tblIndicators!#REF! ->  | N35: =iScores!N30 -> 0 | AX35: 0 | AY35: 0 | AZ35: 0 | BA35: 0 | BB35: 0 | BC35: 0 | BD35: 0 | BE35: 0 | BF35: 0 | BG35: 0 | BH35: 0 | BI35: 0 | BJ35: 0 | BK35: 0 | BL35: 0 | BM35: 0 | BN35: 0 | BO35: 0 | BP35: 0 | BQ35: 0 | BR35: 0 | BS35: 0 | BT35: 0 | BU35: 0 | BV35: 0 | BW35: 0
B36: =tblIndicators!#REF! ->  | F36: =tblIndicators!#REF! ->  | H36: =tblIndicators!#REF! ->  | K36: =IF(uxb_works!$B$47=1,1,0) -> 0 | L36: =tblIndicators!#REF! ->  | N36: =iScores!N31 -> 0 | AX36: 0 | AY36: 0 | AZ36: 0 | BA36: 0 | BB36: 0 | BC36: 0 | BD36: 0 | BE36: 0 | BF36: 0 | BG36: 0 | BH36: 0 | BI36: 0 | BJ36: 0 | BK36: 0 | BL36: 0 | BM36: 0 | BN36: 0 | BO36: 0 | BP36: 0 | BQ36: 0 | BR36: 0 | BS36: 0 | BT36: 0 | BU36: 0 | BV36: 0 | BW36: 0
B37: =tblIndicators!#REF! ->  | F37: =tblIndicators!#REF! ->  | H37: =tblIndicators!#REF! ->  | K37: =IF(uxb_works!$B$47=1,1,0) -> 0 | L37: =tblIndicators!#REF! ->  | N37: =iScores!N32 -> 0 | AX37: 0 | AY37: 0 | AZ37: 0 | BA37: 0 | BB37: 0 | BC37: 0 | BD37: 0 | BE37: 0 | BF37: 0 | BG37: 0 | BH37: 0 | BI37: 0 | BJ37: 0 | BK37: 0 | BL37: 0 | BM37: 0 | BN37: 0 | BO37: 0 | BP37: 0 | BQ37: 0 | BR37: 0 | BS37: 0 | BT37: 0 | BU37: 0 | BV37: 0 | BW37: 0
B38: =tblIndicators!#REF! ->  | F38: =tblIndicators!#REF! ->  | H38: =tblIndicators!#REF! ->  | K38: =IF(uxb_works!$B$47=1,1,0) -> 0 | L38: =tblIndicators!#REF! ->  | N38: =iScores!N33 -> 0 | AX38: 0 | AY38: 0 | AZ38: 0 | BA38: 0 | BB38: 0 | BC38: 0 | BD38: 0 | BE38: 0 | BF38: 0 | BG38: 0 | BH38: 0 | BI38: 0 | BJ38: 0 | BK38: 0 | BL38: 0 | BM38: 0 | BN38: 0 | BO38: 0 | BP38: 0 | BQ38: 0 | BR38: 0 | BS38: 0 | BT38: 0 | BU38: 0 | BV38: 0 | BW38: 0
B39: =tblIndicators!#REF! ->  | F39: =tblIndicators!#REF! ->  | H39: =tblIndicators!#REF! ->  | K39: =IF(uxb_works!$B$47=1,1,0) -> 0 | L39: =tblIndicators!#REF! ->  | N39: =iScores!N34 -> 0 | AX39: 0 | AY39: 0 | AZ39: 0 | BA39: 0 | BB39: 0 | BC39: 0 | BD39: 0 | BE39: 0 | BF39: 0 | BG39: 0 | BH39: 0 | BI39: 0 | BJ39: 0 | BK39: 0 | BL39: 0 | BM39: 0 | BN39: 0 | BO39: 0 | BP39: 0 | BQ39: 0 | BR39: 0 | BS39: 0 | BT39: 0 | BU39: 0 | BV39: 0 | BW39: 0
B40: =tblIndicators!#REF! ->  | F40: =tblIndicators!#REF! ->  | H40: =tblIndicators!#REF! ->  | K40: =IF(uxb_works!$B$47=1,1,0) -> 0 | L40: =tblIndicators!#REF! ->  | N40: =iScores!N35 -> 0 | AX40: 0 | AY40: 0 | AZ40: 0 | BA40: 0 | BB40: 0 | BC40: 0 | BD40: 0 | BE40: 0 | BF40: 0 | BG40: 0 | BH40: 0 | BI40: 0 | BJ40: 0 | BK40: 0 | BL40: 0 | BM40: 0 | BN40: 0 | BO40: 0 | BP40: 0 | BQ40: 0 | BR40: 0 | BS40: 0 | BT40: 0 | BU40: 0 | BV40: 0 | BW40: 0
B41: =tblIndicators!#REF! ->  | F41: =tblIndicators!#REF! ->  | H41: =tblIndicators!#REF! ->  | K41: =IF(uxb_works!$B$47=1,1,0) -> 0 | L41: =tblIndicators!#REF! ->  | N41: =iScores!N36 -> 0 | AX41: 0 | AY41: 0 | AZ41: 0 | BA41: 0 | BB41: 0 | BC41: 0 | BD41: 0 | BE41: 0 | BF41: 0 | BG41: 0 | BH41: 0 | BI41: 0 | BJ41: 0 | BK41: 0 | BL41: 0 | BM41: 0 | BN41: 0 | BO41: 0 | BP41: 0 | BQ41: 0 | BR41: 0 | BS41: 0 | BT41: 0 | BU41: 0 | BV41: 0 | BW41: 0
B42: =tblIndicators!#REF! ->  | F42: =tblIndicators!#REF! ->  | H42: =tblIndicators!#REF! ->  | K42: =IF(uxb_works!$B$47=1,1,0) -> 0 | L42: =tblIndicators!#REF! ->  | N42: =iScores!N37 -> 0 | AX42: 0 | AY42: 0 | AZ42: 0 | BA42: 0 | BB42: 0 | BC42: 0 | BD42: 0 | BE42: 0 | BF42: 0 | BG42: 0 | BH42: 0 | BI42: 0 | BJ42: 0 | BK42: 0 | BL42: 0 | BM42: 0 | BN42: 0 | BO42: 0 | BP42: 0 | BQ42: 0 | BR42: 0 | BS42: 0 | BT42: 0 | BU42: 0 | BV42: 0 | BW42: 0
B43: =tblIndicators!#REF! ->  | F43: =tblIndicators!#REF! ->  | H43: =tblIndicators!#REF! ->  | K43: =IF(uxb_works!$B$47=1,1,0) -> 0 | L43: =tblIndicators!#REF! ->  | N43: =iScores!N38 -> 0 | AX43: 0 | AY43: 0 | AZ43: 0 | BA43: 0 | BB43: 0 | BC43: 0 | BD43: 0 | BE43: 0 | BF43: 0 | BG43: 0 | BH43: 0 | BI43: 0 | BJ43: 0 | BK43: 0 | BL43: 0 | BM43: 0 | BN43: 0 | BO43: 0 | BP43: 0 | BQ43: 0 | BR43: 0 | BS43: 0 | BT43: 0 | BU43: 0 | BV43: 0 | BW43: 0
B44: =tblIndicators!#REF! ->  | F44: =tblIndicators!#REF! ->  | H44: =tblIndicators!#REF! ->  | K44: =IF(uxb_works!$B$47=1,1,0) -> 0 | L44: =tblIndicators!#REF! ->  | N44: =iScores!N39 -> 0 | AX44: 0 | AY44: 0 | AZ44: 0 | BA44: 0 | BB44: 0 | BC44: 0 | BD44: 0 | BE44: 0 | BF44: 0 | BG44: 0 | BH44: 0 | BI44: 0 | BJ44: 0 | BK44: 0 | BL44: 0 | BM44: 0 | BN44: 0 | BO44: 0 | BP44: 0 | BQ44: 0 | BR44: 0 | BS44: 0 | BT44: 0 | BU44: 0 | BV44: 0 | BW44: 0

Sheet tblIndicators (hidden)
A1: line | B1: IS_BG | C1: domain_Number | E1: INDI_CODE | F1: PARENT_CODE | G1: DEPTH | I1: INDICATOR_DISPLAY_LONG | J1: INDICATOR_DROPDOWN_(SHORT) | K1: Very Short Names | L1: WeightedSum Definition | M1: Definition | O1: Compound description | P1: Question | Q1: Indicators with Country text | S1: Source | U1: Percentile technique 1 = fixed range 2 = equal groups | V1: Indicator Style For Indi Rank display | W1: Indicator Style For Indi Rank text | X1: Qual/Quant | Y1: Scoring | AA1: Year | AB1: HIGh =Good | AC1: Format | AD1: Data D.P. | AE1: sort by data = 1 score = 2 | AF1: HIGH_IS | AG1: NORM_ID (1=sumproduct, 2=min max set by data values, 3=min max set by user here) | AH1: Set min if NORM_ID =3 | AI1: Set max if NORM_ID =3 | AJ1: eg data | AL1: REF_INDI | AM1: REF_INDI | AN1: ONDI_VERY_SHORT | AO1: PARENT_CODE_NAME
A2: 1 | B2: 0 | E2: OVERALL | F2: OVERALL SCORE | G2: 0 | I2: OVERALL SCORE | J2: OVERALL SCORE | L2: ="The total score is the weighted sum of the following category scores: "&AM3&" "&AM8&" "&AM12&"" -> The total score is the weighted sum of the following category scores: 1) IMPACT SCORE 2) SCALABILITY SCORE 3) INVESTMENT SCORE | N2: =LEN(J2) -> 13 | O2: =L2 -> The total score is the weighted sum of the following category scores: 1) IMPACT SCORE 2) SCALABILITY SCORE 3) INVESTMENT SCORE | S2: EI Calculation | U2: 1 | V2: 4 | W2: =IF(AG2=1,1,2) -> 1 | AC2: =CHOOSE(AD2+1,"#,##0","#,##0.0","#,##0.00","#,##0.000","#,##0.0000","#,##0.00000") -> #,##0.0 | AD2: =CHOOSE(AG2,1,0,1) -> 1 | AE2: 2 | AG2: 1 | AL2: TOTAL SCORE | AM2: TOTAL SCORE | AN2: =K2 -> 0 | AO2: =AM2 -> TOTAL SCORE | AS2: 1
A3: =A2+1 -> 2 | B3: 0 | C3: =IFERROR(VALUE(LEFT(D3,1)),LEFT(D3,1)) -> 1 | D3: 1 | E3: IMPA | F3: =$E$2 -> OVERALL | G3: 1 | H3: 1 | I3: Impact Score | J3: Impact Score | K3: =H3 -> 1 | L3: ="The impact score is the unweighted sum of the following indicator scores: "&AM4&" "&AM5&" "&AM6&" "&AM7&"" -> The impact score is the unweighted sum of the following indicator scores: 1.1) Comparability with traditional alternative 1.2) Carbon emissions reduction 1.3) Potential additional benefits 1.4) Potential harms / consequences | N3: =LEN(J3) -> 12 | O3: =CHOOSE(AG3,L3,P3,M3&" "&P3) -> The impact score is the unweighted sum of the following indicator scores: 1.1) Comparability with traditional alternative 1.2) Carbon emissions reduction 1.3) Potential additional benefits 1.4) Potential harms / consequences | S3: EI Calculation | U3: 1 | V3: 4 | W3: =IF(AG3=1,1,2) -> 1 | AC3: =CHOOSE(AD3+1,"#,##0","#,##0.0","#,##0.00","#,##0.000","#,##0.0000","#,##0.00000") -> #,##0.0 | AD3: 1 | AE3: 2 | AG3: 1 | AL3: =IF(H3="",I3,CONCATENATE(D3,") ",IF(G3>=2,I3,UPPER(I3)))) -> 1) IMPACT SCORE | AM3: =IF(H3="",J3,CONCATENATE(D3,") ",IF(G3>=2,J3,UPPER(J3)))) -> 1) IMPACT SCORE | AN3: =IF(H3="",K3,IF(G3=1,UPPER(K3),D3)) -> 1 | AO3: =INDEX($AM$2:$AM$15,MATCH(F3,$E$2:$E$15,0)) -> TOTAL SCORE | AS3: 1
A4: =A3+1 -> 3 | B4: 0 | C4: =IFERROR(VALUE(LEFT(D4,1)),LEFT(D4,1)) -> 1 | D4: 1.1 | E4: =$E$3&H4 -> IMPA1_1 | F4: =$E$3 -> IMPA | G4: 2 | H4: 1_1 | I4: Evidence that the technology operates as well-as or better than the ‘traditional’ alternative | J4: Comparability with traditional alternative | K4: =D4 -> 1.1 | L4: - | N4: 42 | O4: =CHOOSE(AG4,L4,P4,M4&" "&P4) ->  | U4: 1 | V4: 4 | W4: 3 | AB4: Higher = better | AC4: #,##0 | AD4: 0 | AE4: 2 | AF4: =IF(AB4="","",IF(AB4="High = good",0,1)) -> 1 | AG4: 2 | AH4: 0 | AI4: 1 | AL4: =IF(H4="",I4,CONCATENATE(D4,") ",IF(G4>=2,I4,UPPER(I4)))) -> 1.1) Evidence that the technology operates as well-as or better than the ‘traditional’ alternative | AM4: =IF(H4="",J4,CONCATENATE(D4,") ",IF(G4>=2,J4,UPPER(J4)))) -> 1.1) Comparability with traditional alternative | AN4: =IF(H4="",K4,IF(G4=1,UPPER(K4),D4)) -> 1.1 | AO4: 1) IMPACT SCORE | AS4: 1
A5: 4 | B5: 0 | C5: 1 | D5: 1.2 | E5: =$E$3&H5 -> IMPA1_2 | F5: =$E$3 -> IMPA | G5: 2 | H5: 1_2 | I5: Is there credible evidence that the technology will help reduce carbon emissions? | J5: Carbon emissions reduction | K5: =D5 -> 1.2 | L5: - | N5: 27 | U5: 1 | V5: 4 | W5: 3 | AB5: Higher = better | AC5: #,##0 | AD5: 0 | AE5: 2 | AF5: =IF(AB5="","",IF(AB5="High = good",0,1)) -> 1 | AG5: 2 | AL5: 1.2) Is there credible evidence that the technology will help reduce carbon emissions? | AM5: 1.2) Carbon emissions reduction | AN5: 1.2 | AO5: 1) IMPACT SCORE | AS5: 1
A6: 5 | B6: 0 | C6: 1 | D6: 1.3 | E6: IMPA1_3 | F6: IMPA | G6: 2 | H6: 1_3 | I6: Evidence that technologies offer additional benefits beyond cutting emissions | J6: Potential additional benefits | K6: 1.3 | L6: - | N6: 30 | U6: 1 | V6: =IF($X6=2,1,4) -> 4 | W6: 3 | AB6: Higher = better | AC6: #,##0 | AD6: 0 | AE6: 2 | AF6: =IF(AB6="","",IF(AB6="Higher = better",0,1)) -> 0 | AG6: 2 | AH6: 0 | AI6: 1 | AL6: =IF(H6="",I6,CONCATENATE(D6,") ",IF(G6>=2,I6,UPPER(I6)))) -> 1.3) Evidence that technologies offer additional benefits beyond cutting emissions | AM6: 1.3) Potential additional benefits | AN6: 1.3 | AO6: 1) IMPACT SCORE | AS6: 1
A7: 6 | B7: 0 | C7: 1 | D7: 1.4 | E7: IMPA1_4 | F7: IMPA | G7: 2 | H7: 1_4 | I7: Evidence that the technology could cause harm or other unintended consequences | J7: Potential harms / consequences | K7: 1.4 | N7: 30 | U7: 1 | V7: 4 | W7: 3 | AB7: Higher = better | AC7: #,##0 | AD7: 0 | AE7: 2 | AF7: =IF(AB7="","",IF(AB7="Higher = better",0,1)) -> 0 | AG7: 2 | AH7: 0 | AI7: 4 | AL7: 1.4) Evidence that the technology could cause harm or other unintended consequences | AM7: 1.4) Potential harms / consequences | AN7: 1.4 | AO7: 1) IMPACT SCORE | AS7: 1
A8: 7 | B8: 0 | C8: 2 | D8: 2 | E8: SCAL | F8: =$E$2 -> OVERALL | G8: 1 | H8: 2 | I8: Scalability Score | J8: Scalability Score | K8: 2 | L8: ="The Scalability score is the unweighted sum of the following indicator scores: "&AM9&" "&AM10&" "&AM11&"" -> The Scalability score is the unweighted sum of the following indicator scores: 2.1) Current state of development 2.2) Initial investment costs 2.3) Ease of integration | N8: 17 | O8: The Scalability score is the unweighted sum of the following indicator scores: 2.1) Current state of development 2.2) Initial investment costs 2.3) Ease of integration | S8: EI Calculation | U8: 1 | V8: 4 | W8: 1 | AB8: Higher = better | AC8: #,##0.0 | AD8: =CHOOSE(AG8,1,1,) -> 1 | AE8: 2 | AF8: 0 | AG8: 1 | AH8: 0 | AI8: 2 | AL8: 2) SCALABILITY SCORE | AM8: 2) SCALABILITY SCORE | AN8: 2 | AO8: TOTAL SCORE | AS8: 1
A9: 8 | B9: 0 | C9: 2 | D9: 2.1 | E9: =$E$8&H9 -> SCAL2_1 | F9: =$E$8 -> SCAL | G9: 2 | H9: 2_1 | I9: Evidence of the current state of development for the technology. e.g. evidence of Research / trial phase or availability to purchase across countries | J9: Current state of development | K9: 2.1 | N9: 28 | U9: 1 | V9: 4 | W9: 3 | AB9: Higher = better | AC9: #,##0 | AD9: 0 | AE9: 2 | AF9: 0 | AG9: 2 | AL9: 2.1) Evidence of the current state of development for the technology. e.g. evidence of Research / trial phase or availability to purchase across countries | AM9: 2.1) Current state of development | AN9: 2.1 | AO9: 2) SCALABILITY SCORE | AS9: 1
A10: 9 | B10: 0 | C10: 2 | D10: 2.2 | E10: =$E$8&H10 -> SCAL2_2 | F10: =$E$8 -> SCAL | G10: 2 | H10: 2_2 | I10: Evidence of the initial investment costs for governments or individuals compared to other technologies as a % of overall city expenditure | J10: Initial investment costs | K10: 2.2 | N10: 24 | U10: 1 | V10: 4 | W10: 3 | AB10: Higher = better | AC10: #,##0 | AD10: 0 | AE10: 2 | AF10: 0 | AG10: 2 | AH10: 0 | AI10: 1 | AL10: 2.2) Evidence of the initial investment costs for governments or individuals compared to other technologies as a % of overall city expenditure | AM10: 2.2) Initial investment costs | AN10: 2.2 | AO10: 2) SCALABILITY SCORE | AS10: 1
A11: 10 | B11: 0 | C11: 2 | D11: 2.3 | E11: SCAL2_3 | F11: SCAL | G11: 2 | H11: 2_3 | I11: Evidence of this technology’s ease of integration into existing city infrastructure based on additional infrastructure required to integrate the technology into a city, in addition to the technology itself. | J11: Ease of integration | K11: 2.3 | N11: 19 | U11: 1 | V11: 4 | W11: 3 | AB11: Higher = better | AC11: #,##0 | AD11: 0 | AE11: 2 | AF11: 0 | AG11: 2 | AH11: 0 | AI11: 1 | AL11: 2.3) Evidence of this technology’s ease of integration into existing city infrastructure based on additional infrastructure required to integrate the technology into a city, in addition to the technology itself. | AM11: 2.3) Ease of integration | AN11: 2.3 | AO11: 2) SCALABILITY SCORE | AS11: 1
A12: 11 | B12: 0 | C12: 3 | D12: 3 | E12: INVE | F12: =$E$2 -> OVERALL | G12: 1 | H12: 3 | I12: Investment Score | J12: Investment Score | K12: 3 | L12: ="The Investment score is the unweighted sum of the following indicator scores: "&AM13&" "&AM14&" "&AM15&"" -> The Investment score is the unweighted sum of the following indicator scores: 3.1) Current level of investment 3.2) Availability of private funding 3.3) Availability of public funding | N12: 16 | O12: The Investment score is the unweighted sum of the following indicator scores: 3.1) Current level of investment 3.2) Availability of private funding 3.3) Availability of public funding | S12: EI Calculation | U12: 1 | V12: 4 | W12: 1 | AB12: Higher = better | AC12: #,##0.0 | AD12: 1 | AE12: 2 | AF12: 0 | AG12: 1 | AL12: 3) INVESTMENT SCORE | AM12: 3) INVESTMENT SCORE | AN12: 3 | AO12: TOTAL SCORE | AS12: 1
A13: 12 | B13: 0 | C13: 3 | D13: 3.1 | E13: =$E$12&H13 -> INVE3_1 | F13: =$E$12 -> INVE | G13: 2 | H13: 3_1 | I13: Evidence of the current level of investment in this technology based on $USD total equity funding amount for companies producing this technology. | J13: Current level of investment | K13: 3.1 | N13: 27 | U13: 1 | V13: 4 | W13: 3 | AB13: Higher = better | AC13: #,##0 | AD13: 0 | AE13: 2 | AF13: 0 | AG13: 2 | AH13: 0 | AI13: 1 | AL13: 3.1) Evidence of the current level of investment in this technology based on $USD total equity funding amount for companies producing this technology. | AM13: 3.1) Current level of investment | AN13: 3.1 | AO13: 3) INVESTMENT SCORE | AS13: 1
A14: 13 | B14: 0 | C14: 3 | D14: 3.2 | E14: =$E$12&H14 -> INVE3_2 | F14: =$E$12 -> INVE | G14: 2 | H14: 3_2 | I14: Evidence of the availability of private funding for this technology based on total number of investment firms and individual investors investing in companies that produce this technology. | J14: Availability of private funding | K14: 3.2 | N14: 31 | U14: 1 | V14: 4 | W14: 3 | AB14: Higher = better | AC14: #,##0 | AD14: 0 | AE14: 2 | AF14: 0 | AG14: 2 | AH14: 0 | AI14: 1 | AL14: 3.2) Evidence of the availability of private funding for this technology based on total number of investment firms and individual investors investing in companies that produce this technology. | AM14: 3.2) Availability of private funding | AN14: 3.2 | AO14: 3) INVESTMENT SCORE | AS14: 1
A15: 14 | B15: 0 | C15: 3 | D15: 3.3 | E15: INVE3_3 | F15: INVE | G15: 2 | H15: 3_3 | I15: Evidence of the availability of public funding for this technology in the form of national/regional/city regulations to support this technology / R&D such as: subsidies, tax incentives, policies & projects which promote or use it, and grants or funding bodies. | J15: Availability of public funding | K15: 3.3 | N15: 30 | U15: 1 | V15: 4 | W15: 3 | AB15: Higher = better | AC15: #,##0 | AD15: 0 | AE15: 2 | AF15: 0 | AG15: 2 | AH15: 0 | AI15: 1 | AL15: 3.3) Evidence of the availability of public funding for this technology in the form of national/regional/city regulations to support this technology / R&D such as: subsidies, tax incentives, policies & projects which promote or use it, and grants or funding bodies. | AM15: 3.3) Availability of public funding | AN15: 3.3 | AO15: 3) INVESTMENT SCORE | AS15: 1

Sheet uxb_works (hidden)
A1: TERRITORY_COUNT | B1: =COUNTA(LuCountry) -> 26 | C1: =B1 -> 26 | D1: 2 | G1: Fill | H1: Text | I1: Heatmap | J1: The heatmap option colour codes scores according to their respective buckets
A2: REGION COUNT | B2: 8
A3: MAIN_DP | B3: 1
B4: 1 | C4: 1
A5: SHOW_WEIGHT_CHANGE | C5: The active weight profile has been changed from its default setting | D5: ignore none | E5: Country Code | F5: Cnt Number | K5: LAST SAVED
A6: COUNTRY_HIGHLIGHT_DD | B6: 1 | C6: <none> | D6: =INDEX(LuCountry,B6) -> Green roofs | E6: RUS | F6: =IF(ISERROR(MATCH($E6,tblTerritories!$B$3:$B$28,0)+1),1,MATCH($E6,tblTerritories!$B$3:$B$28,0)+1) -> 1 | H6: <none> | K6: 15
A7: COUNTRY_HIGHLIGHT_ID | B7: =B6-1 -> 0
A8: GROUP_HIGHLIGHT_DD_PLUS_NONE | B8: 1 | C8: =INDEX(tblTerritories!$AV$3:$AV$31,B8) -> 0 | D8: =COUNTA(lu_Highlight) -> 5
A9: GROUP_HIGHLIGHT_DD | B9: 1 | C9: =INDEX(tblTerritories!$S$4:$S$18,B9) -> All Groups
A10: GROUP_FILTER_INCOME | B10: 1 | D10: =COUNTA(lu_Filter_Income) -> 5
B11: =B10-1 -> 0
A12: GROUP_FILTER_REGION | B12: 1 | C12: =COUNTA(lu_Filter_Var) -> 5 | F12: Child | G12: Parent
A13: DATA_INDIS_ONLY | B13: 3 | C13: =_xlfn.SINGLE(INDEX(tblIndiSets!#REF!,B13)) ->  | F13: =INDEX(tblIndicators!$AL$2:$AO$15,$C$13,1) ->  | G13: =INDEX(tblIndicators!$AL$2:$AO$15,$C$13,3) -> 
B14: 2
A15: SUMMARY_LABELS | B15: 7 | C15: =INDEX(tblIndiSets!C4:C12,uxb_works!B15)&" "&E15 ->  | D15: =INDEX(tblIndiSets!$B$4:$B$12,B15) ->  | E15: =INDEX(tblIndicators!$O$2:$O$15,D15) -> 
A16: GROUP_A_SELECTION | B16: 2 | K16: =VALUE(B16&C17) -> 21 | L16: =IF(K16=11,1,IF(K16=21,2,IF(K16=12,3,4))) -> 2 | M16: =B10+B12 -> 2
A17: Regional_Group_Select | B17: FALSE | C17: 1 | D17: =INDEX(G17:H17,C17) -> World Bank Region | G17: World Bank Region | H17: WHO Region | I17: TRUE
A18: NUMBER_OF_INDICATORS+SUBS | B18: =tblIndiSets!W2 -> 14 | C18: =tblIndiSets!A11 -> 14
A19: NUMBER_OF_QUAL_INDI | B19: =COUNT(tblIndiSets!#REF!) -> 0 | L19: 1 | M19: 2 | N19: 3 | O19: 4 | P19: 5
A20: Indicator Ranking | B20: =INDEX(tblIndiSets!$W$4:$W$28,uxb_works!$B$23) -> 1 | C20: Indi Name | D20: Indi Level | E20: Format | F20: Child | G20: Parent | H20: Ref | I20: Qual_Or_Quant | J20: Band | K20: High is good | L20: 0 | M20: 1 | N20: 2 | O20: 3 | P20: 4 | Q20: =tblIndicators!AG1 -> NORM_ID (1=sumproduct, 2=min max set by data values, 3=min max set by user here) | R20: Extra Notes | S20: Extra Notes Line | T20: ISBG
A21: INDI_ID | B21: =INDEX(tblIndiSets!$W$4:$W$28,uxb_works!$B$23) -> 1 | C21: =INDEX(tblIndiSets!$E$13:$E$27,$B22) -> TOTAL SCORE | D21: =INDEX(tblIndiSets!$D$12:$D$27,$B22) -> 0 | E21: =INDEX(tblIndicators!$AC$2:$AC$16,$B22) -> #,##0.0 | F21: =IF(B22=1,"",INDEX(tblIndicators!$AL$2:$AO$15,$B22,1)) ->  | G21: =INDEX(tblIndicators!$AL$2:$AO$15,$B22,4) -> TOTAL SCORE | H21: =INDEX(tblIndicators!$H$2:$H$15,$B$22) -> 0 | I21: =INDEX(tblIndicators!$V$2:$V$15,$B$22) -> 4 | J21: =INDEX(tblIndicators!$AS$2:$AS$15,$B$22) -> 1 | K21: =IF(INDEX(tblIndicators!$AF$2:$AF$15,$B$22)="",0,INDEX(tblIndicators!$AF$2:$AF$15,$B$22)) -> 0 | L21: =INDEX(tblIndicators!$AT$2:$AX$15,uxb_works!$B$22,uxb_works!L19) -> 0 | M21: =INDEX(tblIndicators!$AT$2:$AX$15,uxb_works!$B$22,uxb_works!M19) -> 0 | N21: =INDEX(tblIndicators!$AT$2:$AX$15,uxb_works!$B$22,uxb_works!N19) -> 0 | O21: =INDEX(tblIndicators!$AT$2:$AX$15,uxb_works!$B$22,uxb_works!O19) -> 0 | P21: =INDEX(tblIndicators!$AT$2:$AX$15,uxb_works!$B$22,uxb_works!P19) -> 0 | Q21: =INDEX(tblIndicators!$AG$2:$AG$15,$B$22) -> 1 | R21: =IF(INDEX(tblIndicators!$Q$2:$Q$15,$B$22)<>0,1,0) -> 0 | S21: =INDEX(tblIndicators!$U$2:$U$15,$B$22) -> 1 | T21: =INDEX(tblIndicators!B2:B15,B22) -> 0
B22: =B21 -> 1 | C22: 1 | K22: LAST SAVED
B23: 1 | K23: 26
A24: SAVED_INDI_VALUE | B24: 12
A25: COUNTRY PROFILE | C25: Country
A26: COUNTRY1_ID | B26: 1 | C26: =INDEX(LuCountry,B26) -> Green roofs | D26: =B26 -> 1
A27: COUNTRY2_ID | B27: 3 | C27: Angola | D27: =B27-1 -> 2
A28: COUNTRY3_ID | B28: 11 | C28: Cabo Verde | D28: =B28-1 -> 10
A29: COUNTRY4_ID | B29: 15 | C29: Comoros | D29: =B29-1 -> 14
A30: COUNTRY5_ID | B30: 1 | C30: <none> | D30: =B30-1 -> 0
A31: COUNTRY6_ID | B31: 1 | C31: <none> | D31: 0
A32: CATEGORY_SELECT | B32: 1 | C32: 4 | D32: =INDEX(tblIndiSets!J5:J10,B32) -> ALL CATEGORIES | F32: =#REF! ->  | G32: =#REF! -> 
A33: IND_SUB_INDI | B33: 2
B34: 2 | C34: 1 | D34: 2 | E34: 3 | F34: 4 | G34: 6 | I34: isBG | J34: format | K34: units | L34: DP | N34: Indi or BG | O34: reset verflow
A35: INDI_1 | B35: 1 | C35: 26 | D35: 1 | E35: 24 | F35: =INDEX(tblIndicators!$AL$2:$AO$15,$D$35,2) -> TOTAL SCORE | G35: =INDEX(tblIndicators!$AL$2:$AO$15,$D$35,4) -> TOTAL SCORE | I35: =#REF! ->  | J35: =IF(INDEX(tblIndicators!$AC$2:$AC$15,$D35)="","",INDEX(tblIndicators!$AC$2:$AC$15,$D35)) -> #,##0.0 | K35: =IF(INDEX(tblIndicators!$Z$2:$Z$15,$D35)="","",INDEX(tblIndicators!$Z$2:$Z$15,$D35)) ->  | L35: =INDEX(tblIndicators!$AD$2:$AD$15,D35) -> 1 | N35: 1 | O35: =tblIndiSets!#REF! -> 
A36: INDI_2 | B36: 2 | C36: 17 | D36: 2 | E36: 24 | F36: =INDEX(tblIndicators!$AL$2:$AO$15,$D$36,2) -> 1) IMPACT SCORE | G36: =INDEX(tblIndicators!$AL$2:$AO$15,$D$36,4) -> TOTAL SCORE | I36: =#REF! ->  | J36: =IF(INDEX(tblIndicators!$AC$2:$AC$15,$D36)="","",INDEX(tblIndicators!$AC$2:$AC$15,$D36)) -> #,##0.0 | K36: =IF(INDEX(tblIndicators!$Z$2:$Z$15,D36)="","",INDEX(tblIndicators!$Z$2:$Z$15,D36)) ->  | L36: =INDEX(tblIndicators!$AD$2:$AD$15,D36) -> 1 | N36: 1 | O36: =tblIndiSets!#REF! -> 
A37: BG_DATA | B37: 140
A38: SHOW_LABELS | B38: FALSE
A39: SHOW_OUTLIERS | B39: FALSE
A41: Country_profile_extras
A42: Indi_ID | B42: 1 | C42: =COUNT(tblIndiSets!#REF!) -> 0
A43: Averages | B43: =B10 -> 1 | C43: =_xlfn.SINGLE(INDEX(tblIndiSets!#REF!,uxb_works!B43)) -> 
A44: Show_High_Low | B44: 1 | C44: =IF(B44,1,0) -> 1
B45: TRUE
A46: View_Level | B46: 5 | C46: =COUNTA(tblIndiSets!#REF!) -> 1
A47: DATA_SCORE_Toggle | B47: 2 | D47: DATA | H47: Show units | I47: Hide units
A48: SHOW_HIDE_UNITS | B48: 1 | C48: =INDEX($H$47:$I$48,B47,B48) -> Show weights | D48: SCORES | H48: Show weights | I48: Hide weights
A49: SHOW_AVERAGES | B49: TRUE | C49: =IF(B49,1,0) -> 1
A50: SHOW_SOURCE | B50: 1 | C50: =INDEX($D$50:$E$50,B50) -> Show Source | D50: Show Source | E50: Hide Source
A51: INPUT/OUTPUT | B51: FALSE | C51: =IF(B51,1,0) -> 0 | E51: =IF(B51,1,0) -> 0
A52: SHOW_HEATMAP | B52: 1
B53: 0.7 | C53: 70
B54: 0.8 | C54: 80
B55: 0.9 | C55: 90
B56: 100% (recommended) | C56: 100
B57: 1.25 | C57: 125
B59: 4 | C59: =INDEX(C53:C57,B59) -> 100
A60: ZOOM | B60: =C59 -> 100
A61: MODE | B61: PRODUCTION
A62: Filters | B62: =INDEX(lu_Filter_Income,B10) -> <no filter> | C62: =INDEX(lu_Filter_Var,B12) -> <no filter> | D62: =E62 -> 0
B64: FALSE
A65: COUNTRY_PROFILE_HIGH_LOW | B65: FALSE
A66: COUNTRY_SCORECARDS | H66: Countries in group
A67: REGION_AVERAGE_SHOW | B67: 1 | C67: =G67 -> Global Average | D67: =E67&" -I- "&I67 -> <no filter> -I- No. of technologies in this group: 26 | E67: =IF(AND(B10=1,B12=1),$B$62,IF(AND(B10=1,B12>1),"Filter by "&$C$62,IF(AND(B10>1,B12=1),"Filter by "&$B$62,"Filter by "&$B$62&" in "&$C$62))) -> <no filter> | G67: =IF(AND(B10=1,B12=1),"Global Average",IF(AND(B10=1,B12>1),"Average of "&$C$62,IF(AND(B10>1,B12=1),"Average of "&$B$62,"Average of "&$B$62&" in "&$C$62))) -> Global Average | H67: =tblTerritories!BE2 -> 26 | I67: ="No. of technologies in this group: "&H67 -> No. of technologies in this group: 26
A68: JUMP_NUMBER | B68: 24
A69: CSC_CHART_SWITCH | B69: TRUE
A70: CSC_LINE_COUNT
A71: nav_historyID | B71: 15
A72: PAGE_HOME | B72: Home,
A73: SHEET_SET_ON_OPEN | B73: Home,
A74: SHEET_SET_0 | B74: Home,Contents,
A75: SHEET_SET_1 | B75: Indicator_Ranking,Detail,Scores,
A76: SHEET_SET_2
A77: SHEET_SET_3
A78: SHEET_SET_4
A79: SHEET_SET_5
A80: SHEET_SET_6
A81: SHEET_SET_7
A82: SHEET_SET_8
A83: SHEET_SET_9
A84: SHEET_SET_10
A85: Indi-Disclaimer
A86: Map | B86: The boundaries and geographic names used in this map are for illustrative purposes and do not necessarily reflect the official positions of the research or funding organisations.
A87: Text 1 | B87: All data are normalised to a scale of 0 to 100, where 100 = best | C87: Countries are scored from 0-100, where 100 = best
A88: Text 2 | B88: ="Rank out of "&B1&" economies, 1=best; '=' denotes tied rank between two or more countries" -> Rank out of 26 economies, 1=best; '=' denotes tied rank between two or more countries
A89: SCORE_TEXT | B89: Notes … | C89: =LEN(B89) -> 7
A90: WEIGHT_TEXT
A92: TITLE | B92: Decarbonisation Technologies for Cities | J92: I button notes
A93: TITLE_PRINT_OUT | B93: Decarbonisation Technologies for Cities | D93: SELECT INDICATOR
A94: HEADER_01 | B94: MAP | C94: RESULTS | D94: TECHNOLOGY HIGHLIGHT | H94: INDEX INDICATORS (click to reset)
A95: HEADER_02 | B95: SUMMARY | C95: INSIGHTS & ANALYTICS | D95: SECTOR HIGHLIGHT | H95: BACKGROUND INDICATORS
A96: HEADER_03 | B96: TECHNOLOGY RANKING | C96: SCORES & WEIGHTS | J96: INFO_CAT_SELECT_IR
A97: HEADER_04 | B97: DETAILS | C97: PERSONALIZE
A98: HEADER_05 | B98: SCORES | E98: A | F98: B
A99: HEADER_06
A100: HEADER_07 | C100: SAVE A PROFILE | D100: BY INCOME | E100: CATEGORY (reset) | H100: BY INCOME
A101: HEADER_08 | C101: COMPARE PROFILES | D101: BY POPULATION | E101: COUNTRY | H101: BY POPULATION
A102: HEADER_09 | C102: GROUPS | D102: PERSONLISED | E102: COUNTRY 1 | H102: PERSONLISED
A103: HEADER_10 | D103: FILTER BY SECTOR | E103: COUNTRY 2
A104: HEADER_11 | D104: WEIGHTS (reset) | E104: COUNTRY 3
A105: TEST_FOR_WIN_MAC | B105: TRUE | C105: FILTER GROUPS | D105: SELECT LEVEL (reset) | E105: COUNTRY 4
A106: PAGE_MACROS_ON_OFF | B106: 2 | D106: SELECT LEVEL (reset)
A107: Country_Compare | D107: INDICATOR TO CORRELATE WITH. (reset)
A108: Indicator_Selecr | B108: 54
A109: Position Select | B109: 6
A111: SHOW_EXTRA_MENU | B111: 1 | C111: =IF(B111=1,E111,D111) -> Show more options | D111: Hide these options | E111: Show more options
A112: SHOW_HELP_BAR | B112: 1 | C112: =IF(B112,E112,D112) -> Hide help bar | D112: Show help bar | E112: Hide help bar
A115: BOLD_TEXT | B115: 1
A116: BOLD_TEXT_COUNT | B116: =tblIndiSets!C31 -> 13
A117: BOLD_TEXT_VALUE | B117: =INDEX(Bold_Text,C117) -> Singapore, Singapore: | C117: 13 | M117: Variable | N117: =uxb_works!$B$23 -> 1
A118: Bucket Values
A119: =B123 -> 0 | B119: 100 | D119: 4 | E119: 0 | H119: =C119&G119 ->  | I119: =H123 -> > 5: low
A120: 30 | B120: 80 | C120: MATURE | D120: 3 | E120: 1 | H120: =IF($N$117=1,K120,L120) -> 10+: very high | I120: =H122 -> 5 to 7: medium | K120: 10+: very high | L120: 4: very high | M120: 1 | N120: =IF($N$117=1,P120,O120) -> 5 | O120: 2 | P120: 5 | Q120: Low | R120: Low
A121: 60 | B121: 60 | C121: DEVELOPED | D121: 2 | E121: 2 | H121: =IF($N$117=1,K121,L121) -> 8 & 9: high | I121: =H121 -> 8 & 9: high | K121: 8 & 9: high | L121: 3: high | M121: 2 | N121: =IF($N$117=1,P121,O121) -> 8 | O121: 3 | P121: 8 | Q121: Medium | R121: Medium
A122: 80 | B122: 30 | C122: EMERGING | D122: 1 | E122: 3 | H122: 5 to 7: medium | I122: =H120 -> 10+: very high | K122: 5 to 7: medium | L122: 2: medium | M122: 3 | N122: 10 | O122: 4 | P122: 10 | Q122: High | R122: High
A123: 100 | B123: 0 | C123: NASCENT | D123: 0 | E123: 4 | H123: > 5: low | K123: > 5: low | L123: 0 & 1: low | Q123: Very High | R123: Very High
L124: #
B125: dropdown | C125: Actual number | D125: Name
A126: COUNTRY_VARIABLE_SELECT | B126: 1 | C126: =INDEX(luCountryVar,B126) ->  | D126: =OFFSET(INDEX(luCountryVar,B126),0,1) -> 
A127: Category_Filter | B127: 1 | C127: =tblIndiSets!W2 -> 14
D128: max
A129: Weight_Set_X | B129: 2
A130: Weight_Set_Y | B130: 1
A134: BOX_SUMMARY | B134: =#REF!+1 -> 
A138: BOX_INDIRANK | B138: =IF(INDEX(tblIndicators!$W$2:$W$15,uxb_works!B21)=3,50,25) -> 25 | E138: =IFERROR(MAX(#REF!+#REF!,F138),F138) -> 0 | H138: 500 | I138: =IF(H138>300,ROUNDUP(H138/150,0),0) -> 4
A143: INDICATOR_RANKING_2ND_HL_PLUSNONE | B143: 1 | C143: =INDEX(tblTerritories!$S$4:$S$18,B143) -> All Groups | D143: 8
A144: INDICATOR_RANKING_2ND_HL | B144: 1 | C144: =INDEX(tblTerritories!$S$4:$S$18,B144) -> All Groups
A147: SCORE_DISTRIBUTION | B147: 2
A149: SD_FILTER_1 | B149: 1
A150: SD_FILTER_2 | B150: 2
A152: HELP_PAGE
C153: number of sheets
A154: ACTIVE_HELP_Sheet | B154: 1 | C154: 3
A163: OUTPUTC_3 | B163: 11
A165: WEIGHT_COMP_INDI | B165: 1 | C165: =INDEX(tblIndiSets!$B$5:$B$10,uxb_works!B165) -> 1
A166: WC_COLUMN_SELECT | B166: 1
A167: RC_REGION_SELECT | B167: 2 | C167: max | D167: actual
A168: REGION_COMPARE_INDICATOR | B168: 1 | C168: =tblIndiSets!AP3 -> 0 | D168: =INDEX(tblIndiSets!AP4:AP28,B168) -> 0 | E168: =INDEX(tblIndiSets!AS4:AS28,B168) -> 0 | F168: OVERALL SCORE | G168: =MATCH(F168,tblIndiSets!AS4:AS28,0) ->  | I168: =IF($B$167=1,LEFT(TRIM(F168),1),LEFT(TRIM(F168),3)) -> OVE | J168: =MATCH(I168,tblIndiSets!$AU$4:$AU$28,0) -> 
A169: SORT_BY_REGION | B169: 1
A170: REGION_COMPARE_LIST | B170: 9 | C170: =INDEX(luRegions,B170) -> 0 | D170: =tblTerritories!#REF! ->  | E170: =tblTerritories!#REF! -> 
A171: REGION_COMPARE_TEXT
A172: REGION_MOVE_FREEZE | B172: TRUE
A176: SHEET_CLICKS | B176: cell ref | C176: cell identify | D176: position count | E176: Var_List adjust | F176: spare | G176: spare | H176: output | I176: Error
A178: IR_CLICK_THROUGH | B178: $1:$1048576 | C178: =INDIRECT("Indicator_Ranking!"&C179) ->  | D178: =MATCH(C178,tblTerritories!C2:C28,0) ->  | H178: =D178 ->  | I178: =IFERROR(H178,0) -> 0
B179: =B178&":" -> $1:$1048576: | C179: =LEFT(B179,FIND(":",B179)-1) -> $1
A205: HELP TEXT | B205: For more general help please click HERE
A209: ADDIND_GROUP_WEIGHTS | B209: 1
C210: Stored position
A211: SAVE_WEIGHT_INC | B211: 0 | C211: 0
A212: OFFSET_POSITION | B212: =(B211-1)*3+1 -> -2
A214: TEXT_ON_DROPDOWN | B214: LOAD GROUP WEIGHTS
B216: 1
A217: PAGE_YEAR_COMPARE
A219: YEAR_FROM
A220: YEAR_TO | B220: 4 | C220: =COUNT(tblIndiSets!#REF!) -> 0
A222: IR_COMPARABLE_INDICATOR | B222: =INDEX(tblIndicators!$T$2:$T$15,uxb_works!B21) -> 0
B225: 1
A229: =I119 -> > 5: low | C229: 189, 201, 225
A230: =I120 -> 5 to 7: medium | C230: 116, 169, 207
A231: 8 & 9: high | C231: 43, 140, 190
B319: 2

Sheet tblIndiSets (hidden)
U1: 1 | V1: DropDown Menu | Z1: 0 | AA1: 1 | AB1: 2 | AC1: 3 | AD1: 4 | AE1: 5 | AF1: 6 | AG1: 7 | AH1: 8
A2: CATEGORIES | Q2: DO NOT DELETE | R2: DO NOT DELETE | S2: DO NOT DELETE | U2: uxb_works!B127 | V2: =uxb_works!B127 -> 1 | W2: =COUNT(W4:W28) -> 14 | AA2: Overall | AB2: Category 1 | AC2: Category 2 | AD2: Category 3 | AE2: Category 4 | AF2: Category 5 | AG2: BG
S3: =Q4 -> OVERALL | AA3: =COUNTA(AA4:AA28) -> 14 | AB3: =COUNTA(AB4:AB28) -> 1 | AC3: =COUNTA(AC4:AC28) -> 0 | AD3: =COUNTA(#REF!) -> 1 | AE3: =COUNTA(AE4:AE28) -> 0 | AF3: =COUNTA(AF4:AF28) -> 0 | AG3: =COUNTA(AG4:AG28) -> 5
B4: 1 | E4: ALL CATEGORIES | H4: Very Short Name | Q4: OVERALL | R4: OVERALL | S4: OVERALL | U4: =U3+1 -> 1 | V4: =IF(INDEX($AA$4:$AH$28,U4,$V$2)="","",INDEX($AA$4:$AH$28,U4,$V$2)) -> OVERALL | W4: =IF(V4="","",MATCH(V4,tblIndicators!E$2:E$15,0)) -> 1 | X4: =IF($W4="","",REPT(" ",Y4)&(INDEX(tblIndicators!AM$2:AM$15,$W4))) -> TOTAL SCORE | Y4: =IF($W4="","",INDEX(tblIndicators!G$2:G$15,$W4)) -> 0 | AA4: =Q4 -> OVERALL | AB4: BG | AG4: =O5 -> 0
A5: OVERALL | B5: =IF(A5="","",MATCH(A5,tblIndicators!E$2:E$15,0)) -> 1 | C5: =IF($A5="","",INDEX(tblIndicators!AL$2:AL$15,$B5)) -> TOTAL SCORE | D5: ALL CATEGORIES | E5: =IF($A5="","",INDEX(tblIndicators!AM$2:AM$15,$B5)) -> TOTAL SCORE | F5: =LOWER(E5) -> total score | H5: =IF($A5="","",INDEX(tblIndicators!AN$2:AN$15,$B5)) -> 0 | J5: =E4 -> ALL CATEGORIES | Q5: IMPA | R5: IMPA | S5: IMPA | U5: =U4+1 -> 2 | V5: IMPA | W5: =IF(V5="","",MATCH(V5,tblIndicators!E$2:E$15,0)) -> 2 | X5: =IF($W5="","",REPT(" ",Y5)&(INDEX(tblIndicators!AM$2:AM$15,$W5))) -> 1) IMPACT SCORE | Y5: =IF($W5="","",INDEX(tblIndicators!G$2:G$15,$W5)) -> 1 | AA5: IMPA | AG5: =O9 -> 0
A6: =R5 -> IMPA | B6: =IF(A6="","",MATCH(A6,tblIndicators!E$2:E$15,0)) -> 2 | C6: =IF($A6="","",INDEX(tblIndicators!AL$2:AL$15,$B6)) -> 1) IMPACT SCORE | D6: =C6 -> 1) IMPACT SCORE | E6: =IF($A6="","",INDEX(tblIndicators!AM$2:AM$15,$B6)) -> 1) IMPACT SCORE | F6: =LOWER(E6) -> 1) impact score | H6: =IF($A6="","",INDEX(tblIndicators!AN$2:AN$15,$B6)) -> 1 | J6: =E6 -> 1) IMPACT SCORE | Q6: IMPA1_1 | R6: SCAL | S6: IMPA1_1 | U6: =U5+1 -> 3 | V6: IMPA1_1 | W6: =IF(V6="","",MATCH(V6,tblIndicators!E$2:E$15,0)) -> 3 | X6: =IF($W6="","",REPT(" ",Y6)&(INDEX(tblIndicators!AM$2:AM$15,$W6))) -> 1.1) Comparability with traditional alternative | Y6: =IF($W6="","",INDEX(tblIndicators!G$2:G$15,$W6)) -> 2 | AA6: IMPA1_1 | AG6: =O10 -> 0
A7: SCAL | B7: =IF(A7="","",MATCH(A7,tblIndicators!E$2:E$15,0)) -> 7 | C7: =IF($A7="","",INDEX(tblIndicators!AL$2:AL$15,$B7)) -> 2) SCALABILITY SCORE | D7: =C7 -> 2) SCALABILITY SCORE | E7: =IF($A7="","",INDEX(tblIndicators!AM$2:AM$15,$B7)) -> 2) SCALABILITY SCORE | F7: =LOWER(E7) -> 2) scalability score | H7: =IF($A7="","",INDEX(tblIndicators!AN$2:AN$15,$B7)) -> 2 | J7: =E7 -> 2) SCALABILITY SCORE | Q7: IMPA1_2 | R7: INVE | S7: IMPA1_2 | U7: =U6+1 -> 4 | V7: IMPA1_2 | W7: =IF(V7="","",MATCH(V7,tblIndicators!E$2:E$15,0)) -> 4 | X7: =IF($W7="","",REPT(" ",Y7)&(INDEX(tblIndicators!AM$2:AM$15,$W7))) -> 1.2) Carbon emissions reduction | Y7: =IF($W7="","",INDEX(tblIndicators!G$2:G$15,$W7)) -> 2 | AA7: IMPA1_2 | AG7: =O11 -> 0
A8: INVE | B8: =IF(A8="","",MATCH(A8,tblIndicators!E$2:E$15,0)) -> 11 | C8: =IF($A8="","",INDEX(tblIndicators!AL$2:AL$15,$B8)) -> 3) INVESTMENT SCORE | D8: 3) INVESTMENT SCORE | E8: =IF($A8="","",INDEX(tblIndicators!AM$2:AM$15,$B8)) -> 3) INVESTMENT SCORE | F8: 3) investment score | H8: =IF($A8="","",INDEX(tblIndicators!AN$2:AN$15,$B8)) -> 3 | J8: 3) INVESTMENT SCORE | Q8: IMPA1_3 | S8: IMPA1_3 | U8: 5 | V8: IMPA1_3 | W8: =IF(V8="","",MATCH(V8,tblIndicators!E$2:E$15,0)) -> 5 | X8: =IF($W8="","",REPT(" ",Y8)&(INDEX(tblIndicators!AM$2:AM$15,$W8))) -> 1.3) Potential additional benefits | Y8: =IF($W8="","",INDEX(tblIndicators!G$2:G$15,$W8)) -> 2 | AA8: IMPA1_3 | AG8: =O12 -> 0
B9: =IF(A9="","",MATCH(A9,tblIndicators!E$2:E$15,0)) ->  | C9: =IF($A9="","",INDEX(tblIndicators!AL$2:AL$15,$B9)) ->  | E9: =IF($A9="","",INDEX(tblIndicators!AM$2:AM$15,$B9)) ->  | H9: =IF($A9="","",INDEX(tblIndicators!AN$2:AN$15,$B9)) ->  | Q9: IMPA1_4 | S9: IMPA1_4 | U9: 6 | V9: IMPA1_4 | W9: =IF(V9="","",MATCH(V9,tblIndicators!E$2:E$15,0)) -> 6 | X9: =IF($W9="","",REPT(" ",Y9)&(INDEX(tblIndicators!AM$2:AM$15,$W9))) -> 1.4) Potential harms / consequences | Y9: =IF($W9="","",INDEX(tblIndicators!G$2:G$15,$W9)) -> 2 | AA9: IMPA1_4
B10: =IF(A10="","",MATCH(A10,tblIndicators!E$2:E$15,0)) ->  | C10: =IF($A10="","",INDEX(tblIndicators!AL$2:AL$15,$B10)) ->  | E10: =IF($A10="","",INDEX(tblIndicators!AM$2:AM$15,$B10)) ->  | H10: =IF($A10="","",INDEX(tblIndicators!AN$2:AN$15,$B10)) ->  | Q10: SCAL | S10: SCAL | U10: 7 | V10: SCAL | W10: =IF(V10="","",MATCH(V10,tblIndicators!E$2:E$15,0)) -> 7 | X10: =IF($W10="","",REPT(" ",Y10)&(INDEX(tblIndicators!AM$2:AM$15,$W10))) -> 2) SCALABILITY SCORE | Y10: =IF($W10="","",INDEX(tblIndicators!G$2:G$15,$W10)) -> 1 | AA10: SCAL
A11: =COUNT(B13:B26) -> 14 | Q11: SCAL2_1 | S11: SCAL2_1 | U11: 8 | V11: SCAL2_1 | W11: =IF(V11="","",MATCH(V11,tblIndicators!E$2:E$15,0)) -> 8 | X11: =IF($W11="","",REPT(" ",Y11)&(INDEX(tblIndicators!AM$2:AM$15,$W11))) -> 2.1) Current state of development | Y11: =IF($W11="","",INDEX(tblIndicators!G$2:G$15,$W11)) -> 2 | AA11: SCAL2_1
A12: ALL | C12: <CLEAR> | E12: < CLEAR > | Q12: SCAL2_2 | S12: SCAL2_2 | U12: 9 | V12: SCAL2_2 | W12: =IF(V12="","",MATCH(V12,tblIndicators!E$2:E$15,0)) -> 9 | X12: =IF($W12="","",REPT(" ",Y12)&(INDEX(tblIndicators!AM$2:AM$15,$W12))) -> 2.2) Initial investment costs | Y12: =IF($W12="","",INDEX(tblIndicators!G$2:G$15,$W12)) -> 2 | AA12: SCAL2_2
A13: =S4 -> OVERALL | B13: =IF(A13="","",MATCH(A13,tblIndicators!$E$2:$E$15,0)) -> 1 | C13: =REPT(" ",D13)&IF($A13="","",INDEX(tblIndicators!$AL$2:$AL$15,$B13)) -> TOTAL SCORE | D13: =INDEX(tblIndicators!$G$2:$G$15,B13) -> 0 | E13: =REPT(" ",D13)&IF($A13="","",INDEX(tblIndicators!$AM$2:$AM$15,$B13)) -> TOTAL SCORE | F13: =TRIM(E13) -> TOTAL SCORE | H13: =F13 -> TOTAL SCORE | Q13: SCAL2_3 | S13: SCAL2_3 | U13: 10 | V13: SCAL2_3 | W13: =IF(V13="","",MATCH(V13,tblIndicators!E$2:E$15,0)) -> 10 | X13: =IF($W13="","",REPT(" ",Y13)&(INDEX(tblIndicators!AM$2:AM$15,$W13))) -> 2.3) Ease of integration | Y13: =IF($W13="","",INDEX(tblIndicators!G$2:G$15,$W13)) -> 2 | AA13: SCAL2_3
A14: =S5 -> IMPA | B14: =IF(A14="","",MATCH(A14,tblIndicators!$E$2:$E$15,0)) -> 2 | C14: =REPT(" ",D14)&IF($A14="","",INDEX(tblIndicators!$AL$2:$AL$15,$B14)) -> 1) IMPACT SCORE | D14: =INDEX(tblIndicators!$G$2:$G$15,B14) -> 1 | E14: =REPT(" ",D14)&IF($A14="","",INDEX(tblIndicators!$AM$2:$AM$15,$B14)) -> 1) IMPACT SCORE | F14: =TRIM(E14) -> 1) IMPACT SCORE | H14: =REPT(" ",G14)&IF($A14="","",INDEX(tblIndicators!$AN$2:$AN$15,$B14)) -> 1 | Q14: INVE | S14: INVE | U14: 11 | V14: INVE | W14: =IF(V14="","",MATCH(V14,tblIndicators!E$2:E$15,0)) -> 11 | X14: =IF($W14="","",REPT(" ",Y14)&(INDEX(tblIndicators!AM$2:AM$15,$W14))) -> 3) INVESTMENT SCORE | Y14: =IF($W14="","",INDEX(tblIndicators!G$2:G$15,$W14)) -> 1 | AA14: INVE
A15: IMPA1_1 | B15: =IF(A15="","",MATCH(A15,tblIndicators!$E$2:$E$15,0)) -> 3 | C15: =REPT(" ",D15)&IF($A15="","",INDEX(tblIndicators!$AL$2:$AL$15,$B15)) -> 1.1) Evidence that the technology operates as well-as or better than the ‘traditional’ alternative | D15: =INDEX(tblIndicators!$G$2:$G$15,B15) -> 2 | E15: =REPT(" ",D15)&IF($A15="","",INDEX(tblIndicators!$AM$2:$AM$15,$B15)) -> 1.1) Comparability with traditional alternative | F15: 1.1) Comparability with traditional alternative | H15: =REPT(" ",G15)&IF($A15="","",INDEX(tblIndicators!$AN$2:$AN$15,$B15)) -> 1.1 | Q15: INVE3_1 | S15: INVE3_1 | U15: 12 | V15: INVE3_1 | W15: =IF(V15="","",MATCH(V15,tblIndicators!E$2:E$15,0)) -> 12 | X15: =IF($W15="","",REPT(" ",Y15)&(INDEX(tblIndicators!AM$2:AM$15,$W15))) -> 3.1) Current level of investment | Y15: =IF($W15="","",INDEX(tblIndicators!G$2:G$15,$W15)) -> 2 | AA15: INVE3_1
A16: IMPA1_2 | B16: =IF(A16="","",MATCH(A16,tblIndicators!$E$2:$E$15,0)) -> 4 | C16: =REPT(" ",D16)&IF($A16="","",INDEX(tblIndicators!$AL$2:$AL$15,$B16)) -> 1.2) Is there credible evidence that the technology will help reduce carbon emissions? | D16: =INDEX(tblIndicators!$G$2:$G$15,B16) -> 2 | E16: =REPT(" ",D16)&IF($A16="","",INDEX(tblIndicators!$AM$2:$AM$15,$B16)) -> 1.2) Carbon emissions reduction | F16: 1.2) Carbon emissions reduction | H16: =REPT(" ",G16)&IF($A16="","",INDEX(tblIndicators!$AN$2:$AN$15,$B16)) -> 1.2 | Q16: INVE3_2 | S16: INVE3_2 | U16: 13 | V16: INVE3_2 | W16: =IF(V16="","",MATCH(V16,tblIndicators!E$2:E$15,0)) -> 13 | X16: =IF($W16="","",REPT(" ",Y16)&(INDEX(tblIndicators!AM$2:AM$15,$W16))) -> 3.2) Availability of private funding | Y16: =IF($W16="","",INDEX(tblIndicators!G$2:G$15,$W16)) -> 2 | AA16: INVE3_2
A17: IMPA1_3 | B17: =IF(A17="","",MATCH(A17,tblIndicators!$E$2:$E$15,0)) -> 5 | C17: =REPT(" ",D17)&IF($A17="","",INDEX(tblIndicators!$AL$2:$AL$15,$B17)) -> 1.3) Evidence that technologies offer additional benefits beyond cutting emissions | D17: =INDEX(tblIndicators!$G$2:$G$15,B17) -> 2 | E17: =REPT(" ",D17)&IF($A17="","",INDEX(tblIndicators!$AM$2:$AM$15,$B17)) -> 1.3) Potential additional benefits | F17: =TRIM(E17) -> 1.3) Potential additional benefits | H17: =REPT(" ",G17)&IF($A17="","",INDEX(tblIndicators!$AN$2:$AN$15,$B17)) -> 1.3 | Q17: INVE3_3 | S17: INVE3_3 | U17: 14 | V17: INVE3_3 | W17: =IF(V17="","",MATCH(V17,tblIndicators!E$2:E$15,0)) -> 14 | X17: =IF($W17="","",REPT(" ",Y17)&(INDEX(tblIndicators!AM$2:AM$15,$W17))) -> 3.3) Availability of public funding | Y17: =IF($W17="","",INDEX(tblIndicators!G$2:G$15,$W17)) -> 2 | AA17: INVE3_3
A18: IMPA1_4 | B18: =IF(A18="","",MATCH(A18,tblIndicators!$E$2:$E$15,0)) -> 6 | C18: =REPT(" ",D18)&IF($A18="","",INDEX(tblIndicators!$AL$2:$AL$15,$B18)) -> 1.4) Evidence that the technology could cause harm or other unintended consequences | D18: =INDEX(tblIndicators!$G$2:$G$15,B18) -> 2 | E18: =REPT(" ",D18)&IF($A18="","",INDEX(tblIndicators!$AM$2:$AM$15,$B18)) -> 1.4) Potential harms / consequences | F18: 1.4) Potential harms / consequences | H18: =REPT(" ",G18)&IF($A18="","",INDEX(tblIndicators!$AN$2:$AN$15,$B18)) -> 1.4
A19: SCAL | B19: =IF(A19="","",MATCH(A19,tblIndicators!$E$2:$E$15,0)) -> 7 | C19: =REPT(" ",D19)&IF($A19="","",INDEX(tblIndicators!$AL$2:$AL$15,$B19)) -> 2) SCALABILITY SCORE | D19: =INDEX(tblIndicators!$G$2:$G$15,B19) -> 1 | E19: =REPT(" ",D19)&IF($A19="","",INDEX(tblIndicators!$AM$2:$AM$15,$B19)) -> 2) SCALABILITY SCORE | F19: 2) SCALABILITY SCORE | H19: =REPT(" ",G19)&IF($A19="","",INDEX(tblIndicators!$AN$2:$AN$15,$B19)) -> 2
A20: SCAL2_1 | B20: =IF(A20="","",MATCH(A20,tblIndicators!$E$2:$E$15,0)) -> 8 | C20: =REPT(" ",D20)&IF($A20="","",INDEX(tblIndicators!$AL$2:$AL$15,$B20)) -> 2.1) Evidence of the current state of development for the technology. e.g. evidence of Research / trial phase or availability to purchase across countries | D20: =INDEX(tblIndicators!$G$2:$G$15,B20) -> 2 | E20: =REPT(" ",D20)&IF($A20="","",INDEX(tblIndicators!$AM$2:$AM$15,$B20)) -> 2.1) Current state of development | F20: 2.1) Current state of development | H20: =REPT(" ",G20)&IF($A20="","",INDEX(tblIndicators!$AN$2:$AN$15,$B20)) -> 2.1
A21: SCAL2_2 | B21: =IF(A21="","",MATCH(A21,tblIndicators!$E$2:$E$15,0)) -> 9 | C21: =REPT(" ",D21)&IF($A21="","",INDEX(tblIndicators!$AL$2:$AL$15,$B21)) -> 2.2) Evidence of the initial investment costs for governments or individuals compared to other technologies as a % of overall city expenditure | D21: =INDEX(tblIndicators!$G$2:$G$15,B21) -> 2 | E21: =REPT(" ",D21)&IF($A21="","",INDEX(tblIndicators!$AM$2:$AM$15,$B21)) -> 2.2) Initial investment costs | F21: 2.2) Initial investment costs | H21: =REPT(" ",G21)&IF($A21="","",INDEX(tblIndicators!$AN$2:$AN$15,$B21)) -> 2.2
A22: SCAL2_3 | B22: =IF(A22="","",MATCH(A22,tblIndicators!$E$2:$E$15,0)) -> 10 | C22: =REPT(" ",D22)&IF($A22="","",INDEX(tblIndicators!$AL$2:$AL$15,$B22)) -> 2.3) Evidence of this technology’s ease of integration into existing city infrastructure based on additional infrastructure required to integrate the technology into a city, in addition to the technology itself. | D22: =INDEX(tblIndicators!$G$2:$G$15,B22) -> 2 | E22: =REPT(" ",D22)&IF($A22="","",INDEX(tblIndicators!$AM$2:$AM$15,$B22)) -> 2.3) Ease of integration | F22: 2.3) Ease of integration | H22: =REPT(" ",G22)&IF($A22="","",INDEX(tblIndicators!$AN$2:$AN$15,$B22)) -> 2.3
A23: INVE | B23: =IF(A23="","",MATCH(A23,tblIndicators!$E$2:$E$15,0)) -> 11 | C23: =REPT(" ",D23)&IF($A23="","",INDEX(tblIndicators!$AL$2:$AL$15,$B23)) -> 3) INVESTMENT SCORE | D23: =INDEX(tblIndicators!$G$2:$G$15,B23) -> 1 | E23: =REPT(" ",D23)&IF($A23="","",INDEX(tblIndicators!$AM$2:$AM$15,$B23)) -> 3) INVESTMENT SCORE | F23: 3) INVESTMENT SCORE | H23: =REPT(" ",G23)&IF($A23="","",INDEX(tblIndicators!$AN$2:$AN$15,$B23)) -> 3
A24: INVE3_1 | B24: =IF(A24="","",MATCH(A24,tblIndicators!$E$2:$E$15,0)) -> 12 | C24: =REPT(" ",D24)&IF($A24="","",INDEX(tblIndicators!$AL$2:$AL$15,$B24)) -> 3.1) Evidence of the current level of investment in this technology based on $USD total equity funding amount for companies producing this technology. | D24: =INDEX(tblIndicators!$G$2:$G$15,B24) -> 2 | E24: =REPT(" ",D24)&IF($A24="","",INDEX(tblIndicators!$AM$2:$AM$15,$B24)) -> 3.1) Current level of investment | F24: 3.1) Current level of investment | H24: =REPT(" ",G24)&IF($A24="","",INDEX(tblIndicators!$AN$2:$AN$15,$B24)) -> 3.1
A25: INVE3_2 | B25: =IF(A25="","",MATCH(A25,tblIndicators!$E$2:$E$15,0)) -> 13 | C25: =REPT(" ",D25)&IF($A25="","",INDEX(tblIndicators!$AL$2:$AL$15,$B25)) -> 3.2) Evidence of the availability of private funding for this technology based on total number of investment firms and individual investors investing in companies that produce this technology. | D25: =INDEX(tblIndicators!$G$2:$G$15,B25) -> 2 | E25: =REPT(" ",D25)&IF($A25="","",INDEX(tblIndicators!$AM$2:$AM$15,$B25)) -> 3.2) Availability of private funding | F25: 3.2) Availability of private funding | H25: =REPT(" ",G25)&IF($A25="","",INDEX(tblIndicators!$AN$2:$AN$15,$B25)) -> 3.2
A26: INVE3_3 | B26: =IF(A26="","",MATCH(A26,tblIndicators!$E$2:$E$15,0)) -> 14 | C26: =REPT(" ",D26)&IF($A26="","",INDEX(tblIndicators!$AL$2:$AL$15,$B26)) -> 3.3) Evidence of the availability of public funding for this technology in the form of national/regional/city regulations to support this technology / R&D such as: subsidies, tax incentives, policies & projects which promote or use it, and grants or funding bodies. | D26: =INDEX(tblIndicators!$G$2:$G$15,B26) -> 2 | E26: =REPT(" ",D26)&IF($A26="","",INDEX(tblIndicators!$AM$2:$AM$15,$B26)) -> 3.3) Availability of public funding | F26: 3.3) Availability of public funding | H26: =REPT(" ",G26)&IF($A26="","",INDEX(tblIndicators!$AN$2:$AN$15,$B26)) -> 3.3
A30: BOLD WORDS | C30: =uxb_works!B115 -> 1
C31: 13
A32: 1 | B32: =IF(C32="",0,1) -> 1 | C32: =IF(INDEX($D$32:$I$47,A32,$C$30)="","",INDEX($D$32:$I$47,A32,$C$30)) -> Description: | D32: Description: | E32: Other_1
A33: 2 | B33: =IF(C33="",0,1) -> 1 | C33: Data: | D33: Data: | E33: Other_2
A34: 3 | B34: 1 | C34: Question: | D34: Question: | E34: Other_3
A35: 4 | B35: 1 | C35: Source: | D35: Source: | E35: Other_4
A36: 5 | B36: 1 | C36: =IF(INDEX($D$32:$I$47,A36,$C$30)="","",INDEX($D$32:$I$47,A36,$C$30)) -> Berlin, Germany: | D36: Berlin, Germany: | E36: Other_5
A37: 6 | B37: 1 | C37: Paris, France: | D37: Paris, France: | E37: Other_6
A38: 7 | B38: 1 | C38: Barcelona, Spain: | D38: Barcelona, Spain: | E38: Other_7
A39: 8 | B39: 1 | C39: Florence, Italy: | D39: Florence, Italy: | E39: Other_8
A40: 9 | B40: =IF(C40="",0,1) -> 1 | C40: =IF(INDEX($D$32:$I$47,A40,$C$30)="","",INDEX($D$32:$I$47,A40,$C$30)) -> London, UK: | D40: London, UK:
A41: 10 | B41: 1 | C41: San Francisco & New York, US: | D41: San Francisco & New York, US:
A42: 11 | B42: 1 | C42: Delhi, India: | D42: Delhi, India:
A43: 12 | B43: 1 | C43: Seoul, South Korea: | D43: Seoul, South Korea:
A44: 13 | B44: 1 | C44: Singapore, Singapore: | D44: Singapore, Singapore:
A47: 9 | B47: 1 | C47: =IF(INDEX($D$32:$I$47,A47,$C$30)="","",INDEX($D$32:$I$47,A47,$C$30)) -> London, UK: | D47: Notes: | E47: Other_9

Sheet iIndiRank (hidden)
A1: =uxb_works!A20 -> Indicator Ranking | C1: =uxb_works!C20 -> Indi Name | D1: =uxb_works!D20 -> Indi Level | E1: =uxb_works!E20 -> Format | F1: =uxb_works!F20 -> Child | G1: =uxb_works!G20 -> Parent | H1: =uxb_works!H20 -> Ref | I1: =uxb_works!I20 -> Qual_Or_Quant | J1: Year | L1: Description | M1: Question | N1: Units | O1: Source | P1: =uxb_works!Q20 -> NORM_ID (1=sumproduct, 2=min max set by data values, 3=min max set by user here) | Q1: NOTES | R1: Row Heigh | S1: Scoring Guidance | T1: Has Notes | U1: Country Specific Notes | V1: Country Specific Ref | X1: 1 | Y1: 2 | Z1: 3 | AA1: 4 | AB1: 5 | AD1: Question (Survey) | CE1: Distribution bar chart
A2: =uxb_works!A21 -> INDI_ID | B2: =uxb_works!B21 -> 1 | C2: =uxb_works!C21 -> TOTAL SCORE | D2: =uxb_works!D21 -> 0 | E2: =uxb_works!E21 -> #,##0.0 | F2: =IF(B2=1,"",INDEX(tblIndicators!$AL$2:$AL$15,B2)) ->  | G2: =uxb_works!G21 -> TOTAL SCORE | H2: =uxb_works!H21 -> 0 | I2: =uxb_works!I21 -> 4 | J2: =IF(INDEX(tblIndicators!AA2:AA15,$B$2)="","","Year: "&INDEX(tblIndicators!AA2:AA15,$B$2)) ->  | K2: =IF(D2=4,2,1) -> 1 | L2: =IF(INDEX(tblIndicators!O2:O15,$B$2)="","",INDEX(tblIndicators!O2:O15,$B$2)) -> The total score is the weighted sum of the following category scores: 1) IMPACT SCORE 2) SCALABILITY SCORE 3) INVESTMENT SCORE | M2: =IF(OR(INDEX(tblIndicators!P2:P15,$B$2)="",INDEX(tblIndicators!P2:P15,$B$2)="-"),"","Question: "&INDEX(tblIndicators!P2:P15,$B$2)) ->  | N2: =IF(OR(INDEX(tblIndicators!Z2:Z15,$B$2)="",INDEX(tblIndicators!Z2:Z15,$B$2)="-"),"","Units: "&INDEX(tblIndicators!Z2:Z15,$B$2)) ->  | O2: =IF(OR(INDEX(tblIndicators!S2:S15,$B$2)="",INDEX(tblIndicators!S2:S15,$B$2)="-"),"","Source: "&INDEX(tblIndicators!S2:S15,$B$2)) -> Source: EI Calculation | P2: =uxb_works!Q21 -> 1 | Q2: =INDEX(X2:AA2,W2) -> The total score is the weighted sum of the following category scores: 1) IMPACT SCORE 2) SCALABILITY SCORE 3) INVESTMENT SCORE Source: EI Calculation | R2: 20 | S2: =IF(OR(INDEX(tblIndicators!S2:S15,$B$2)="",INDEX(tblIndicators!S2:S15,$B$2)="-"),"","Scoring Guidance: "&INDEX(tblIndicators!S2:S15,$B$2)) -> Scoring Guidance: EI Calculation | T2: =INDEX(tblIndicators!U2:U15,B2) -> 1 | U2: =IF(uxb_works!$B$6=1,"Select technology by clicking on its name to the right to read notes",IF(INDEX(aJust,$B$2,uxb_works!$B$6-1)="","","Data: "&INDEX(aJust,$B$2,uxb_works!$B$6-1))) -> Select technology by clicking on its name to the right to read notes | V2: =IF(uxb_works!$B$6=1,"",IF(INDEX(aRef,$B$2,uxb_works!$B$6-1)="","","Source: "&INDEX(aRef,$B$2,uxb_works!$B$6-1))) ->  | W2: =INDEX(tblIndicators!$W$2:$W$15,B2) -> 1 | X2: =""&L2&" "&O2&"" -> The total score is the weighted sum of the following category scores: 1) IMPACT SCORE 2) SCALABILITY SCORE 3) INVESTMENT SCORE Source: EI Calculation | Y2: =""&L2&" "&M2&" "&N2&" "&O2&" "&J2&"" -> The total score is the weighted sum of the following category scores: 1) IMPACT SCORE 2) SCALABILITY SCORE 3) INVESTMENT SCORE Source: EI Calculation | Z2: =U2&" "&V2&"" -> Select technology by clicking on its name to the right to read notes | AD2: ="Rational: "&INDEX(tblIndicators!$N$2:$N$15,B2) -> Rational: 13 | CG2: =INDEX(tblIndicators!$U$2:$U$15,B2) -> 1
A3: INDI_IS_NATIONAL | H3: =IF(F3=0,"",RANK(G3,G$6:G$31,0)+COUNTIF(G3:G$6,G3)-1) ->  | Q3: =LEN(Q2) -> 151 | U3: =IF(uxb_works!$B$6=1,"Select city by clicking on name to the right to read notes",IF(INDEX(iJustification,$B$2,uxb_works!$B$6-1)="","","Notes: ("&uxb_works!C6&") "&INDEX(iJustification,$B$2,uxb_works!$B$6-1))) -> Select city by clicking on name to the right to read notes | AD3: eg: A 1-2 sentence conclusion will be provided for each country explaining why they receive or do not receive credit for this indicator. For example, Uganda does not have market-based instruments for end-user level food waste.
A4: SHOW_DATA | B4: =IF(P2=1,FALSE,TRUE) -> FALSE | D4: =uxb_works!A6 -> COUNTRY_HIGHLIGHT_DD | E4: =uxb_works!B6 -> 1 | F4: =uxb_works!C6 -> <none> | I4: All Tiers | J4: =uxb_works!B8 -> 1 | P4: =LEN(Q2)-LEN(SUBSTITUTE(Q2,CHAR(10),""))+1 -> 7 | Q4: =IF(ISERROR(RIGHT(Q2,LEN(Q2)-800)),"-",RIGHT(Q2,LEN(Q2)-800)) -> - | U4: =LEN(U2)-LEN(SUBSTITUTE(U2,CHAR(10),""))+1 -> 1 | V4: =LEN(V2)-LEN(SUBSTITUTE(V2,CHAR(10),""))+1 -> 1 | AA4: REGION HIGHLIGHT DATAPOINTS | AD4: City HIGHLIGHT | CL4: =SUM(CL6:CL9) -> 
A5: =uxb_works!A57 -> 0 | B5: =uxb_works!B57 -> 1.25 | D5: IsRegion | E5: Status | F5: ActiveStatus | G5: Score 2018 (unrounded) | H5: Rank unrounded | I5: LU | J5: yScatter | K5: RankRounded | R5: Score | T5: Score Display | V5: X | W5: Y | Y5: HAS_SUB_INDICATORS | AH5: Buckets | CF5: 0 | CG5: 0 | CH5: 0
A6: =tblTerritories!A3 -> 1 | B6: =tblTerritories!B3 -> XXX | C6: =tblTerritories!C3 -> Green roofs | D6: =tblTerritories!D3 -> 1 | E6: =IF(AND(OR(tblTerritories!$K$5=4,tblTerritories!$K$5=5),$G$2=3),0,IF(AND(OR(tblTerritories!$K$5=2,tblTerritories!$K$5=3),$G$2=3),tblTerritories!G3,IF(AND($G$2=3,tblTerritories!$K$5=1),Z6,tblTerritories!G3))) -> 1 | F6: =tblTerritories!H3 -> 1 | G6: =IF(F6=0,"",INDEX(aScoresRounded,$B$2,$A6)) -> 8.1 | H6: =IF(F6=0,"",RANK(G6,G$6:G$31,0)+COUNTIF(G6:G$6,G6)-1) -> 13 | I6: =IF(ISERROR(MATCH($A6,H$6:H$31,0)),"",MATCH($A6,H$6:H$31,0)) -> 17 | J6: =IF(I6="","",1) -> 1 | K6: =IF(I6="","",RANK(R6,R$6:R$31,0)) -> 1 | L6: =IF(I6="",0,INDEX($F$6:$F$31,I6)) -> 1 | M6: =IF(J6="","",COUNTIF(R$6:R$31,R6)) -> 1 | P6: =IF(J6="","",IF(M6>1,CONCATENATE("=",K6),K6)) -> 1 | Q6: =IF(I6="","",INDEX($C$6:$C$31,I6)) -> Distributed solar power | R6: =IF(I6="","",INDEX(aScoresRounded,$B$2,I6)) -> 10.4 | T6: =IF(L6=0,"",IF($C$2=1,"-",R6)) -> 10.4 | V6: =IF(ISNUMBER(R6),R6,NA()) -> 10.4 | W6: =1 -> 1 | Y6: 0 | Z6: =IF(Y6=1,tblTerritories!G3,0) -> 0 | AA6: =IF(L6=2,V6,NA()) ->  | AB6: =IF(L6=2,1,NA()) ->  | AD6: =IF(L6=3,V6,NA()) ->  | AE6: =IF(L6=3,1,NA()) ->  | AH6: =IF(R6="","",IF(R6<=uxb_works!$B$122,0,IF(R6<=uxb_works!$B$121,1,IF(R6<=uxb_works!$B$120,2,3)))) -> 0 | CE6: =IF(INDEX(aScores,$B$2,A6)=-100,"",INDEX(aScores,$B$2,A6)) -> 8.083333333 | CF6: 0.25 | CG6: =CHOOSE($CG$2,CI6,CL6) -> 30 | CH6: =PERCENTILE($CE$6:$CE$31,CF6) -> 7.333333333 | CI6: 30 | CJ6: 1 | CK6: =INDEX(aPercentile,$B$2,CJ6) ->  | CL6: =CK6 -> 
A7: =tblTerritories!A4 -> 2 | B7: =tblTerritories!B4 -> XXX | C7: =tblTerritories!C4 -> Cool roofs | D7: =tblTerritories!D4 -> 1 | E7: =IF(AND(OR(tblTerritories!$K$5=4,tblTerritories!$K$5=5),$G$2=3),0,IF(AND(OR(tblTerritories!$K$5=2,tblTerritories!$K$5=3),$G$2=3),tblTerritories!G4,IF(AND($G$2=3,tblTerritories!$K$5=1),Z7,tblTerritories!G4))) -> 1 | F7: =tblTerritories!H4 -> 1 | G7: =IF(F7=0,"",INDEX(aScoresRounded,$B$2,$A7)) -> 7.3 | H7: =IF(F7=0,"",RANK(G7,G$6:G$31,0)+COUNTIF(G$6:G7,G7)-1) -> 20 | I7: =IF(ISERROR(MATCH($A7,H$6:H$31,0)),"",MATCH($A7,H$6:H$31,0)) -> 13 | J7: =IF(I7="","",1) -> 1 | K7: =IF(I7="","",RANK(R7,R$6:R$31,0)) -> 2 | L7: =IF(I7="",0,INDEX($F$6:$F$31,I7)) -> 1 | M7: =IF(J7="","",COUNTIF(R$6:R$31,R7)) -> 1 | P7: 2 | Q7: =IF(I7="","",INDEX($C$6:$C$31,I7)) -> Distributed energy storage | R7: =IF(I7="","",INDEX(aScoresRounded,$B$2,I7)) -> 9.9 | T7: 9.9 | V7: 9.9 | W7: =1 -> 1 | Y7: 0 | Z7: =IF(Y7=1,tblTerritories!G4,0) -> 0 | AH7: =IF(R7="","",IF(R7<=uxb_works!$B$122,0,IF(R7<=uxb_works!$B$121,1,IF(R7<=uxb_works!$B$120,2,3)))) -> 0 | CE7: 7.25 | CF7: 0.5 | CG7: =CHOOSE($CG$2,CI7,CL7) -> 30 | CH7: =PERCENTILE($CE$6:$CE$31,CF7) -> 8.083333333 | CI7: 30 | CJ7: 2 | CK7: =INDEX(aPercentile,$B$2,CJ7) ->  | CL7: =CK7-CK6 -> 
A8: =tblTerritories!A5 -> 3 | B8: =tblTerritories!B5 -> XXX | C8: =tblTerritories!C5 -> Dynamic glass | D8: =tblTerritories!D5 -> 1 | E8: =IF(AND(OR(tblTerritories!$K$5=4,tblTerritories!$K$5=5),$G$2=3),0,IF(AND(OR(tblTerritories!$K$5=2,tblTerritories!$K$5=3),$G$2=3),tblTerritories!G5,IF(AND($G$2=3,tblTerritories!$K$5=1),Z8,tblTerritories!G5))) -> 1 | F8: =tblTerritories!H5 -> 1 | G8: =IF(F8=0,"",INDEX(aScoresRounded,$B$2,$A8)) -> 9.5 | H8: =IF(F8=0,"",RANK(G8,G$6:G$31,0)+COUNTIF(G$6:G8,G8)-1) -> 4 | I8: =IF(ISERROR(MATCH($A8,H$6:H$31,0)),"",MATCH($A8,H$6:H$31,0)) -> 12 | J8: =IF(I8="","",1) -> 1 | K8: =IF(I8="","",RANK(R8,R$6:R$31,0)) -> 3 | L8: =IF(I8="",0,INDEX($F$6:$F$31,I8)) -> 1 | M8: =IF(J8="","",COUNTIF(R$6:R$31,R8)) -> 1 | P8: =IF(J8="","",IF(M8>1,CONCATENATE("=",K8),K8)) -> 3 | Q8: =IF(I8="","",INDEX($C$6:$C$31,I8)) -> Smart grids & smart meters | R8: =IF(I8="","",INDEX(aScoresRounded,$B$2,I8)) -> 9.7 | T8: =IF(L8=0,"",IF($C$2=1,"-",R8)) -> 9.7 | V8: =IF(ISNUMBER(R8),R8,NA()) -> 9.7 | W8: =1 -> 1 | Y8: 0 | Z8: =IF(Y8=1,tblTerritories!G5,0) -> 0 | AA8: =IF(L8=2,V8,NA()) ->  | AB8: =IF(L8=2,1,NA()) ->  | AD8: =IF(L8=3,V8,NA()) ->  | AE8: =IF(L8=3,1,NA()) ->  | AH8: =IF(R8="","",IF(R8<=uxb_works!$B$122,0,IF(R8<=uxb_works!$B$121,1,IF(R8<=uxb_works!$B$120,2,3)))) -> 0 | CE8: =IF(INDEX(aScores,$B$2,A8)=-100,"",INDEX(aScores,$B$2,A8)) -> 9.5 | CF8: 0.5 | CG8: 20 | CH8: =PERCENTILE($CE$6:$CE$31,CF8) -> 8.083333333 | CI8: 20 | CJ8: 2 | CK8: =INDEX(aPercentile,$B$2,CJ8) ->  | CL8: =CK8-CK7 -> 
A9: =tblTerritories!A6 -> 4 | B9: =tblTerritories!B6 -> XXX | C9: =tblTerritories!C6 -> High-performance glass | D9: =tblTerritories!D6 -> 1 | E9: =IF(AND(OR(tblTerritories!$K$5=4,tblTerritories!$K$5=5),$G$2=3),0,IF(AND(OR(tblTerritories!$K$5=2,tblTerritories!$K$5=3),$G$2=3),tblTerritories!G6,IF(AND($G$2=3,tblTerritories!$K$5=1),Z9,tblTerritories!G6))) -> 1 | F9: =tblTerritories!H6 -> 1 | G9: 8 | H9: =IF(F9=0,"",RANK(G9,G$6:G$31,0)+COUNTIF(G$6:G9,G9)-1) -> 15 | I9: 3 | J9: 1 | K9: 4 | L9: 1 | M9: 2 | P9: =4 | Q9: Dynamic glass | R9: 9.5 | T9: 9.5 | V9: 9.5 | W9: =1 -> 1 | Y9: 0 | Z9: =IF(Y9=1,tblTerritories!G6,0) -> 0 | AH9: =IF(R9="","",IF(R9<=uxb_works!$B$122,0,IF(R9<=uxb_works!$B$121,1,IF(R9<=uxb_works!$B$120,2,3)))) -> 0 | CE9: 8 | CF9: 0.5 | CG9: 20 | CH9: 8.083333333 | CI9: 20 | CJ9: 2 | CK9: =INDEX(aPercentile,$B$2,CJ9) -> 
A10: =tblTerritories!A7 -> 5 | B10: =tblTerritories!B7 -> XXX | C10: =tblTerritories!C7 -> Environmentally friendly insulation | D10: =tblTerritories!D7 -> 1 | E10: =IF(AND(OR(tblTerritories!$K$5=4,tblTerritories!$K$5=5),$G$2=3),0,IF(AND(OR(tblTerritories!$K$5=2,tblTerritories!$K$5=3),$G$2=3),tblTerritories!G7,IF(AND($G$2=3,tblTerritories!$K$5=1),Z10,tblTerritories!G7))) -> 1 | F10: =tblTerritories!H7 -> 1 | G10: 7.6 | H10: =IF(F10=0,"",RANK(G10,G$6:G$31,0)+COUNTIF(G$6:G10,G10)-1) -> 19 | I10: 16 | J10: 1 | K10: 4 | L10: 1 | M10: 2 | P10: =4 | Q10: Thermal energy storage | R10: 9.5 | T10: 9.5 | V10: 9.5 | W10: =1 -> 1 | Y10: 0 | Z10: =IF(Y10=1,tblTerritories!G7,0) -> 0 | AH10: =IF(R10="","",IF(R10<=uxb_works!$B$122,0,IF(R10<=uxb_works!$B$121,1,IF(R10<=uxb_works!$B$120,2,3)))) -> 0 | CE10: 7.583333333 | CF10: 0.5 | CG10: =CHOOSE($CG$2,100,CL10) -> 100 | CH10: 8.083333333 | CJ10: 2 | CK10: =INDEX(aPercentile,$B$2,CJ10) -> 
A11: =tblTerritories!A8 -> 6 | B11: =tblTerritories!B8 -> XXX | C11: =tblTerritories!C8 -> High-efficiency heat pumps | D11: =tblTerritories!D8 -> 1 | E11: =IF(AND(OR(tblTerritories!$K$5=4,tblTerritories!$K$5=5),$G$2=3),0,IF(AND(OR(tblTerritories!$K$5=2,tblTerritories!$K$5=3),$G$2=3),tblTerritories!G8,IF(AND($G$2=3,tblTerritories!$K$5=1),Z11,tblTerritories!G8))) -> 1 | F11: =tblTerritories!H8 -> 1 | G11: 9.3 | H11: =IF(F11=0,"",RANK(G11,G$6:G$31,0)+COUNTIF(G$6:G11,G11)-1) -> 8 | I11: 10 | J11: 1 | K11: 6 | L11: 1 | M11: 2 | P11: =6 | Q11: Unified communications (VOIP) | R11: 9.4 | T11: 9.4 | V11: 9.4 | W11: =1 -> 1 | Y11: 0 | Z11: =IF(Y11=1,tblTerritories!G8,0) -> 0 | AH11: =IF(R11="","",IF(R11<=uxb_works!$B$122,0,IF(R11<=uxb_works!$B$121,1,IF(R11<=uxb_works!$B$120,2,3)))) -> 0 | CE11: 9.25 | CF11: 0.5 | CG11: 100 | CH11: 8.083333333 | CJ11: 2 | CK11: =INDEX(aPercentile,$B$2,CJ11) -> 
A12: =tblTerritories!A9 -> 7 | B12: =tblTerritories!B9 -> XXX | C12: =tblTerritories!C9 -> Low-carbon cement & concrete alternatives | D12: =tblTerritories!D9 -> 1 | E12: =IF(AND(OR(tblTerritories!$K$5=4,tblTerritories!$K$5=5),$G$2=3),0,IF(AND(OR(tblTerritories!$K$5=2,tblTerritories!$K$5=3),$G$2=3),tblTerritories!G9,IF(AND($G$2=3,tblTerritories!$K$5=1),Z12,tblTerritories!G9))) -> 1 | F12: =tblTerritories!H9 -> 1 | G12: 9.1 | H12: =IF(F12=0,"",RANK(G12,G$6:G$31,0)+COUNTIF(G$6:G12,G12)-1) -> 9 | I12: 20 | J12: 1 | K12: 6 | L12: 1 | M12: 2 | P12: =6 | Q12: Electric vehicle charging ports | R12: 9.4 | T12: 9.4 | V12: 9.4 | W12: =1 -> 1 | Y12: 0 | Z12: =IF(Y12=1,tblTerritories!G9,0) -> 0 | AH12: =IF(R12="","",IF(R12<=uxb_works!$B$122,0,IF(R12<=uxb_works!$B$121,1,IF(R12<=uxb_works!$B$120,2,3)))) -> 0 | CE12: 9.083333333 | CF12: 0.5 | CG12: 100 | CH12: 8.083333333 | CJ12: 2 | CK12: =INDEX(aPercentile,$B$2,CJ12) -> 
A13: =tblTerritories!A10 -> 8 | B13: =tblTerritories!B10 -> XXX | C13: =tblTerritories!C10 -> Digital twins | D13: =tblTerritories!D10 -> 1 | E13: =IF(AND(OR(tblTerritories!$K$5=4,tblTerritories!$K$5=5),$G$2=3),0,IF(AND(OR(tblTerritories!$K$5=2,tblTerritories!$K$5=3),$G$2=3),tblTerritories!G10,IF(AND($G$2=3,tblTerritories!$K$5=1),Z13,tblTerritories!G10))) -> 1 | F13: =tblTerritories!H10 -> 1 | G13: 6.8 | H13: =IF(F13=0,"",RANK(G13,G$6:G$31,0)+COUNTIF(G$6:G13,G13)-1) -> 24 | I13: 6 | J13: 1 | K13: 8 | L13: 1 | M13: 1 | P13: 8 | Q13: High-efficiency heat pumps | R13: 9.3 | T13: 9.3 | V13: 9.3 | W13: =1 -> 1 | Y13: 0 | Z13: =IF(Y13=1,tblTerritories!G10,0) -> 0 | AH13: =IF(R13="","",IF(R13<=uxb_works!$B$122,0,IF(R13<=uxb_works!$B$121,1,IF(R13<=uxb_works!$B$120,2,3)))) -> 0 | CE13: 6.75 | CF13: 0.5 | CG13: 100 | CH13: 8.083333333 | CJ13: 2 | CK13: =INDEX(aPercentile,$B$2,CJ13) -> 
A14: =tblTerritories!A11 -> 9 | B14: =tblTerritories!B11 -> XXX | C14: =tblTerritories!C11 -> Building automation systems (BAS) | D14: =tblTerritories!D11 -> 1 | E14: =IF(AND(OR(tblTerritories!$K$5=4,tblTerritories!$K$5=5),$G$2=3),0,IF(AND(OR(tblTerritories!$K$5=2,tblTerritories!$K$5=3),$G$2=3),tblTerritories!G11,IF(AND($G$2=3,tblTerritories!$K$5=1),Z14,tblTerritories!G11))) -> 1 | F14: =tblTerritories!H11 -> 1 | G14: 6.8 | H14: =IF(F14=0,"",RANK(G14,G$6:G$31,0)+COUNTIF(G$6:G14,G14)-1) -> 25 | I14: 7 | J14: 1 | K14: 9 | L14: 1 | M14: 2 | P14: =9 | Q14: Low-carbon cement & concrete alternatives | R14: 9.1 | T14: 9.1 | V14: 9.1 | W14: =1 -> 1 | Y14: 0 | Z14: =IF(Y14=1,tblTerritories!G11,0) -> 0 | AH14: =IF(R14="","",IF(R14<=uxb_works!$B$122,0,IF(R14<=uxb_works!$B$121,1,IF(R14<=uxb_works!$B$120,2,3)))) -> 0 | CE14: 6.75 | CF14: 0.5 | CG14: 100 | CH14: 8.083333333 | CJ14: 2 | CK14: =INDEX(aPercentile,$B$2,CJ14) -> 
A15: =tblTerritories!A12 -> 10 | B15: =tblTerritories!B12 -> XXX | C15: =tblTerritories!C12 -> Unified communications (VOIP) | D15: =tblTerritories!D12 -> 1 | E15: =IF(AND(OR(tblTerritories!$K$5=4,tblTerritories!$K$5=5),$G$2=3),0,IF(AND(OR(tblTerritories!$K$5=2,tblTerritories!$K$5=3),$G$2=3),tblTerritories!G12,IF(AND($G$2=3,tblTerritories!$K$5=1),Z15,tblTerritories!G12))) -> 1 | F15: =tblTerritories!H12 -> 1 | G15: 9.4 | H15: =IF(F15=0,"",RANK(G15,G$6:G$31,0)+COUNTIF(G$6:G15,G15)-1) -> 6 | I15: 19 | J15: 1 | K15: 9 | L15: 1 | M15: 2 | P15: =9 | Q15: Electric vehicles (EVs) | R15: 9.1 | T15: 9.1 | V15: 9.1 | W15: =1 -> 1 | Y15: 0 | Z15: =IF(Y15=1,tblTerritories!G12,0) -> 0 | AH15: =IF(R15="","",IF(R15<=uxb_works!$B$122,0,IF(R15<=uxb_works!$B$121,1,IF(R15<=uxb_works!$B$120,2,3)))) -> 0 | CE15: 9.416666667 | CF15: 0.5 | CG15: 100 | CH15: 8.083333333 | CJ15: 2 | CK15: =INDEX(aPercentile,$B$2,CJ15) -> 
A16: =tblTerritories!A13 -> 11 | B16: =tblTerritories!B13 -> XXX | C16: =tblTerritories!C13 -> Subway advanced control system | D16: =tblTerritories!D13 -> 1 | E16: =IF(AND(OR(tblTerritories!$K$5=4,tblTerritories!$K$5=5),$G$2=3),0,IF(AND(OR(tblTerritories!$K$5=2,tblTerritories!$K$5=3),$G$2=3),tblTerritories!G13,IF(AND($G$2=3,tblTerritories!$K$5=1),Z16,tblTerritories!G13))) -> 1 | F16: =tblTerritories!H13 -> 1 | G16: 5.3 | H16: =IF(F16=0,"",RANK(G16,G$6:G$31,0)+COUNTIF(G$6:G16,G16)-1) -> 26 | I16: 15 | J16: 1 | K16: 11 | L16: 1 | M16: 1 | P16: 11 | Q16: Battery energy storage | R16: 8.8 | T16: 8.8 | V16: 8.8 | W16: =1 -> 1 | Y16: 0 | Z16: =IF(Y16=1,tblTerritories!G13,0) -> 0 | AH16: =IF(R16="","",IF(R16<=uxb_works!$B$122,0,IF(R16<=uxb_works!$B$121,1,IF(R16<=uxb_works!$B$120,2,3)))) -> 0 | CE16: 5.25 | CF16: 0.5 | CG16: 100 | CH16: 8.083333333 | CJ16: 2 | CK16: =INDEX(aPercentile,$B$2,CJ16) -> 
A17: =tblTerritories!A14 -> 12 | B17: =tblTerritories!B14 -> XXX | C17: =tblTerritories!C14 -> Smart grids & smart meters | D17: =tblTerritories!D14 -> 1 | E17: =IF(AND(OR(tblTerritories!$K$5=4,tblTerritories!$K$5=5),$G$2=3),0,IF(AND(OR(tblTerritories!$K$5=2,tblTerritories!$K$5=3),$G$2=3),tblTerritories!G14,IF(AND($G$2=3,tblTerritories!$K$5=1),Z17,tblTerritories!G14))) -> 1 | F17: =tblTerritories!H14 -> 1 | G17: 9.7 | H17: =IF(F17=0,"",RANK(G17,G$6:G$31,0)+COUNTIF(G$6:G17,G17)-1) -> 3 | I17: 14 | J17: 1 | K17: 12 | L17: 1 | M17: 1 | P17: 12 | Q17: District heating & cooling systems (DHC) | R17: 8.5 | T17: 8.5 | V17: 8.5 | W17: =1 -> 1 | Y17: 0 | Z17: =IF(Y17=1,tblTerritories!G14,0) -> 0 | AH17: =IF(R17="","",IF(R17<=uxb_works!$B$122,0,IF(R17<=uxb_works!$B$121,1,IF(R17<=uxb_works!$B$120,2,3)))) -> 0 | CE17: 9.666666667 | CF17: 0.5 | CG17: 100 | CH17: 8.083333333 | CJ17: 2 | CK17: =INDEX(aPercentile,$B$2,CJ17) -> 
A18: =tblTerritories!A15 -> 13 | B18: =tblTerritories!B15 -> XXX | C18: =tblTerritories!C15 -> Distributed energy storage | D18: =tblTerritories!D15 -> 1 | E18: =IF(AND(OR(tblTerritories!$K$5=4,tblTerritories!$K$5=5),$G$2=3),0,IF(AND(OR(tblTerritories!$K$5=2,tblTerritories!$K$5=3),$G$2=3),tblTerritories!G15,IF(AND($G$2=3,tblTerritories!$K$5=1),Z18,tblTerritories!G15))) -> 1 | F18: =tblTerritories!H15 -> 1 | G18: 9.9 | H18: =IF(F18=0,"",RANK(G18,G$6:G$31,0)+COUNTIF(G$6:G18,G18)-1) -> 2 | I18: 1 | J18: 1 | K18: 13 | L18: 1 | M18: 2 | P18: =13 | Q18: Green roofs | R18: 8.1 | T18: 8.1 | V18: 8.1 | W18: =1 -> 1 | Y18: 0 | Z18: =IF(Y18=1,tblTerritories!G15,0) -> 0 | AH18: =IF(R18="","",IF(R18<=uxb_works!$B$122,0,IF(R18<=uxb_works!$B$121,1,IF(R18<=uxb_works!$B$120,2,3)))) -> 0 | CE18: 9.916666667 | CF18: 0.5 | CG18: 100 | CH18: 8.083333333 | CJ18: 2 | CK18: =INDEX(aPercentile,$B$2,CJ18) -> 
A19: =tblTerritories!A16 -> 14 | B19: =tblTerritories!B16 -> XXX | C19: =tblTerritories!C16 -> District heating & cooling systems (DHC) | D19: =tblTerritories!D16 -> 1 | E19: =IF(AND(OR(tblTerritories!$K$5=4,tblTerritories!$K$5=5),$G$2=3),0,IF(AND(OR(tblTerritories!$K$5=2,tblTerritories!$K$5=3),$G$2=3),tblTerritories!G16,IF(AND($G$2=3,tblTerritories!$K$5=1),Z19,tblTerritories!G16))) -> 1 | F19: =tblTerritories!H16 -> 1 | G19: 8.5 | H19: =IF(F19=0,"",RANK(G19,G$6:G$31,0)+COUNTIF(G$6:G19,G19)-1) -> 12 | I19: 25 | J19: 1 | K19: 13 | L19: 1 | M19: 2 | P19: =13 | Q19: Mobility as a Service (MaaS) | R19: 8.1 | T19: 8.1 | V19: 8.1 | W19: =1 -> 1 | Y19: 0 | Z19: =IF(Y19=1,tblTerritories!G16,0) -> 0 | AH19: =IF(R19="","",IF(R19<=uxb_works!$B$122,0,IF(R19<=uxb_works!$B$121,1,IF(R19<=uxb_works!$B$120,2,3)))) -> 0 | CE19: 8.5 | CF19: 0.5 | CG19: 100 | CH19: 8.083333333 | CJ19: 2 | CK19: =INDEX(aPercentile,$B$2,CJ19) -> 
A20: =tblTerritories!A17 -> 15 | B20: =tblTerritories!B17 -> XXX | C20: =tblTerritories!C17 -> Battery energy storage | D20: =tblTerritories!D17 -> 1 | E20: =IF(AND(OR(tblTerritories!$K$5=4,tblTerritories!$K$5=5),$G$2=3),0,IF(AND(OR(tblTerritories!$K$5=2,tblTerritories!$K$5=3),$G$2=3),tblTerritories!G17,IF(AND($G$2=3,tblTerritories!$K$5=1),Z20,tblTerritories!G17))) -> 1 | F20: =tblTerritories!H17 -> 1 | G20: 8.8 | H20: =IF(F20=0,"",RANK(G20,G$6:G$31,0)+COUNTIF(G$6:G20,G20)-1) -> 11 | I20: 4 | J20: 1 | K20: 15 | L20: 1 | M20: 3 | P20: =15 | Q20: High-performance glass | R20: 8 | T20: 8 | V20: 8 | W20: =1 -> 1 | Y20: 0 | Z20: =IF(Y20=1,tblTerritories!G17,0) -> 0 | AH20: =IF(R20="","",IF(R20<=uxb_works!$B$122,0,IF(R20<=uxb_works!$B$121,1,IF(R20<=uxb_works!$B$120,2,3)))) -> 0 | CE20: 8.833333333 | CF20: 0.5 | CG20: 100 | CH20: 8.083333333 | CJ20: 2 | CK20: =INDEX(aPercentile,$B$2,CJ20) -> 
A21: =tblTerritories!A18 -> 16 | B21: =tblTerritories!B18 -> XXX | C21: =tblTerritories!C18 -> Thermal energy storage | D21: =tblTerritories!D18 -> 1 | E21: =IF(AND(OR(tblTerritories!$K$5=4,tblTerritories!$K$5=5),$G$2=3),0,IF(AND(OR(tblTerritories!$K$5=2,tblTerritories!$K$5=3),$G$2=3),tblTerritories!G18,IF(AND($G$2=3,tblTerritories!$K$5=1),Z21,tblTerritories!G18))) -> 1 | F21: =tblTerritories!H18 -> 1 | G21: 9.5 | H21: =IF(F21=0,"",RANK(G21,G$6:G$31,0)+COUNTIF(G$6:G21,G21)-1) -> 5 | I21: 18 | J21: 1 | K21: 15 | L21: 1 | M21: 3 | P21: =15 | Q21: Waste robotics | R21: 8 | T21: 8 | V21: 8 | W21: =1 -> 1 | Y21: 0 | Z21: =IF(Y21=1,tblTerritories!G18,0) -> 0 | AH21: =IF(R21="","",IF(R21<=uxb_works!$B$122,0,IF(R21<=uxb_works!$B$121,1,IF(R21<=uxb_works!$B$120,2,3)))) -> 0 | CE21: 9.5 | CF21: 0.5 | CG21: 100 | CH21: 8.083333333 | CJ21: 2 | CK21: =INDEX(aPercentile,$B$2,CJ21) -> 
A22: =tblTerritories!A19 -> 17 | B22: =tblTerritories!B19 -> XXX | C22: =tblTerritories!C19 -> Distributed solar power | D22: =tblTerritories!D19 -> 1 | E22: =IF(AND(OR(tblTerritories!$K$5=4,tblTerritories!$K$5=5),$G$2=3),0,IF(AND(OR(tblTerritories!$K$5=2,tblTerritories!$K$5=3),$G$2=3),tblTerritories!G19,IF(AND($G$2=3,tblTerritories!$K$5=1),Z22,tblTerritories!G19))) -> 1 | F22: =tblTerritories!H19 -> 1 | G22: 10.4 | H22: =IF(F22=0,"",RANK(G22,G$6:G$31,0)+COUNTIF(G$6:G22,G22)-1) -> 1 | I22: 21 | J22: 1 | K22: 15 | L22: 1 | M22: 3 | P22: =15 | Q22: Smart charging | R22: 8 | T22: 8 | V22: 8 | W22: =1 -> 1 | Y22: 0 | Z22: =IF(Y22=1,tblTerritories!G19,0) -> 0 | AH22: =IF(R22="","",IF(R22<=uxb_works!$B$122,0,IF(R22<=uxb_works!$B$121,1,IF(R22<=uxb_works!$B$120,2,3)))) -> 0 | CE22: 10.41666667 | CF22: 0.5 | CG22: 100 | CH22: 8.083333333 | CJ22: 2 | CK22: =INDEX(aPercentile,$B$2,CJ22) -> 
A23: =tblTerritories!A20 -> 18 | B23: =tblTerritories!B20 -> XXX | C23: =tblTerritories!C20 -> Waste robotics | D23: =tblTerritories!D20 -> 1 | E23: =IF(AND(OR(tblTerritories!$K$5=4,tblTerritories!$K$5=5),$G$2=3),0,IF(AND(OR(tblTerritories!$K$5=2,tblTerritories!$K$5=3),$G$2=3),tblTerritories!G20,IF(AND($G$2=3,tblTerritories!$K$5=1),Z23,tblTerritories!G20))) -> 1 | F23: =tblTerritories!H20 -> 1 | G23: 8 | H23: =IF(F23=0,"",RANK(G23,G$6:G$31,0)+COUNTIF(G$6:G23,G23)-1) -> 16 | I23: 26 | J23: 1 | K23: 18 | L23: 1 | M23: 1 | P23: 18 | Q23: Autonomous vehicles (AVs) | R23: 7.7 | T23: 7.7 | V23: 7.7 | W23: =1 -> 1 | Y23: 0 | Z23: =IF(Y23=1,tblTerritories!G20,0) -> 0 | AH23: =IF(R23="","",IF(R23<=uxb_works!$B$122,0,IF(R23<=uxb_works!$B$121,1,IF(R23<=uxb_works!$B$120,2,3)))) -> 0 | CE23: 8 | CF23: 0.5 | CG23: 100 | CH23: 8.083333333 | CJ23: 2 | CK23: =INDEX(aPercentile,$B$2,CJ23) -> 
A24: =tblTerritories!A21 -> 19 | B24: =tblTerritories!B21 -> XXX | C24: =tblTerritories!C21 -> Electric vehicles (EVs) | D24: =tblTerritories!D21 -> 1 | E24: =IF(AND(OR(tblTerritories!$K$5=4,tblTerritories!$K$5=5),$G$2=3),0,IF(AND(OR(tblTerritories!$K$5=2,tblTerritories!$K$5=3),$G$2=3),tblTerritories!G21,IF(AND($G$2=3,tblTerritories!$K$5=1),Z24,tblTerritories!G21))) -> 1 | F24: =tblTerritories!H21 -> 1 | G24: 9.1 | H24: =IF(F24=0,"",RANK(G24,G$6:G$31,0)+COUNTIF(G$6:G24,G24)-1) -> 10 | I24: 5 | J24: 1 | K24: 19 | L24: 1 | M24: 1 | P24: 19 | Q24: Environmentally friendly insulation | R24: 7.6 | T24: 7.6 | V24: 7.6 | W24: =1 -> 1 | Y24: 0 | Z24: =IF(Y24=1,tblTerritories!G21,0) -> 0 | AH24: =IF(R24="","",IF(R24<=uxb_works!$B$122,0,IF(R24<=uxb_works!$B$121,1,IF(R24<=uxb_works!$B$120,2,3)))) -> 0 | CE24: 9.083333333 | CF24: 0.5 | CG24: 100 | CH24: 8.083333333 | CJ24: 2 | CK24: =INDEX(aPercentile,$B$2,CJ24) -> 
A25: =tblTerritories!A22 -> 20 | B25: =tblTerritories!B22 -> XXX | C25: =tblTerritories!C22 -> Electric vehicle charging ports | D25: =tblTerritories!D22 -> 1 | E25: =IF(AND(OR(tblTerritories!$K$5=4,tblTerritories!$K$5=5),$G$2=3),0,IF(AND(OR(tblTerritories!$K$5=2,tblTerritories!$K$5=3),$G$2=3),tblTerritories!G22,IF(AND($G$2=3,tblTerritories!$K$5=1),Z25,tblTerritories!G22))) -> 1 | F25: =tblTerritories!H22 -> 1 | G25: 9.4 | H25: =IF(F25=0,"",RANK(G25,G$6:G$31,0)+COUNTIF(G$6:G25,G25)-1) -> 7 | I25: 2 | J25: 1 | K25: 20 | L25: 1 | M25: 2 | P25: =20 | Q25: Cool roofs | R25: 7.3 | T25: 7.3 | V25: 7.3 | W25: =1 -> 1 | Y25: 0 | Z25: =IF(Y25=1,tblTerritories!G22,0) -> 0 | AH25: =IF(R25="","",IF(R25<=uxb_works!$B$122,0,IF(R25<=uxb_works!$B$121,1,IF(R25<=uxb_works!$B$120,2,3)))) -> 0 | CE25: 9.416666667 | CF25: 0.5 | CG25: 100 | CH25: 8.083333333 | CJ25: 2 | CK25: =INDEX(aPercentile,$B$2,CJ25) -> 
A26: =tblTerritories!A23 -> 21 | B26: =tblTerritories!B23 -> XXX | C26: =tblTerritories!C23 -> Smart charging | D26: =tblTerritories!D23 -> 1 | E26: =IF(AND(OR(tblTerritories!$K$5=4,tblTerritories!$K$5=5),$G$2=3),0,IF(AND(OR(tblTerritories!$K$5=2,tblTerritories!$K$5=3),$G$2=3),tblTerritories!G23,IF(AND($G$2=3,tblTerritories!$K$5=1),Z26,tblTerritories!G23))) -> 1 | F26: =tblTerritories!H23 -> 1 | G26: 8 | H26: =IF(F26=0,"",RANK(G26,G$6:G$31,0)+COUNTIF(G$6:G26,G26)-1) -> 17 | I26: 23 | J26: 1 | K26: 20 | L26: 1 | M26: 2 | P26: =20 | Q26: Battery operation enhancements | R26: 7.3 | T26: 7.3 | V26: 7.3 | W26: =1 -> 1 | Y26: 0 | Z26: =IF(Y26=1,tblTerritories!G23,0) -> 0 | AH26: =IF(R26="","",IF(R26<=uxb_works!$B$122,0,IF(R26<=uxb_works!$B$121,1,IF(R26<=uxb_works!$B$120,2,3)))) -> 0 | CE26: 8 | CF26: 0.5 | CG26: 100 | CH26: 8.083333333 | CJ26: 2 | CK26: =INDEX(aPercentile,$B$2,CJ26) -> 
A27: =tblTerritories!A24 -> 22 | B27: =tblTerritories!B24 -> XXX | C27: =tblTerritories!C24 -> Vehicle-to-grid technologies (V2G) | D27: =tblTerritories!D24 -> 1 | E27: =IF(AND(OR(tblTerritories!$K$5=4,tblTerritories!$K$5=5),$G$2=3),0,IF(AND(OR(tblTerritories!$K$5=2,tblTerritories!$K$5=3),$G$2=3),tblTerritories!G24,IF(AND($G$2=3,tblTerritories!$K$5=1),Z27,tblTerritories!G24))) -> 1 | F27: =tblTerritories!H24 -> 1 | G27: 7.2 | H27: =IF(F27=0,"",RANK(G27,G$6:G$31,0)+COUNTIF(G$6:G27,G27)-1) -> 22 | I27: 22 | J27: 1 | K27: 22 | L27: 1 | M27: 1 | P27: 22 | Q27: Vehicle-to-grid technologies (V2G) | R27: 7.2 | T27: 7.2 | V27: 7.2 | W27: =1 -> 1 | Y27: 0 | Z27: =IF(Y27=1,tblTerritories!G24,0) -> 0 | AH27: =IF(R27="","",IF(R27<=uxb_works!$B$122,0,IF(R27<=uxb_works!$B$121,1,IF(R27<=uxb_works!$B$120,2,3)))) -> 0 | CE27: 7.166666667 | CF27: 0.5 | CG27: 100 | CH27: 8.083333333 | CJ27: 2 | CK27: =INDEX(aPercentile,$B$2,CJ27) -> 
A28: =tblTerritories!A25 -> 23 | B28: =tblTerritories!B25 -> XXX | C28: =tblTerritories!C25 -> Battery operation enhancements | D28: =tblTerritories!D25 -> 1 | E28: =IF(AND(OR(tblTerritories!$K$5=4,tblTerritories!$K$5=5),$G$2=3),0,IF(AND(OR(tblTerritories!$K$5=2,tblTerritories!$K$5=3),$G$2=3),tblTerritories!G25,IF(AND($G$2=3,tblTerritories!$K$5=1),Z28,tblTerritories!G25))) -> 1 | F28: =tblTerritories!H25 -> 1 | G28: 7.3 | H28: =IF(F28=0,"",RANK(G28,G$6:G$31,0)+COUNTIF(G$6:G28,G28)-1) -> 21 | I28: 24 | J28: 1 | K28: 23 | L28: 1 | M28: 1 | P28: 23 | Q28: Hydrogen transport vehicles | R28: 6.9 | T28: 6.9 | V28: 6.9 | W28: =1 -> 1 | Y28: 0 | Z28: =IF(Y28=1,tblTerritories!G25,0) -> 0 | AH28: =IF(R28="","",IF(R28<=uxb_works!$B$122,0,IF(R28<=uxb_works!$B$121,1,IF(R28<=uxb_works!$B$120,2,3)))) -> 0 | CE28: 7.25 | CF28: 0.5 | CG28: 100 | CH28: 8.083333333 | CJ28: 2 | CK28: =INDEX(aPercentile,$B$2,CJ28) -> 
A29: =tblTerritories!A26 -> 24 | B29: =tblTerritories!B26 -> XXX | C29: =tblTerritories!C26 -> Hydrogen transport vehicles | D29: =tblTerritories!D26 -> 1 | E29: =IF(AND(OR(tblTerritories!$K$5=4,tblTerritories!$K$5=5),$G$2=3),0,IF(AND(OR(tblTerritories!$K$5=2,tblTerritories!$K$5=3),$G$2=3),tblTerritories!G26,IF(AND($G$2=3,tblTerritories!$K$5=1),Z29,tblTerritories!G26))) -> 1 | F29: =tblTerritories!H26 -> 1 | G29: 6.9 | H29: =IF(F29=0,"",RANK(G29,G$6:G$31,0)+COUNTIF(G$6:G29,G29)-1) -> 23 | I29: 8 | J29: 1 | K29: 24 | L29: 1 | M29: 2 | P29: =24 | Q29: Digital twins | R29: 6.8 | T29: 6.8 | V29: 6.8 | W29: =1 -> 1 | Y29: 0 | Z29: =IF(Y29=1,tblTerritories!G26,0) -> 0 | AH29: =IF(R29="","",IF(R29<=uxb_works!$B$122,0,IF(R29<=uxb_works!$B$121,1,IF(R29<=uxb_works!$B$120,2,3)))) -> 0 | CE29: 6.916666667 | CF29: 0.5 | CG29: 100 | CH29: 8.083333333 | CJ29: 2 | CK29: =INDEX(aPercentile,$B$2,CJ29) -> 
A30: =tblTerritories!A27 -> 25 | B30: =tblTerritories!B27 -> XXX | C30: =tblTerritories!C27 -> Mobility as a Service (MaaS) | D30: =tblTerritories!D27 -> 1 | E30: =IF(AND(OR(tblTerritories!$K$5=4,tblTerritories!$K$5=5),$G$2=3),0,IF(AND(OR(tblTerritories!$K$5=2,tblTerritories!$K$5=3),$G$2=3),tblTerritories!G27,IF(AND($G$2=3,tblTerritories!$K$5=1),Z30,tblTerritories!G27))) -> 1 | F30: =tblTerritories!H27 -> 1 | G30: 8.1 | H30: =IF(F30=0,"",RANK(G30,G$6:G$31,0)+COUNTIF(G$6:G30,G30)-1) -> 14 | I30: 9 | J30: 1 | K30: 24 | L30: 1 | M30: 2 | P30: =24 | Q30: Building automation systems (BAS) | R30: 6.8 | T30: 6.8 | V30: 6.8 | W30: =1 -> 1 | Y30: 0 | Z30: =IF(Y30=1,tblTerritories!G27,0) -> 0 | AH30: =IF(R30="","",IF(R30<=uxb_works!$B$122,0,IF(R30<=uxb_works!$B$121,1,IF(R30<=uxb_works!$B$120,2,3)))) -> 0 | CE30: 8.083333333 | CF30: 0.5 | CG30: 100 | CH30: 8.083333333 | CJ30: 2 | CK30: =INDEX(aPercentile,$B$2,CJ30) -> 
A31: =tblTerritories!A28 -> 26 | B31: =tblTerritories!B28 -> XXX | C31: =tblTerritories!C28 -> Autonomous vehicles (AVs) | D31: =tblTerritories!D28 -> 1 | E31: =IF(AND(OR(tblTerritories!$K$5=4,tblTerritories!$K$5=5),$G$2=3),0,IF(AND(OR(tblTerritories!$K$5=2,tblTerritories!$K$5=3),$G$2=3),tblTerritories!G28,IF(AND($G$2=3,tblTerritories!$K$5=1),Z31,tblTerritories!G28))) -> 1 | F31: =tblTerritories!H28 -> 1 | G31: 7.7 | H31: =IF(F31=0,"",RANK(G31,G$6:G$31,0)+COUNTIF(G$6:G31,G31)-1) -> 18 | I31: 11 | J31: 1 | K31: 26 | L31: 1 | M31: 1 | P31: 26 | Q31: Subway advanced control system | R31: 5.3 | T31: 5.3 | V31: 5.3 | W31: =1 -> 1 | Y31: 0 | Z31: =IF(Y31=1,tblTerritories!G28,0) -> 0 | AH31: =IF(R31="","",IF(R31<=uxb_works!$B$122,0,IF(R31<=uxb_works!$B$121,1,IF(R31<=uxb_works!$B$120,2,3)))) -> 0 | CE31: 7.666666667 | CF31: 0.5 | CG31: 100 | CH31: 8.083333333 | CJ31: 2 | CK31: =INDEX(aPercentile,$B$2,CJ31) -> 
A33: Region | B33: =INDEX(tblTerritories!O4:O7,uxb_works!B8) -> 1
A34: Average
J35: 1 | R35: =IF(uxb_works!B6>1,INDEX(G5:G31,uxb_works!B6),NA()) -> 
AD37: Less Than

Sheet iTBD (hidden)
A1: =uxb_works!A26 -> COUNTRY1_ID | B1: =uxb_works!B26 -> 1 | C1: =uxb_works!C26 -> Green roofs
B3: 1 | F3: Indi | G3: data | K3: Just | L3: Red | M3: Score_adj | N3: EIU Final Score | O3: Adj_just
B4: =B2+1 -> 1 | C4: =D4 -> 0 | D4: =tblIndiSets!D13 -> 0 | F4: =tblIndiSets!F13 -> TOTAL SCORE | G4: =INDEX(aScoresRounded,$B4,$B$1) -> 8.1 | H4: =IF(G4<uxb_works!$P$120,uxb_works!$R$120,IF(G4<uxb_works!$P$121,uxb_works!$R$121,IF(G4<uxb_works!$P$122,uxb_works!$R$122,uxb_works!$R$123))) -> High | I4: =IF(G4<uxb_works!$P$120,0,IF(G4<uxb_works!$P$121,1,IF(G4<uxb_works!$P$122,2,3))) -> 2 | K4: =IF(D4=2,INDEX(aJust,$B4,$B$1),"") ->  | L4: =IF(D4=2,INDEX(aRef,$B4,$B$1),"") ->  | M4: - | N4: - | O4: -
B5: =B3+1 -> 2 | C5: =D5 -> 1 | D5: =tblIndiSets!D14 -> 1 | F5: =tblIndiSets!F14 -> 1) IMPACT SCORE | G5: =INDEX(aScoresRounded,$B5,$B$1) -> 2.8 | H5: =IF(G5<uxb_works!$O$120,uxb_works!$Q$120,IF(G5<uxb_works!$O$121,uxb_works!$Q$121,IF(G5<uxb_works!$O$122,uxb_works!$Q$122,uxb_works!$Q$123))) -> Medium | I5: =IF(G5<uxb_works!$O$120,0,IF(G5<uxb_works!$O$121,1,IF(G5<uxb_works!$O$122,2,3))) -> 1 | K5: =IF(D5=2,INDEX(aJust,$B5,$B$1),"") ->  | L5: =IF(D5=2,INDEX(aRef,$B5,$B$1),"") ->  | M5: - | N5: - | O5: -
B6: =B5+1 -> 3 | C6: 2 | D6: =tblIndiSets!D15 -> 2 | F6: =tblIndiSets!F15 -> 1.1) Comparability with traditional alternative | G6: =INDEX(aScoresRounded,$B6,$B$1) -> 1 | H6: =IF(G6<uxb_works!$O$120,uxb_works!$Q$120,IF(G6<uxb_works!$O$121,uxb_works!$Q$121,IF(G6<uxb_works!$O$122,uxb_works!$Q$122,uxb_works!$Q$123))) -> Low | I6: =IF(G6<uxb_works!$O$120,0,IF(G6<uxb_works!$O$121,1,IF(G6<uxb_works!$O$122,2,3))) -> 0 | K6: =IF(D6=2,INDEX(aJust,$B6,$B$1),"") -> There is conflicting evidence over whether green roofs operate as well as traditional roofs. They are able to perform the essential elements of a roof such as protect buildings from the elements and weather. [1] They improvements upon roofs in that they improve stormwater management and extend a roof's life. [1] But, depending on rooftop design, they can be more prone to leakage than ordinary roofs and require more maintenance to carry out the same function. [2] | L6: =IF(D6=2,INDEX(aRef,$B6,$B$1),"") -> [1] Castleton, H. F., Stovin, V., Beck, S. B. M., & Davison, J. B. (2010). Green roofs; building energy savings and the potential for retrofit. Energy and Buildings, 42(10), 1582-1591. doi:https://doi.org/10.1016/j.enbuild.2010.05.004 [2] Shafique, M., Kim, R., & Rafiq, M. (2018). Green roof benefits, opportunities and challenges – A review. Renewable and Sustainable Energy Reviews, 90, 757-773. doi:https://doi.org/10.1016/j.rser.2018.04.006 | M6: - | N6: - | O6: -
B7: 4 | C7: 2 | D7: =tblIndiSets!D16 -> 2 | F7: =tblIndiSets!F16 -> 1.2) Carbon emissions reduction | G7: =INDEX(aScoresRounded,$B7,$B$1) -> 4 | H7: =IF(G7<uxb_works!$O$120,uxb_works!$Q$120,IF(G7<uxb_works!$O$121,uxb_works!$Q$121,IF(G7<uxb_works!$O$122,uxb_works!$Q$122,uxb_works!$Q$123))) -> Very High | I7: =IF(G7<uxb_works!$O$120,0,IF(G7<uxb_works!$O$121,1,IF(G7<uxb_works!$O$122,2,3))) -> 3 | K7: =IF(D7=2,INDEX(aJust,$B7,$B$1),"") -> 0.6–1.1 Gigatons CO2 equivalent reduced / sequestered (2020–2050) [1] | L7: =IF(D7=2,INDEX(aRef,$B7,$B$1),"") -> [1] Project Drawdown. (2021) "Green & Cool Roofs". https://drawdown.org/solutions/green-and-cool-roofs/technical-summary | M7: - | N7: - | O7: -
B8: 5 | C8: 2 | D8: =tblIndiSets!D17 -> 2 | F8: =tblIndiSets!F17 -> 1.3) Potential additional benefits | G8: =INDEX(aScoresRounded,$B8,$B$1) -> 4 | H8: =IF(G8<uxb_works!$O$120,uxb_works!$Q$120,IF(G8<uxb_works!$O$121,uxb_works!$Q$121,IF(G8<uxb_works!$O$122,uxb_works!$Q$122,uxb_works!$Q$123))) -> Very High | I8: =IF(G8<uxb_works!$O$120,0,IF(G8<uxb_works!$O$121,1,IF(G8<uxb_works!$O$122,2,3))) -> 3 | K8: =IF(D8=2,INDEX(aJust,$B8,$B$1),"") -> Improves stormwater management by storing water in the green roof system which reduces and delays runoff during high periods of rainfall. [1] Improves water runoff quality [2] Improves urban air quality [3] Extends period between replacing roof [4] Reduces urban heat island effect [4] Enhances architectural interest [4] Reduces energy costs for cooling and/or heating of buildings. They can save between 9% in energy usage for heating in buildings with well-insulated roofs to 45% in buildings with non-insulated roofs. Green roofs do not reduce energy consumption for cooling in well insulated building but can reduce energy consumption by 45% in non-insulated buildings; meaning energy savings can sit between 2 to 44%, respectively per year. [5] | L8: =IF(D8=2,INDEX(aRef,$B8,$B$1),"") -> [1] Mentens, J., Raes, D., & Hermy, M. (2006). Green roofs as a tool for solving the rainwater runoff problem in the urbanized 21st century? Landscape and Urban Planning, 77(3), 217-226. doi:https://doi.org/10.1016/j.landurbplan.2005.02.010 [2] Berndtsson, J. C., Bengtsson, L., & Jinno, K. (2009). Runoff water quality from intensive and extensive vegetated roofs. Ecological Engineering, 35(3), 369-380. doi:https://doi.org/10.1016/j.ecoleng.2008.09.020 [3] Yang, J., Yu, Q., & Gong, P. (2008). Quantifying air pollution removal by green roofs in Chicago. Atmospheric Environment, 42(31), 7266-7273. doi:https://doi.org/10.1016/j.atmosenv.2008.07.003 [4] Castleton, H. F., Stovin, V., Beck, S. B. M., & Davison, J. B. (2010). Green roofs; building energy savings and the potential for retrofit. Energy and Buildings, 42(10), 1582-1591. doi:https://doi.org/10.1016/j.enbuild.2010.05.004 [5] Niachou, Aikaterini, et al. "Analysis of the green roof thermal properties and investigation of its energy performance." Energy and buildings 33.7 (2001): 719-729. | M8: - | N8: - | O8: -
B9: 6 | C9: 2 | D9: =tblIndiSets!D18 -> 2 | F9: =tblIndiSets!F18 -> 1.4) Potential harms / consequences | G9: =INDEX(aScoresRounded,$B9,$B$1) -> 2 | H9: =IF(G9<uxb_works!$O$120,uxb_works!$Q$120,IF(G9<uxb_works!$O$121,uxb_works!$Q$121,IF(G9<uxb_works!$O$122,uxb_works!$Q$122,uxb_works!$Q$123))) -> Medium | I9: =IF(G9<uxb_works!$O$120,0,IF(G9<uxb_works!$O$121,1,IF(G9<uxb_works!$O$122,2,3))) -> 1 | K9: =IF(D9=2,INDEX(aJust,$B9,$B$1),"") -> Increased maintenance costs & frequency [1-5] There is evidence that green roofs can be more prone to causing building damage if improperly installed. [1-5] | L9: =IF(D9=2,INDEX(aRef,$B9,$B$1),"") -> [1] Mentens, J., Raes, D., & Hermy, M. (2006). Green roofs as a tool for solving the rainwater runoff problem in the urbanized 21st century? Landscape and Urban Planning, 77(3), 217-226. doi:https://doi.org/10.1016/j.landurbplan.2005.02.010 [2] Berndtsson, J. C., Bengtsson, L., & Jinno, K. (2009). Runoff water quality from intensive and extensive vegetated roofs. Ecological Engineering, 35(3), 369-380. doi:https://doi.org/10.1016/j.ecoleng.2008.09.020 [3] Yang, J., Yu, Q., & Gong, P. (2008). Quantifying air pollution removal by green roofs in Chicago. Atmospheric Environment, 42(31), 7266-7273. doi:https://doi.org/10.1016/j.atmosenv.2008.07.003 [4] Castleton, H. F., Stovin, V., Beck, S. B. M., & Davison, J. B. (2010). Green roofs; building energy savings and the potential for retrofit. Energy and Buildings, 42(10), 1582-1591. doi:https://doi.org/10.1016/j.enbuild.2010.05.004 [5] Niachou, Aikaterini, et al. "Analysis of the green roof thermal properties and investigation of its energy performance." Energy and buildings 33.7 (2001): 719-729. | M9: - | N9: - | O9: -
B10: 7 | C10: 1 | D10: =tblIndiSets!D19 -> 1 | F10: =tblIndiSets!F19 -> 2) SCALABILITY SCORE | G10: =INDEX(aScoresRounded,$B10,$B$1) -> 3.3 | H10: =IF(G10<uxb_works!$O$120,uxb_works!$Q$120,IF(G10<uxb_works!$O$121,uxb_works!$Q$121,IF(G10<uxb_works!$O$122,uxb_works!$Q$122,uxb_works!$Q$123))) -> High | I10: =IF(G10<uxb_works!$O$120,0,IF(G10<uxb_works!$O$121,1,IF(G10<uxb_works!$O$122,2,3))) -> 2 | K10: =IF(D10=2,INDEX(aJust,$B10,$B$1),"") ->  | L10: =IF(D10=2,INDEX(aRef,$B10,$B$1),"") ->  | M10: - | N10: - | O10: -
B11: 8 | C11: 2 | D11: =tblIndiSets!D20 -> 2 | F11: =tblIndiSets!F20 -> 2.1) Current state of development | G11: =INDEX(aScoresRounded,$B11,$B$1) -> 4 | H11: =IF(G11<uxb_works!$O$120,uxb_works!$Q$120,IF(G11<uxb_works!$O$121,uxb_works!$Q$121,IF(G11<uxb_works!$O$122,uxb_works!$Q$122,uxb_works!$Q$123))) -> Very High | I11: =IF(G11<uxb_works!$O$120,0,IF(G11<uxb_works!$O$121,1,IF(G11<uxb_works!$O$122,2,3))) -> 3 | K11: =IF(D11=2,INDEX(aJust,$B11,$B$1),"") -> Evidence it is out of research phase [1-9] Yes, there is evidence of availability to purchase in Germany [1] Yes, there is evidence of availability to purchase in France [2] Yes, there is evidence of availability to purchase in Spain [3] Yes, there is evidence of availability to purchase in Italy [4] Yes, there is evidence of availability to purchase in UK [5] Yes, there is evidence of availability to purchase in US [6] Yes, there is evidence of availability to purchase in India [7] Yes, there is evidence of availability to purchase in South Korea [8] Yes, there is evidence of availability to purchase in Singapore [9] | L11: =IF(D11=2,INDEX(aRef,$B11,$B$1),"") -> [1] ZinCo (2021) "Zinco" https://www.zinco.de/ [2] Mon Toit Vert (2021) "Mon Toit Vert" https://www.montoitvert.fr/ [3] Techos Verdes Madrid (2021) "Techos Verdes" https://www.techosverdesmadrid.es/ [4] RasenFix (2021) "Prodotti per tetti verdi" https://www.rasenfix.com/it/tetti-verdi/prodotti/ [5] HS RoofClad (2021) "Green Roofing" https://www.hsroofclad.com/roofing-services/green-roofing/ [6] Liveroof (2021) "Live Roof" https://liveroof.com/ [7] IndiaMart (2021) "Green Roofs at Best Price" https://dir.indiamart.com/impcat/green-roofs.html [8] ZinCo (2021) "Zinco South Korea" https://zinco-greenroof.com/worldwide/south-korea [9] Prince's Landscape (2021) "#1 Best Green Roof Garden Systems in Singapore" https://www.princelandscape.com/green-roof-system/ | M11: - | N11: - | O11: -
B12: 9 | C12: 2 | D12: =tblIndiSets!D21 -> 2 | F12: =tblIndiSets!F21 -> 2.2) Initial investment costs | G12: =INDEX(aScoresRounded,$B12,$B$1) -> 2 | H12: =IF(G12<uxb_works!$O$120,uxb_works!$Q$120,IF(G12<uxb_works!$O$121,uxb_works!$Q$121,IF(G12<uxb_works!$O$122,uxb_works!$Q$122,uxb_works!$Q$123))) -> Medium | I12: =IF(G12<uxb_works!$O$120,0,IF(G12<uxb_works!$O$121,1,IF(G12<uxb_works!$O$122,2,3))) -> 1 | K12: =IF(D12=2,INDEX(aJust,$B12,$B$1),"") -> $623.65–954.38 billion $US for net first cost to implement solution [1] | L12: =IF(D12=2,INDEX(aRef,$B12,$B$1),"") -> [1] Project Drawdown. (2021) "Cool & Green Roofs" https://drawdown.org/solutions/green-and-cool-roofs | M12: - | N12: - | O12: -
B13: 10 | C13: 2 | D13: =tblIndiSets!D22 -> 2 | F13: =tblIndiSets!F22 -> 2.3) Ease of integration | G13: =INDEX(aScoresRounded,$B13,$B$1) -> 4 | H13: =IF(G13<uxb_works!$O$120,uxb_works!$Q$120,IF(G13<uxb_works!$O$121,uxb_works!$Q$121,IF(G13<uxb_works!$O$122,uxb_works!$Q$122,uxb_works!$Q$123))) -> Very High | I13: =IF(G13<uxb_works!$O$120,0,IF(G13<uxb_works!$O$121,1,IF(G13<uxb_works!$O$122,2,3))) -> 3 | K13: =IF(D13=2,INDEX(aJust,$B13,$B$1),"") -> There is no evidence of additional investment needed but it does require additional maintenance [1,2] | L13: =IF(D13=2,INDEX(aRef,$B13,$B$1),"") -> [1] Mentens, J., Raes, D., & Hermy, M. (2006). Green roofs as a tool for solving the rainwater runoff problem in the urbanized 21st century? Landscape and Urban Planning, 77(3), 217-226. doi:https://doi.org/10.1016/j.landurbplan.2005.02.010 [2] Berndtsson, J. C., Bengtsson, L., & Jinno, K. (2009). Runoff water quality from intensive and extensive vegetated roofs. Ecological Engineering, 35(3), 369-380. doi:https://doi.org/10.1016/j.ecoleng.2008.09.020 | M13: - | N13: - | O13: -
B14: 11 | C14: 1 | D14: =tblIndiSets!D23 -> 1 | F14: =tblIndiSets!F23 -> 3) INVESTMENT SCORE | G14: =INDEX(aScoresRounded,$B14,$B$1) -> 2 | H14: =IF(G14<uxb_works!$O$120,uxb_works!$Q$120,IF(G14<uxb_works!$O$121,uxb_works!$Q$121,IF(G14<uxb_works!$O$122,uxb_works!$Q$122,uxb_works!$Q$123))) -> Medium | I14: =IF(G14<uxb_works!$O$120,0,IF(G14<uxb_works!$O$121,1,IF(G14<uxb_works!$O$122,2,3))) -> 1 | K14: =IF(D14=2,INDEX(aJust,$B14,$B$1),"") ->  | L14: =IF(D14=2,INDEX(aRef,$B14,$B$1),"") ->  | M14: - | N14: - | O14: -
B15: 12 | C15: 2 | D15: =tblIndiSets!D24 -> 2 | F15: =tblIndiSets!F24 -> 3.1) Current level of investment | G15: =INDEX(aScoresRounded,$B15,$B$1) -> 1 | H15: =IF(G15<uxb_works!$O$120,uxb_works!$Q$120,IF(G15<uxb_works!$O$121,uxb_works!$Q$121,IF(G15<uxb_works!$O$122,uxb_works!$Q$122,uxb_works!$Q$123))) -> Low | I15: =IF(G15<uxb_works!$O$120,0,IF(G15<uxb_works!$O$121,1,IF(G15<uxb_works!$O$122,2,3))) -> 0 | K15: =IF(D15=2,INDEX(aJust,$B15,$B$1),"") -> Evidence of current level of investment according to crunchbase: $388,274.37 + $2,734,370.00 + $118,044.13 + $60,000.00 + $50,000.00 = $3,350,688.50 | L15: =IF(D15=2,INDEX(aRef,$B15,$B$1),"") -> Crunchbase | M15: - | N15: - | O15: -
B16: 13 | C16: 2 | D16: =tblIndiSets!D25 -> 2 | F16: =tblIndiSets!F25 -> 3.2) Availability of private funding | G16: =INDEX(aScoresRounded,$B16,$B$1) -> 1 | H16: =IF(G16<uxb_works!$O$120,uxb_works!$Q$120,IF(G16<uxb_works!$O$121,uxb_works!$Q$121,IF(G16<uxb_works!$O$122,uxb_works!$Q$122,uxb_works!$Q$123))) -> Low | I16: =IF(G16<uxb_works!$O$120,0,IF(G16<uxb_works!$O$121,1,IF(G16<uxb_works!$O$122,2,3))) -> 0 | K16: =IF(D16=2,INDEX(aJust,$B16,$B$1),"") -> Evidence of 4 Investors in total Evidence of 1 Lead Investor | L16: =IF(D16=2,INDEX(aRef,$B16,$B$1),"") -> Crunchbase | M16: - | N16: - | O16: -
B17: 14 | C17: 2 | D17: =tblIndiSets!D26 -> 2 | F17: =tblIndiSets!F26 -> 3.3) Availability of public funding | G17: =INDEX(aScoresRounded,$B17,$B$1) -> 4 | H17: =IF(G17<uxb_works!$O$120,uxb_works!$Q$120,IF(G17<uxb_works!$O$121,uxb_works!$Q$121,IF(G17<uxb_works!$O$122,uxb_works!$Q$122,uxb_works!$Q$123))) -> Very High | I17: =IF(G17<uxb_works!$O$120,0,IF(G17<uxb_works!$O$121,1,IF(G17<uxb_works!$O$122,2,3))) -> 3 | K17: =IF(D17=2,INDEX(aJust,$B17,$B$1),"") -> Berlin, Germany: Yes there is evidence of subsidies, tax incentives, policies & projects, or grants & funding bodies in Germany [1]. Ther Berlin city senate is funding and implementing the "Thousand Green Roofs" program which aims to reduce rainwater wastage. Paris, France: Yes, there is evidence of subsidies, tax incentives, policies & projects, or grants & funding bodies in France: Paris has a 'greening the city' plan in place which promotes increased use of plants throughout the city by encouraging community green spaces. One of the spaces where the public is encouraged to plant is on roofs [2] Barcelona, Spain: Yes, there is evidence of subsidies, tax incentives, policies & projects, or grants & funding bodies in Spain: Barcelona City Council’s Municipal Institute of Urban Landscape has a Green Roofs Competition which promotes the establishment of new green roofs in the city. The top 10 winning projects receive a 75% cost subsidy, up to €100,000 per roof. [3.1] The State Housing Plan 2018-2021 also sets out policy support to actions which reduce the energy consumption of buildings in Article 36 [3.2] Florence, Italy: Yes evidence of subsidies, tax incentives, policies & projects, or grants & funding bodies in Italy [4]: Italian national tax revenue agency offers 36% tax subsidy up to a maximum sum of 1800 euros London, UK: No evidence of subsidies, tax incentives, policies & projects, or grants & funding bodies in UK: there are currently no government support (grants, funding, incentives) available for green roof initiatives [5] San Francisco & New York, US: Yes evidence of subsidies, tax incentives, policies & projects, or grants & funding bodies in US: The Green Roof Tax Abatement is a one-time property tax abatement for properties with green roofs offered through the NYC Department of Finance [6] Delhi, India: No evidence of subsidies, tax incentives, policies & projects, or grants & funding bodies in India [7] Seoul, South Korea: Yes evidence of subsidies, tax incentives, policies & projects, or grants & funding bodies in South Korea: The Seoul Metropolitan Government subsidizes 70% of the cost of green roof installation. [8] Singapore, Singapore: Yes evidence of subsidies, tax incentives, policies & projects, or grants & funding bodies in Singapore: the National Parks Board implemented the Skyrise Greenery Incentive Scheme (SGIS) which finances up to 50% of the installation of rooftop greenery and vertical greenery. [9] | L17: =IF(D17=2,INDEX(aRef,$B17,$B$1),"") -> [1] Der Regierende Bürgermeister Senatskanzlei (2021), Richtlinien der Regierungspolitik 2016-2021, https://www.berlin.de/rbmskzl/regierender-buergermeister/senat/richtlinien-der-politik/#4 [2] Marie de Paris (2021), Comment participer à la végétalisation de la ville ? https://www.paris.fr/pages/conseils-pour-vegetaliser-16321 [3.1] Ayuntamiento de Barcelona (2021) Second Green Roofs Competition https://ajuntament.barcelona.cat/ecologiaurbana/es/concurso-cubiertas-verdes [3.2] Ministerio de Fomento, España (2018) Real Decreto 106/2018, de 9 de marzo, por el que se regula el Plan Estatal de Vivienda 2018-2021. https://www.boe.es/eli/es/rd/2018/03/09/106 [4]Agenzia delle Entrate (2021) https://www.agenziaentrate.gov.it/portale/web/guest/aree-tematiche/casa/agevolazioni/bonus-verde?p_p_id=it_sogei_portlet_cookie_portlet_CookieBarWidgetPortlet_INSTANCE_footer_gestione_cookie&p_p_state=normal&p_p_mode=view&_it_sogei_portlet_cookie_portlet_CookieBarWidgetPortlet_INSTANCE_footer_gestione_cookie_javax.portlet.action=saveCoockie&_it_sogei_portlet_cookie_portlet_CookieBarWidgetPortlet_INSTANCE_footer_gestione_cookie_redirectUrl=%2Fportale%2Fweb%2Fguest%2Faree-tematiche%2Fcasa%2Fagevolazioni%2Fbonus-verde&p_p_lifecycle=0 [5] Renewable Energy Hub UK. https://www.renewableenergyhub.co.uk/main/green-roof-information/green-roof-finance-options/ [6] NYC Department of Finance (2021) "Green Roof Tax Abatement" https://www1.nyc.gov/site/finance/benefits/landlords-green-roof.page [7] TERI (2016). https://www.teriin.org/sites/default/files/2018-03/2014BG08%20CMDA.pdf [8] Seoul Metropolitan Government (2021). https://news.seoul.go.kr/env/archives/510850 [9] Skyrise Greenery (2021) https://www.nparks.gov.sg/skyrisegreenery/incentive-scheme | M17: - | N17: - | O17: -

Sheet tblNavHist (hidden)
A1: Section | B1: Page | C1: ScrollRow
A2: 1 | B2: 0
A3: 1 | B3: 1
A4: 1 | B4: 2
A5: 1 | B5: 0
A6: 0 | B6: 0
A7: 1 | B7: 0
A8: 1 | B8: 1
A9: 1 | B9: 2
A10: 1 | B10: 1
A11: 1 | B11: 0
A12: 1 | B12: 0
A13: 1 | B13: 0
A14: 0 | B14: 0

Sheet SheetNames (hidden)
A1: Home
A2: Indicator_Ranking
A3: Detail
A4: Scores
A5: tblIndicators
A6: uxb_works
A7: tblIndiSets
A8: iIndiRank
A9: iTBD
A10: tblNavHist
A11: SheetNames
A12: tblTerritories
A13: iScores

Sheet tblTerritories (hidden)
A1: CityID | C1: City | D1: Group A | E1: Group B | F1: Status | G1: Comparison | I1: DisplayName | J1: MAP OBJECT IDENTIFIER | L1: Display_Status | M1: Parentcity | U1: 1 | Y1: 1 | Z1: 1 | AA1: 1 | AB1: 1 | AC1: 1 | AD1: 1 | AH1: 4 | AI1: 5 | AJ1: 6 | AL1: r2 | AS1: 3 | AV1: =uxb_works!A17 -> Regional_Group_Select | AW1: =uxb_works!B17 -> FALSE | AX1: =uxb_works!C17 -> 1 | AY1: =uxb_works!A16 -> GROUP_A_SELECTION | AZ1: =uxb_works!B16 -> 2 | BB1: HL | BC1: Filter | BE1: Combined filter | BF1: =uxb_works!B16 -> 2 | BG1: Region | BI1: REGION | BJ1: None | BK1: =AA2 -> Buildings & construction | BL1: =AB2 -> Buildings & construction | BM1: =AC2 -> Buildings & construction | BN1: Buildings & construction
A2: 0 | B2: =COUNT(A3:A28) -> 26 | C2: <none> | D2: =uxb_works!$B$8 -> 1 | E2: =uxb_works!$B$8 -> 1 | F2: =uxb_works!$B$7 -> 0 | I2: =C2 -> <none> | K2: 0 | L2: =$O$6 -> 1 | S2: Groups | T2: 50 | Z2: =INDEX($AX$3:$AX$8,Z1) -> <no filter> | AA2: =INDEX($AV$4:$AV$10,AA1) -> Buildings & construction | AB2: =INDEX($AV$4:$AV$10,AB1) -> Buildings & construction | AC2: Buildings & construction | AD2: Buildings & construction | AH2: =INDEX($AV$4:$AV$10,AH1) -> Transport | AI2: 0 | AJ2: =INDEX($AV$4:$AV$10,#REF!) ->  | AS2: =INDEX(tblIndiSets!$A$77:$A$80,tblTerritories!AS1) -> 0 | AV2: 5 | AW2: 5 | AX2: =CHOOSE($AZ$1,AY2,AZ2,BA2) -> 5 | AY2: 4 | AZ2: 5 | BA2: 31 | BC2: 5 | BD2: =COUNTIF(BD3:BD7,"<>0") -> 5 | BE2: =COUNTIF(BE3:BE28,">0") -> 26 | BF2: =O5 -> 1 | BG2: =uxb_works!$B$12 -> 1
A3: =A2+1 -> 1 | B3: XXX | C3: Green roofs | D3: =BE3 -> 1 | E3: =IF($E$2=1,0,INDEX(Z3:AO3,$E$2)) -> 0 | F3: =IF(A3=$F$2,3,IF(D3=0,0,IF(E3=1,2,1))) -> 1 | G3: =F3 -> 1 | H3: =IF(G3=3,3,MAX(G3,L3)) -> 1 | I3: =C3 -> Green roofs | J3: =C3 -> Green roofs | K3: =IF(A3=$O$3,3,IF(D3=0,0,IF(INDEX($Y3:$AU3,$O$4)=1,2,1))) -> 1 | L3: =IF(OR($E$2=$L$2,$L$2=1),0,INDEX($Z3:$AU3,$L$2)*5) -> 0 | N3: CITY_HIGHLIGHT_ID | O3: =uxb_works!B7 -> 0 | R3: 1 | S3: <none> | T3: =IF(F3=0,"",A3) -> 1 | U3: =IF(F3=0,"",RANK(T3,T$3:T$28,$U$1)+COUNTIF(T$3:T3,T3)-1) -> 1 | V3: =IF(ISERROR(MATCH($A3,U$3:U$28,0)),"",MATCH($A3,U$3:U$28,0)) -> 1 | Y3: 0 | Z3: 1 | AA3: 1 | AB3: 0 | AC3: 0 | AD3: 0 | AH3: 0 | AI3: 0 | AS3: =MATCH(1,AA3:AK3,0) -> 1 | AX3: =CHOOSE($AZ$1,AY3,AZ3,BA3) -> <no filter> | AY3: <no filter> | AZ3: <no filter> | BA3: <no filter> | BB3: <no highlight> | BC3: <no filter> | BE3: =IF(AND(BF3=1,BG3=1),1,0) -> 1 | BF3: 1 | BG3: =INDEX(BJ3:BN3,$BG$2) -> 1 | BJ3: 1 | BK3: =AA3 -> 1 | BL3: =AB3 -> 0 | BM3: =AC3 -> 0 | BN3: =AD3 -> 0
A4: =A3+1 -> 2 | B4: XXX | C4: Cool roofs | D4: 1 | E4: 0 | F4: =IF(A4=$F$2,3,IF(D4=0,0,IF(E4=1,2,1))) -> 1 | G4: =F4 -> 1 | H4: =IF(G4=3,3,MAX(G4,L4)) -> 1 | I4: =C4 -> Cool roofs | J4: =C4 -> Cool roofs | K4: 1 | L4: 0 | N4: GROUP_HIGHLIGHT_ID | O4: =IF(uxb_works!B9=2,1,uxb_works!B9) -> 1 | R4: 2 | S4: All Groups | T4: =IF(F4=0,"",A4) -> 2 | U4: =IF(F4=0,"",RANK(T4,T$3:T$28,$U$1)+COUNTIF(T$3:T4,T4)-1) -> 2 | V4: 2 | Y4: 0 | Z4: 1 | AA4: 1 | AB4: 0 | AC4: 0 | AD4: 0 | AH4: 0 | AI4: 0 | AS4: 1 | AV4: Buildings & construction | AX4: =CHOOSE($AZ$1,AY4,AZ4,BA4) -> <1m | AY4: High-income | AZ4: <1m | BA4: Spare 1 | BB4: =AV4 -> Buildings & construction | BC4: =CHOOSE($AX$1,AV4,AW4) -> Buildings & construction | BE4: =IF(AND(BF4=1,BG4=1),1,0) -> 1 | BF4: 1 | BG4: =INDEX(BJ4:BN4,$BG$2) -> 1 | BJ4: 1 | BK4: 1 | BL4: 0 | BM4: 0 | BN4: 0
A5: 3 | B5: XXX | C5: Dynamic glass | D5: 1 | E5: 0 | F5: 1 | G5: 1 | H5: 1 | I5: Dynamic glass | J5: Dynamic glass | K5: 1 | L5: 0 | N5: GROUP_FILTER_ID | O5: =uxb_works!B10 -> 1 | Q5: 1 | T5: 3 | U5: =IF(F5=0,"",RANK(T5,T$3:T$28,$U$1)+COUNTIF(T$3:T5,T5)-1) -> 3 | V5: 3 | Y5: 0 | Z5: 1 | AA5: 1 | AB5: 0 | AC5: 0 | AD5: 0 | AH5: 0 | AI5: 0 | AS5: 1 | AV5: City Infrastructure | AX5: 1m-10m | AY5: Upper-middle income | AZ5: 1m-10m | BA5: Spare 2 | BB5: =AV5 -> City Infrastructure | BC5: =CHOOSE($AX$1,AV5,AW5) -> City Infrastructure | BE5: 1 | BF5: 1 | BG5: 1 | BJ5: 1 | BK5: 1 | BL5: 0 | BM5: 0 | BN5: 0
A6: 4 | B6: XXX | C6: High-performance glass | D6: 1 | E6: 0 | F6: 1 | G6: 1 | H6: 1 | I6: High-performance glass | J6: High-performance glass | K6: 1 | L6: 0 | N6: =uxb_works!A143 -> INDICATOR_RANKING_2ND_HL_PLUSNONE | O6: =uxb_works!B143 -> 1 | Q6: 2 | T6: 4 | U6: =IF(F6=0,"",RANK(T6,T$3:T$28,$U$1)+COUNTIF(T$3:T6,T6)-1) -> 4 | V6: 4 | Y6: 0 | Z6: 1 | AA6: 1 | AB6: 0 | AC6: 0 | AD6: 0 | AH6: 0 | AI6: 1 | AS6: 1 | AV6: City Infrastructure (Energy) | AX6: 10m-100m | AY6: Lower-middle income | AZ6: 10m-100m | BA6: Spare 3 | BB6: City Infrastructure (Energy) | BC6: =CHOOSE($AX$1,AV6,AW6) -> City Infrastructure (Energy) | BE6: 1 | BF6: 1 | BG6: 1 | BJ6: 1 | BK6: 1 | BL6: 0 | BM6: 0 | BN6: 0
A7: 5 | B7: XXX | C7: Environmentally friendly insulation | D7: 1 | E7: 0 | F7: 1 | G7: 1 | H7: 1 | I7: Environmentally friendly insulation | J7: Environmentally friendly insulation | K7: 1 | L7: 0 | Q7: 3 | T7: 5 | U7: =IF(F7=0,"",RANK(T7,T$3:T$28,$U$1)+COUNTIF(T$3:T7,T7)-1) -> 5 | V7: 5 | Y7: 0 | Z7: 1 | AA7: 1 | AB7: 0 | AC7: 0 | AD7: 0 | AH7: 0 | AI7: 0 | AS7: 1 | AV7: Transport | AX7: 100m+ | AZ7: 100m+ | BA7: Spare 4 | BB7: Transport | BC7: =CHOOSE($AX$1,AV7,AW7) -> Transport | BE7: 1 | BF7: 1 | BG7: 1 | BJ7: 1 | BK7: 1 | BL7: 0 | BM7: 0 | BN7: 0
A8: 6 | B8: XXX | C8: High-efficiency heat pumps | D8: 1 | E8: 0 | F8: 1 | G8: 1 | H8: 1 | I8: High-efficiency heat pumps | J8: High-efficiency heat pumps | K8: 1 | L8: 0 | T8: 6 | U8: =IF(F8=0,"",RANK(T8,T$3:T$28,$U$1)+COUNTIF(T$3:T8,T8)-1) -> 6 | V8: 6 | Y8: 0 | Z8: 1 | AA8: 1 | AB8: 0 | AC8: 0 | AD8: 0 | AH8: 0 | AI8: 0 | AS8: 1 | AX8: 0 | BA8: Spare 5 | BE8: 1 | BF8: 1 | BG8: 1 | BJ8: 1 | BK8: 1 | BL8: 0 | BM8: 0 | BN8: 0
A9: 7 | B9: XXX | C9: Low-carbon cement & concrete alternatives | D9: 1 | E9: 0 | F9: 1 | G9: 1 | H9: 1 | I9: Low-carbon cement & concrete alternatives | J9: Low-carbon cement & concrete alternatives | K9: 1 | L9: 0 | T9: 7 | U9: =IF(F9=0,"",RANK(T9,T$3:T$28,$U$1)+COUNTIF(T$3:T9,T9)-1) -> 7 | V9: 7 | Y9: 0 | Z9: 1 | AA9: 1 | AB9: 0 | AC9: 0 | AD9: 0 | AH9: 0 | AI9: 0 | AS9: 1 | AX9: 0 | BA9: Spare 6 | BE9: 1 | BF9: 1 | BG9: 1 | BJ9: 1 | BK9: 1 | BL9: 0 | BM9: 0 | BN9: 0
A10: 8 | B10: XXX | C10: Digital twins | D10: 1 | E10: 0 | F10: 1 | G10: 1 | H10: 1 | I10: Digital twins | J10: Digital twins | K10: 1 | L10: 0 | T10: 8 | U10: =IF(F10=0,"",RANK(T10,T$3:T$28,$U$1)+COUNTIF(T$3:T10,T10)-1) -> 8 | V10: 8 | Y10: 0 | Z10: 1 | AA10: 1 | AB10: 0 | AC10: 0 | AD10: 0 | AH10: 0 | AI10: 0 | AS10: 1 | AX10: 0 | BA10: Spare 7 | BE10: 1 | BF10: 1 | BG10: 1 | BJ10: 1 | BK10: 1 | BL10: 0 | BM10: 0 | BN10: 0
A11: 9 | B11: XXX | C11: Building automation systems (BAS) | D11: 1 | E11: 0 | F11: 1 | G11: 1 | H11: 1 | I11: Building automation systems (BAS) | J11: Building automation systems (BAS) | K11: 1 | L11: 0 | T11: 9 | U11: =IF(F11=0,"",RANK(T11,T$3:T$28,$U$1)+COUNTIF(T$3:T11,T11)-1) -> 9 | V11: 9 | Y11: 0 | Z11: 1 | AA11: 1 | AB11: 0 | AC11: 0 | AD11: 0 | AH11: 0 | AI11: 0 | AS11: 1 | AX11: 0 | BA11: Spare 8 | BE11: 1 | BF11: 1 | BG11: 1 | BJ11: 1 | BK11: 1 | BL11: 0 | BM11: 0 | BN11: 0
A12: 10 | B12: XXX | C12: Unified communications (VOIP) | D12: =BE12 -> 1 | E12: 0 | F12: =IF(A12=$F$2,3,IF(D12=0,0,IF(E12=1,2,1))) -> 1 | G12: =F12 -> 1 | H12: =IF(G12=3,3,MAX(G12,L12)) -> 1 | I12: =C12 -> Unified communications (VOIP) | J12: =C12 -> Unified communications (VOIP) | K12: 1 | L12: 0 | T12: =IF(F12=0,"",A12) -> 10 | U12: =IF(F12=0,"",RANK(T12,T$3:T$28,$U$1)+COUNTIF(T$3:T12,T12)-1) -> 10 | V12: 10 | Y12: 0 | Z12: 1 | AA12: 0 | AB12: 1 | AC12: 0 | AD12: 0 | AH12: 0 | AI12: 0 | AS12: 2 | AX12: 0 | BA12: Spare 9 | BE12: =IF(AND(BF12=1,BG12=1),1,0) -> 1 | BF12: 1 | BG12: 1 | BJ12: 1 | BK12: 0 | BL12: 1 | BM12: 0 | BN12: 0
A13: 11 | B13: XXX | C13: Subway advanced control system | D13: 1 | E13: 0 | F13: =IF(A13=$F$2,3,IF(D13=0,0,IF(E13=1,2,1))) -> 1 | G13: =F13 -> 1 | H13: =IF(G13=3,3,MAX(G13,L13)) -> 1 | I13: =C13 -> Subway advanced control system | J13: =C13 -> Subway advanced control system | K13: 1 | L13: 0 | T13: 11 | U13: =IF(F13=0,"",RANK(T13,T$3:T$28,$U$1)+COUNTIF(T$3:T13,T13)-1) -> 11 | V13: 11 | Y13: 0 | Z13: 1 | AA13: 0 | AB13: 1 | AC13: 0 | AD13: 0 | AH13: 0 | AI13: 0 | AS13: 2 | AX13: 0 | BA13: Spare 10 | BE13: =IF(AND(BF13=1,BG13=1),1,0) -> 1 | BF13: 1 | BG13: 1 | BJ13: 1 | BK13: 0 | BL13: 1 | BM13: 0 | BN13: 0
A14: 12 | B14: XXX | C14: Smart grids & smart meters | D14: 1 | E14: 0 | F14: 1 | G14: 1 | H14: 1 | I14: Smart grids & smart meters | J14: Smart grids & smart meters | K14: 1 | L14: 0 | T14: 12 | U14: =IF(F14=0,"",RANK(T14,T$3:T$28,$U$1)+COUNTIF(T$3:T14,T14)-1) -> 12 | V14: 12 | Y14: 0 | Z14: 1 | AA14: 0 | AB14: 0 | AC14: 1 | AD14: 0 | AH14: 0 | AI14: 0 | AS14: 3 | AX14: 0 | BA14: Spare 11 | BE14: 1 | BF14: 1 | BG14: 1 | BJ14: 1 | BK14: 0 | BL14: 0 | BM14: 1 | BN14: 0
A15: 13 | B15: XXX | C15: Distributed energy storage | D15: 1 | E15: 0 | F15: 1 | G15: 1 | H15: 1 | I15: Distributed energy storage | J15: Distributed energy storage | K15: 1 | L15: 0 | T15: 13 | U15: =IF(F15=0,"",RANK(T15,T$3:T$28,$U$1)+COUNTIF(T$3:T15,T15)-1) -> 13 | V15: 13 | Y15: 0 | Z15: 1 | AA15: 0 | AB15: 0 | AC15: 1 | AD15: 0 | AH15: 0 | AI15: 0 | AS15: 3 | AX15: 0 | BA15: Spare 12 | BE15: 1 | BF15: 1 | BG15: 1 | BJ15: 1 | BK15: 0 | BL15: 0 | BM15: 1 | BN15: 0
A16: 14 | B16: XXX | C16: District heating & cooling systems (DHC) | D16: 1 | E16: 0 | F16: 1 | G16: 1 | H16: 1 | I16: District heating & cooling systems (DHC) | J16: District heating & cooling systems (DHC) | K16: 1 | L16: 0 | T16: 14 | U16: =IF(F16=0,"",RANK(T16,T$3:T$28,$U$1)+COUNTIF(T$3:T16,T16)-1) -> 14 | V16: 14 | Y16: 0 | Z16: 1 | AA16: 0 | AB16: 0 | AC16: 1 | AD16: 0 | AH16: 1 | AI16: 0 | AS16: 3 | AX16: 0 | BA16: Spare 13 | BE16: 1 | BF16: 1 | BG16: 1 | BJ16: 1 | BK16: 0 | BL16: 0 | BM16: 1 | BN16: 0
A17: 15 | B17: XXX | C17: Battery energy storage | D17: 1 | E17: 0 | F17: 1 | G17: 1 | H17: 1 | I17: Battery energy storage | J17: Battery energy storage | K17: 1 | L17: 0 | T17: 15 | U17: =IF(F17=0,"",RANK(T17,T$3:T$28,$U$1)+COUNTIF(T$3:T17,T17)-1) -> 15 | V17: 15 | Y17: 0 | Z17: 1 | AA17: 0 | AB17: 0 | AC17: 1 | AD17: 0 | AH17: 1 | AI17: 0 | AS17: 3 | AX17: 0 | BA17: Spare 14 | BE17: 1 | BF17: 1 | BG17: 1 | BJ17: 1 | BK17: 0 | BL17: 0 | BM17: 1 | BN17: 0
A18: 16 | B18: XXX | C18: Thermal energy storage | D18: =BE18 -> 1 | E18: 0 | F18: 1 | G18: 1 | H18: 1 | I18: Thermal energy storage | J18: Thermal energy storage | K18: 1 | L18: 0 | T18: 16 | U18: =IF(F18=0,"",RANK(T18,T$3:T$28,$U$1)+COUNTIF(T$3:T18,T18)-1) -> 16 | V18: 16 | Y18: 0 | Z18: 1 | AA18: 0 | AB18: 0 | AC18: 1 | AD18: 0 | AH18: 0 | AI18: 0 | AS18: 3 | AX18: 0 | BA18: Spare 15 | BE18: 1 | BF18: 1 | BG18: 1 | BJ18: 1 | BK18: 0 | BL18: 0 | BM18: 1 | BN18: 0
A19: 17 | B19: XXX | C19: Distributed solar power | D19: 1 | E19: 0 | F19: 1 | G19: 1 | H19: 1 | I19: Distributed solar power | J19: Distributed solar power | K19: 1 | L19: 0 | T19: 17 | U19: =IF(F19=0,"",RANK(T19,T$3:T$28,$U$1)+COUNTIF(T$3:T19,T19)-1) -> 17 | V19: 17 | Y19: 0 | Z19: 1 | AA19: 0 | AB19: 0 | AC19: 1 | AD19: 0 | AH19: 1 | AI19: 0 | AS19: 3 | AX19: 0 | BA19: Spare 16 | BE19: 1 | BF19: 1 | BG19: 1 | BJ19: 1 | BK19: 0 | BL19: 0 | BM19: 1 | BN19: 0
A20: 18 | B20: XXX | C20: Waste robotics | D20: =BE20 -> 1 | E20: 0 | F20: =IF(A20=$F$2,3,IF(D20=0,0,IF(E20=1,2,1))) -> 1 | G20: =F20 -> 1 | H20: =IF(G20=3,3,MAX(G20,L20)) -> 1 | I20: =C20 -> Waste robotics | J20: =C20 -> Waste robotics | K20: 1 | L20: 0 | T20: =IF(F20=0,"",A20) -> 18 | U20: =IF(F20=0,"",RANK(T20,T$3:T$28,$U$1)+COUNTIF(T$3:T20,T20)-1) -> 18 | V20: =IF(ISERROR(MATCH($A20,U$3:U$28,0)),"",MATCH($A20,U$3:U$28,0)) -> 18 | Y20: 0 | Z20: 1 | AA20: 0 | AB20: 0 | AC20: 1 | AD20: 0 | AH20: 1 | AI20: 0 | AS20: 3 | AX20: 0 | BA20: Spare 17 | BE20: =IF(AND(BF20=1,BG20=1),1,0) -> 1 | BF20: 1 | BG20: 1 | BJ20: 1 | BK20: 0 | BL20: 0 | BM20: 1 | BN20: 0
A21: 19 | B21: XXX | C21: Electric vehicles (EVs) | D21: 1 | E21: 0 | F21: 1 | G21: 1 | H21: 1 | I21: Electric vehicles (EVs) | J21: Electric vehicles (EVs) | K21: 1 | L21: 0 | T21: 19 | U21: =IF(F21=0,"",RANK(T21,T$3:T$28,$U$1)+COUNTIF(T$3:T21,T21)-1) -> 19 | V21: 19 | Y21: 0 | Z21: 1 | AA21: 0 | AB21: 0 | AC21: 0 | AD21: 1 | AH21: 1 | AI21: 0 | AS21: 4 | AX21: 0 | BA21: Spare 18 | BE21: 1 | BF21: 1 | BG21: 1 | BJ21: 1 | BK21: 0 | BL21: 0 | BM21: 0 | BN21: 1
A22: 20 | B22: XXX | C22: Electric vehicle charging ports | D22: 1 | E22: 0 | F22: 1 | G22: 1 | H22: 1 | I22: Electric vehicle charging ports | J22: Electric vehicle charging ports | K22: 1 | L22: 0 | T22: 20 | U22: =IF(F22=0,"",RANK(T22,T$3:T$28,$U$1)+COUNTIF(T$3:T22,T22)-1) -> 20 | V22: 20 | Y22: 0 | Z22: 1 | AA22: 0 | AB22: 0 | AC22: 0 | AD22: 1 | AH22: 1 | AI22: 0 | AS22: 4 | AX22: 0 | BA22: Spare 19 | BE22: 1 | BF22: 1 | BG22: 1 | BJ22: 1 | BK22: 0 | BL22: 0 | BM22: 0 | BN22: 1
A23: 21 | B23: XXX | C23: Smart charging | D23: 1 | E23: 0 | F23: 1 | G23: 1 | H23: 1 | I23: Smart charging | J23: Smart charging | K23: 1 | L23: 0 | T23: 21 | U23: =IF(F23=0,"",RANK(T23,T$3:T$28,$U$1)+COUNTIF(T$3:T23,T23)-1) -> 21 | V23: 21 | Y23: 0 | Z23: 1 | AA23: 0 | AB23: 0 | AC23: 0 | AD23: 1 | AH23: 1 | AI23: 0 | AS23: 4 | AX23: 0 | BA23: Spare 20 | BE23: 1 | BF23: 1 | BG23: 1 | BJ23: 1 | BK23: 0 | BL23: 0 | BM23: 0 | BN23: 1
A24: 22 | B24: XXX | C24: Vehicle-to-grid technologies (V2G) | D24: 1 | E24: 0 | F24: 1 | G24: 1 | H24: 1 | I24: Vehicle-to-grid technologies (V2G) | J24: Vehicle-to-grid technologies (V2G) | K24: 1 | L24: 0 | T24: 22 | U24: =IF(F24=0,"",RANK(T24,T$3:T$28,$U$1)+COUNTIF(T$3:T24,T24)-1) -> 22 | V24: 22 | Y24: 0 | Z24: 1 | AA24: 0 | AB24: 0 | AC24: 0 | AD24: 1 | AH24: 1 | AI24: 0 | AS24: 4 | AX24: 0 | BA24: Spare 21 | BE24: 1 | BF24: 1 | BG24: 1 | BJ24: 1 | BK24: 0 | BL24: 0 | BM24: 0 | BN24: 1
A25: 23 | B25: XXX | C25: Battery operation enhancements | D25: 1 | E25: 0 | F25: 1 | G25: 1 | H25: 1 | I25: Battery operation enhancements | J25: Battery operation enhancements | K25: 1 | L25: 0 | T25: 23 | U25: =IF(F25=0,"",RANK(T25,T$3:T$28,$U$1)+COUNTIF(T$3:T25,T25)-1) -> 23 | V25: 23 | Y25: 0 | Z25: 1 | AA25: 0 | AB25: 0 | AC25: 0 | AD25: 1 | AH25: 1 | AI25: 0 | AS25: 4 | AX25: 0 | BA25: Spare 22 | BE25: 1 | BF25: 1 | BG25: 1 | BJ25: 1 | BK25: 0 | BL25: 0 | BM25: 0 | BN25: 1
A26: 24 | B26: XXX | C26: Hydrogen transport vehicles | D26: 1 | E26: 0 | F26: 1 | G26: 1 | H26: 1 | I26: Hydrogen transport vehicles | J26: Hydrogen transport vehicles | K26: 1 | L26: 0 | T26: 24 | U26: =IF(F26=0,"",RANK(T26,T$3:T$28,$U$1)+COUNTIF(T$3:T26,T26)-1) -> 24 | V26: 24 | Y26: 0 | Z26: 1 | AA26: 0 | AB26: 0 | AC26: 0 | AD26: 1 | AH26: 1 | AI26: 0 | AS26: 4 | AX26: 0 | BA26: Spare 23 | BE26: 1 | BF26: 1 | BG26: 1 | BJ26: 1 | BK26: 0 | BL26: 0 | BM26: 0 | BN26: 1
A27: 25 | B27: XXX | C27: Mobility as a Service (MaaS) | D27: 1 | E27: 0 | F27: 1 | G27: 1 | H27: 1 | I27: Mobility as a Service (MaaS) | J27: Mobility as a Service (MaaS) | K27: 1 | L27: 0 | T27: 25 | U27: =IF(F27=0,"",RANK(T27,T$3:T$28,$U$1)+COUNTIF(T$3:T27,T27)-1) -> 25 | V27: 25 | Y27: 0 | Z27: 1 | AA27: 0 | AB27: 0 | AC27: 0 | AD27: 1 | AH27: 1 | AI27: 0 | AS27: 4 | AX27: 0 | BA27: Spare 24 | BE27: 1 | BF27: 1 | BG27: 1 | BJ27: 1 | BK27: 0 | BL27: 0 | BM27: 0 | BN27: 1
A28: 26 | B28: XXX | C28: Autonomous vehicles (AVs) | D28: 1 | E28: 0 | F28: 1 | G28: 1 | H28: 1 | I28: Autonomous vehicles (AVs) | J28: Autonomous vehicles (AVs) | K28: 1 | L28: 0 | T28: 26 | U28: =IF(F28=0,"",RANK(T28,T$3:T$28,$U$1)+COUNTIF(T$3:T28,T28)-1) -> 26 | V28: 26 | Y28: 0 | Z28: 1 | AA28: 0 | AB28: 0 | AC28: 0 | AD28: 1 | AH28: 1 | AI28: 0 | AS28: 4 | AX28: 0 | BA28: Spare 25 | BE28: 1 | BF28: 1 | BG28: 1 | BJ28: 1 | BK28: 0 | BL28: 0 | BM28: 0 | BN28: 1
A29: =A28+1 -> 27 | AX29: 0 | BA29: Spare 26
AX30: 0 | BA30: Spare 27
AX31: 0 | BA31: Spare 28
BA32: Spare 29
BA33: Spare 30

Sheet iScores (hidden)
N1: =uxb_works!$B$92 -> Decarbonisation Technologies for Cities | Q1: =MAX(R1:AQ1) -> 10.41666667 | R1: =MAX(R6:R19) -> 8.083333333 | S1: 7.25 | T1: 9.5 | U1: 8 | V1: 7.583333333 | W1: 9.25 | X1: 9.083333333 | Y1: 6.75 | Z1: 6.75 | AA1: 9.416666667 | AB1: 5.25 | AC1: 9.666666667 | AD1: 9.916666667 | AE1: 8.5 | AF1: 8.833333333 | AG1: 9.5 | AH1: 10.41666667 | AI1: 8 | AJ1: 9.083333333 | AK1: 9.416666667 | AL1: 8 | AM1: 7.166666667 | AN1: 7.25 | AO1: 6.916666667 | AP1: 8.083333333 | AQ1: 7.666666667 | AU1: Rounded Scores | BW1: justifications | CY1: Reerences
Q2: =MIN(R2:AQ2) -> 0 | R2: =MIN(R6:R19) -> 1 | S2: 0 | T2: 1 | U2: 1 | V2: 1 | W2: 1 | X2: 1 | Y2: 1 | Z2: 1 | AA2: 2 | AB2: 0 | AC2: 1 | AD2: 1 | AE2: 1 | AF2: 2 | AG2: 2 | AH2: 2 | AI2: 1 | AJ2: 1 | AK2: 1 | AL2: 1 | AM2: 1 | AN2: 1 | AO2: 1 | AP2: 1 | AQ2: 1 | AU2: 1
R4: =Q4+1 -> 1 | S4: =R4+1 -> 2 | T4: 3 | U4: 4 | V4: 5 | W4: 6 | X4: 7 | Y4: 8 | Z4: 9 | AA4: 10 | AB4: 11 | AC4: 12 | AD4: 13 | AE4: 14 | AF4: 15 | AG4: 16 | AH4: 17 | AI4: 18 | AJ4: 19 | AK4: 20 | AL4: 21 | AM4: 22 | AN4: 23 | AO4: 24 | AP4: 25 | AQ4: 26
B5: =tblIndicators!A1 -> line | C5: =tblIndicators!B1 -> IS_BG | D5: =tblIndicators!E1 -> INDI_CODE | E5: =tblIndicators!F1 -> PARENT_CODE | F5: =tblIndicators!G1 -> DEPTH | N5: Indicators | O5: Weights | R5: =INDEX(tblTerritories!$C$3:$C$28,iScores!R4) -> Green roofs | S5: =INDEX(tblTerritories!$C$3:$C$28,iScores!S4) -> Cool roofs | T5: =INDEX(tblTerritories!$C$3:$C$28,iScores!T4) -> Dynamic glass | U5: =INDEX(tblTerritories!$C$3:$C$28,iScores!U4) -> High-performance glass | V5: =INDEX(tblTerritories!$C$3:$C$28,iScores!V4) -> Environmentally friendly insulation | W5: =INDEX(tblTerritories!$C$3:$C$28,iScores!W4) -> High-efficiency heat pumps | X5: =INDEX(tblTerritories!$C$3:$C$28,iScores!X4) -> Low-carbon cement & concrete alternatives | Y5: =INDEX(tblTerritories!$C$3:$C$28,iScores!Y4) -> Digital twins | Z5: =INDEX(tblTerritories!$C$3:$C$28,iScores!Z4) -> Building automation systems (BAS) | AA5: =INDEX(tblTerritories!$C$3:$C$28,iScores!AA4) -> Unified communications (VOIP) | AB5: =INDEX(tblTerritories!$C$3:$C$28,iScores!AB4) -> Subway advanced control system | AC5: =INDEX(tblTerritories!$C$3:$C$28,iScores!AC4) -> Smart grids & smart meters | AD5: =INDEX(tblTerritories!$C$3:$C$28,iScores!AD4) -> Distributed energy storage | AE5: =INDEX(tblTerritories!$C$3:$C$28,iScores!AE4) -> District heating & cooling systems (DHC) | AF5: =INDEX(tblTerritories!$C$3:$C$28,iScores!AF4) -> Battery energy storage | AG5: =INDEX(tblTerritories!$C$3:$C$28,iScores!AG4) -> Thermal energy storage | AH5: =INDEX(tblTerritories!$C$3:$C$28,iScores!AH4) -> Distributed solar power | AI5: =INDEX(tblTerritories!$C$3:$C$28,iScores!AI4) -> Waste robotics | AJ5: =INDEX(tblTerritories!$C$3:$C$28,iScores!AJ4) -> Electric vehicles (EVs) | AK5: =INDEX(tblTerritories!$C$3:$C$28,iScores!AK4) -> Electric vehicle charging ports | AL5: =INDEX(tblTerritories!$C$3:$C$28,iScores!AL4) -> Smart charging | AM5: =INDEX(tblTerritories!$C$3:$C$28,iScores!AM4) -> Vehicle-to-grid technologies (V2G) | AN5: =INDEX(tblTerritories!$C$3:$C$28,iScores!AN4) -> Battery operation enhancements | AO5: =INDEX(tblTerritories!$C$3:$C$28,iScores!AO4) -> Hydrogen transport vehicles | AP5: =INDEX(tblTerritories!$C$3:$C$28,iScores!AP4) -> Mobility as a Service (MaaS) | AQ5: =INDEX(tblTerritories!$C$3:$C$28,iScores!AQ4) -> Autonomous vehicles (AVs) | AR5: min | AS5: max | AU5: =R5 -> Green roofs | AV5: Cool roofs | AW5: Dynamic glass | AX5: High-performance glass | AY5: Environmentally friendly insulation | AZ5: High-efficiency heat pumps | BA5: Low-carbon cement & concrete alternatives | BB5: Digital twins | BC5: Building automation systems (BAS) | BD5: Unified communications (VOIP) | BE5: Subway advanced control system | BF5: Smart grids & smart meters | BG5: Distributed energy storage | BH5: District heating & cooling systems (DHC) | BI5: Battery energy storage | BJ5: Thermal energy storage | BK5: Distributed solar power | BL5: Waste robotics | BM5: =AJ5 -> Electric vehicles (EVs) | BN5: Electric vehicle charging ports | BO5: Smart charging | BP5: Vehicle-to-grid technologies (V2G) | BQ5: Battery operation enhancements | BR5: Hydrogen transport vehicles | BS5: Mobility as a Service (MaaS) | BT5: Autonomous vehicles (AVs) | BW5: =R5 -> Green roofs | BX5: =S5 -> Cool roofs | BY5: Dynamic glass | BZ5: High-performance glass | CA5: Environmentally friendly insulation | CB5: High-efficiency heat pumps | CC5: Low-carbon cement & concrete alternatives | CD5: Digital twins | CE5: Building automation systems (BAS) | CF5: Unified communications (VOIP) | CG5: Subway advanced control system | CH5: Smart grids & smart meters | CI5: Distributed energy storage | CJ5: District heating & cooling systems (DHC) | CK5: Battery energy storage | CL5: Thermal energy storage | CM5: Distributed solar power | CN5: Waste robotics | CO5: Electric vehicles (EVs) | CP5: Electric vehicle charging ports | CQ5: Smart charging | CR5: Vehicle-to-grid technologies (V2G) | CS5: Battery operation enhancements | CT5: Hydrogen transport vehicles | CU5: Mobility as a Service (MaaS) | CV5: Autonomous vehicles (AVs)
B6: =tblIndicators!A2 -> 1 | C6: =tblIndicators!B2 -> 0 | D6: =tblIndicators!E2 -> OVERALL | E6: =tblIndicators!F2 -> OVERALL SCORE | F6: =tblIndicators!G2 -> 0 | N6: =REPT(" ",F6)&tblIndicators!AM2 -> TOTAL SCORE | O6: =tblIndicators!AR2 -> 0 | R6: 8.083333333 | S6: 7.25 | T6: 9.5 | U6: 8 | V6: 7.583333333 | W6: 9.25 | X6: 9.083333333 | Y6: 6.75 | Z6: 6.75 | AA6: 9.416666667 | AB6: 5.25 | AC6: 9.666666667 | AD6: 9.916666667 | AE6: 8.5 | AF6: 8.833333333 | AG6: 9.5 | AH6: 10.41666667 | AI6: 8 | AJ6: 9.083333333 | AK6: 9.416666667 | AL6: 8 | AM6: 7.166666667 | AN6: 7.25 | AO6: 6.916666667 | AP6: 8.083333333 | AQ6: 7.666666667 | AU6: =ROUND(R6,$AU$2) -> 8.1 | AV6: =ROUND(S6,$AU$2) -> 7.3 | AW6: =ROUND(T6,$AU$2) -> 9.5 | AX6: =ROUND(U6,$AU$2) -> 8 | AY6: =ROUND(V6,$AU$2) -> 7.6 | AZ6: =ROUND(W6,$AU$2) -> 9.3 | BA6: =ROUND(X6,$AU$2) -> 9.1 | BB6: =ROUND(Y6,$AU$2) -> 6.8 | BC6: =ROUND(Z6,$AU$2) -> 6.8 | BD6: =ROUND(AA6,$AU$2) -> 9.4 | BE6: =ROUND(AB6,$AU$2) -> 5.3 | BF6: =ROUND(AC6,$AU$2) -> 9.7 | BG6: =ROUND(AD6,$AU$2) -> 9.9 | BH6: =ROUND(AE6,$AU$2) -> 8.5 | BI6: =ROUND(AF6,$AU$2) -> 8.8 | BJ6: =ROUND(AG6,$AU$2) -> 9.5 | BK6: =ROUND(AH6,$AU$2) -> 10.4 | BL6: =ROUND(AI6,$AU$2) -> 8 | BM6: =ROUND(AJ6,$AU$2) -> 9.1 | BN6: =ROUND(AK6,$AU$2) -> 9.4 | BO6: =ROUND(AL6,$AU$2) -> 8 | BP6: =ROUND(AM6,$AU$2) -> 7.2 | BQ6: =ROUND(AN6,$AU$2) -> 7.3 | BR6: =ROUND(AO6,$AU$2) -> 6.9 | BS6: =ROUND(AP6,$AU$2) -> 8.1 | BT6: =ROUND(AQ6,$AU$2) -> 7.7
B7: =tblIndicators!A3 -> 2 | C7: =tblIndicators!B3 -> 0 | D7: =tblIndicators!E3 -> IMPA | E7: =tblIndicators!F3 -> OVERALL | F7: =tblIndicators!G3 -> 1 | N7: =REPT(" ",F7)&tblIndicators!AM3 -> 1) IMPACT SCORE | O7: =tblIndicators!AR3 -> 0 | R7: 2.75 | S7: 3.25 | T7: 3.5 | U7: 3 | V7: 2.25 | W7: 3.25 | X7: 3.75 | Y7: 2.75 | Z7: 2.75 | AA7: 2.75 | AB7: 3.25 | AC7: 3 | AD7: 3.25 | AE7: 3.5 | AF7: 2.5 | AG7: 3.5 | AH7: 3.75 | AI7: 3 | AJ7: 2.75 | AK7: 2.75 | AL7: 3 | AM7: 3.5 | AN7: 2.25 | AO7: 2.25 | AP7: 2.75 | AQ7: 2 | AU7: =ROUND(R7,$AU$2) -> 2.8 | AV7: =ROUND(S7,$AU$2) -> 3.3 | AW7: =ROUND(T7,$AU$2) -> 3.5 | AX7: =ROUND(U7,$AU$2) -> 3 | AY7: =ROUND(V7,$AU$2) -> 2.3 | AZ7: =ROUND(W7,$AU$2) -> 3.3 | BA7: =ROUND(X7,$AU$2) -> 3.8 | BB7: =ROUND(Y7,$AU$2) -> 2.8 | BC7: =ROUND(Z7,$AU$2) -> 2.8 | BD7: =ROUND(AA7,$AU$2) -> 2.8 | BE7: =ROUND(AB7,$AU$2) -> 3.3 | BF7: =ROUND(AC7,$AU$2) -> 3 | BG7: =ROUND(AD7,$AU$2) -> 3.3 | BH7: =ROUND(AE7,$AU$2) -> 3.5 | BI7: =ROUND(AF7,$AU$2) -> 2.5 | BJ7: =ROUND(AG7,$AU$2) -> 3.5 | BK7: =ROUND(AH7,$AU$2) -> 3.8 | BL7: =ROUND(AI7,$AU$2) -> 3 | BM7: =ROUND(AJ7,$AU$2) -> 2.8 | BN7: =ROUND(AK7,$AU$2) -> 2.8 | BO7: =ROUND(AL7,$AU$2) -> 3 | BP7: =ROUND(AM7,$AU$2) -> 3.5 | BQ7: =ROUND(AN7,$AU$2) -> 2.3 | BR7: =ROUND(AO7,$AU$2) -> 2.3 | BS7: =ROUND(AP7,$AU$2) -> 2.8 | BT7: =ROUND(AQ7,$AU$2) -> 2
B8: =tblIndicators!A4 -> 3 | C8: =tblIndicators!B4 -> 0 | D8: =tblIndicators!E4 -> IMPA1_1 | E8: =tblIndicators!F4 -> IMPA | F8: =tblIndicators!G4 -> 2 | N8: =REPT(" ",F8)&tblIndicators!AM4 -> 1.1) Comparability with traditional alternative | O8: =tblIndicators!AR4 -> 0 | R8: 1 | S8: 3 | T8: 3 | U8: 3 | V8: 1 | W8: 3 | X8: 3 | Y8: 3 | Z8: 3 | AA8: 2 | AB8: 2 | AC8: 3 | AD8: 3 | AE8: 3 | AF8: 3 | AG8: 3 | AH8: 3 | AI8: 3 | AJ8: 1 | AK8: 4 | AL8: 4 | AM8: 4 | AN8: 4 | AO8: 2 | AP8: 3 | AQ8: 3 | AU8: =ROUND(R8,$AU$2) -> 1 | AV8: =ROUND(S8,$AU$2) -> 3 | AW8: =ROUND(T8,$AU$2) -> 3 | AX8: =ROUND(U8,$AU$2) -> 3 | AY8: =ROUND(V8,$AU$2) -> 1 | AZ8: =ROUND(W8,$AU$2) -> 3 | BA8: =ROUND(X8,$AU$2) -> 3 | BB8: =ROUND(Y8,$AU$2) -> 3 | BC8: =ROUND(Z8,$AU$2) -> 3 | BD8: =ROUND(AA8,$AU$2) -> 2 | BE8: =ROUND(AB8,$AU$2) -> 2 | BF8: =ROUND(AC8,$AU$2) -> 3 | BG8: =ROUND(AD8,$AU$2) -> 3 | BH8: =ROUND(AE8,$AU$2) -> 3 | BI8: =ROUND(AF8,$AU$2) -> 3 | BJ8: =ROUND(AG8,$AU$2) -> 3 | BK8: =ROUND(AH8,$AU$2) -> 3 | BL8: =ROUND(AI8,$AU$2) -> 3 | BM8: =ROUND(AJ8,$AU$2) -> 1 | BN8: =ROUND(AK8,$AU$2) -> 4 | BO8: =ROUND(AL8,$AU$2) -> 4 | BP8: =ROUND(AM8,$AU$2) -> 4 | BQ8: =ROUND(AN8,$AU$2) -> 4 | BR8: =ROUND(AO8,$AU$2) -> 2 | BS8: =ROUND(AP8,$AU$2) -> 3 | BT8: =ROUND(AQ8,$AU$2) -> 3 | BW8: There is conflicting evidence over whether green roofs operate as well as traditional roofs. They are able to perform the essential elements of a roof such as protect buildings from the elements and weather. [1] They improvements upon roofs in that they improve stormwater management and extend a roof's life. [1] But, depending on rooftop design, they can be more prone to leakage than ordinary roofs and require more maintenance to carry out the same function. [2] | BX8: Yes, there is evidence that cool roofs perform as well-as and better than traditional roofs by providing a building protection from the elements but they function better as they minimize solar absorption, which reduces the need for active cooling. [1] | BY8: Yes, there is evidence that dynamic glass operates as well-as and better than normal glass. Dynamic glass blocks over 85% of solar radiation compared to normal glass, because automatically adjusts its tint level to block sunlight from entering the space. This reduces the need for an large HVAC system in a building, providing additional benefits on top of allowing light to enter and maintaining the ability to see the outside world from inside a building. [1] | BZ8: Yes, there is evidence that high performance glass operates a well-as and better than normal glass. High performance glass, unlike normal clear glass, is built to reflect heat from entering a building while still allowing light to enter. In this sense, it maintains the regular functions of a traditional glass window pane while decreasing heating and cooling bills. [1] | CA8: There is mixed evidence on the operation of environmentally friendly insulation. Depending on the type of natural insulation, its performance compared to traditional insulation will vary. For example, the common insulant expanded polystyrene has a density between 15 and 35 kg/m3 and a thermal conductivity of 0.031 to 0.038 W/mK but green insulations like recycled glass, PET, or textiles have varying degrees of density and thermal conductivity. This is to say, more materials may be required in order to achieve the same level of insulation. [1] | CB8: Yes, there is evidence that high-efficiency heat pumps function as well-as or better than other, less environmentally friendly heating methods. Both air source and ground source heat pumps (ASHP and GSHP) are able to provide heating and cooling by using electricity to move heat from a cold area to a warm one. [1] | CC8: Yes, there is evidence that low-carbon cement and concrete alternatives operate as well as or better than Portland cement, the most commonly used cement. Reducing the clinker to cement ratio reduces carbon emissions and allows cement to still perform its purpose as a construction binder. [1] | CD8: Yes, there is evidence that this technology functions as well-as and better than traditional building management systems. Digital Twins out-perform manual maintenance & operation management systems by setting a building to operate at maximum efficiency and automatically adjusting its operating levels in response to environmental changes. [1] They also out-perform Building Automation Systems and provide more detailed information that Building Information Models. [2] | CE8: Yes, there is evidence that building automation systems perform as well-as and better than traditional building control systems. It can operate using the same underlying technology (such as lighting, heating, and cooling) but provides a link through which the operational hardware and software can be automatically controlled and adjusted, thereby performing at a user's desired optimum. [1] | CF8: Yes, there is evidence that telepresence & mobile connectivity operates as well-as commuting into an office or travelling for work. By using VoIP and other telepresence technologies, people are able to communicate effectively for work. [1] | CG8: Yes, there is evidence that subway advanced control systems, such as the SEAM4US and other intelligent energy management systems for underground stations, operate as well-as traditional subways. Using the existing subway systems and technologies, these advanced control systems present an intelligent energy management system which sets adaptive controls for lighting, ventilation and escalators. [1] | CH8: Yes, there is evidence that smart grids and smart meters operate better than manual grids. Smart grids act as an efficient energy management and control system with the added benefit of being more reliable than a conventional grid. [1] Similarly, smart meters meet the same essential uses of normal meters but they are able to provide automatic meter readings. [2] | CI8: Yes, there is evidence that distributed energy storage grids operates better than centralized grids because they increase power reliability and enables greater integration of renewable energy into the grid while still meeting the same functions of a distributed grid. [1] | CJ8: Yes, there is evidence that district heating & cooling systems operate as well-as or better than traditional heating & cooling systems. They are able to perform the same key function of providing heating and cooling to buildings with lessened environmental impact. [1] | CK8: Yes, there is evidence that battery energy storage operates as well-as or better than centralized grids by feeding power into a grid when there are greater energy demands, allowing it to better handle peak demand periods. [1, 2] | CL8: Yes, there is evidence that thermal energy storage operates as well-as or better than centralized grids by feeding power into a grid when there are greater energy demands and by reducing energy usage for heating [1, 2] | CM8: Yes, there is evidence that distributed solar powers operate better than or as well as traditional technology by being able to provide electricity during a power outage and being cost-efficient [1,2] | CN8: Yes, there is evidence that waste robotics operates better than or as well as traditional technology by being able to provide more flexibility, making the process automated and reducing error margins [1,2] | CO8: There is conflicting evidence over whether EVs operate as well as traditional cars. They are able to perform the essential elements of a car such as transportation, but might not be adaptable in areas that do not have smart charging stations. However, there is a lot of variety in the EV market now and the industry is projected to grow - making the technology more accessible and usable [1,2] | CP8: No traditional alternative. | CQ8: No traditional alternative. | CR8: No traditional alternative. | CS8: No traditional alternative. | CT8: There is not a lot of data/research comparing hydrogen cars to fuel-powered vehicles. However, existing research indicates that hydrogen powered cars work as well as traditional cars given that there is state infrastructure to support [1] | CU8: There is evidence that MaaS operates better than traditional alternatives (traditional alternatives being the current public transportation system. [1] | CV8: No traditional alternative. | CZ8: [1] Castleton, H. F., Stovin, V., Beck, S. B. M., & Davison, J. B. (2010). Green roofs; building energy savings and the potential for retrofit. Energy and Buildings, 42(10), 1582-1591. doi:https://doi.org/10.1016/j.enbuild.2010.05.004 [2] Shafique, M., Kim, R., & Rafiq, M. (2018). Green roof benefits, opportunities and challenges – A review. Renewable and Sustainable Energy Reviews, 90, 757-773. doi:https://doi.org/10.1016/j.rser.2018.04.006 | DA8: [1] Coutts, A. M., Daly, E., Beringer, J., & Tapper, N. J. (2013). Assessing practical measures to reduce urban heat: Green and cool roofs. Building and Environment, 70, 266-276. doi:https://doi.org/10.1016/j.buildenv.2013.08.021 | DB8: [1] Continuing Education Center Architecture + Construction. (2015) "The Move to Dynamic Glass" https://continuingeducation.bnpmedia.com/article_print.php?C=1175&L=390 | DC8: [1] Continuing Education Center Architecture + Construction. (2015) "High-Performance Glass for Sustainable Design" https://continuingeducation.bnpmedia.com/courses/guardian-glass/high-performance-glass-for-sustainable-design/ | DD8: [1] Streimikiene, D., Skulskis, V., Balezentis, T., & Agnusdei, G. P. (2020). Uncertain multi-criteria sustainability assessment of green building insulation materials. Energy and Buildings, 219, 110021. doi:https://doi.org/10.1016/j.enbuild.2020.110021 | DE8: [1] Staffell, I., Brett, D., Brandon, N., & Hawkes, A. (2012). A review of domestic heat pumps. Energy & Environmental Science, 5(11), 9291-9306. | DF8: [1] IEA (2018), Technology Roadmap – Low-Carbon Transition in the Cement Industry. https://iea.blob.core.windows.net/assets/cbaa3da1-fd61-4c2a-8719-31538f59b54f/TechnologyRoadmapLowCarbonTransitionintheCementIndustry.pdf | DG8: [1] Deng M, Menassa C C, Kamat V R (2021). From BIM to digital twins: a systematic review of the evolution of intelligent building representations in the AEC-FM industry, ITcon Vol. 26, Special issue Next Generation ICT - How distant is ubiquitous computing?, pg. 58-83, https://doi.org/10.36680/j.itcon.2021.005 [2] Qiuchen, L., Xiang, X., Kumar, P. A., Mary, S. J., & Eirini, K. Moving from building information models to digital twins for operation and maintenance. Proceedings of the Institution of Civil Engineers - Smart Infrastructure and Construction, 0(0), 1-11. doi:10.1680/jsmic.19.00011 | DH8: [1] Domingues, P., Carreira, P., Vieira, R., & Kastner, W. (2016). Building automation systems: Concepts and technology review. Computer Standards & Interfaces, 45, 1-12. doi:https://doi.org/10.1016/j.csi.2015.11.005 | DI8: [1] Project Drawdown. (2021). Telepresence. https://drawdown.org/solutions/telepresence | DJ8: [1] Casals, M., Gangolells, M., Forcada, N., Macarulla, M., Giretti, A., & Vaccarini, M. (2016). SEAM4US: An intelligent energy management system for underground stations. Applied Energy, 166, 150-164. doi:https://doi.org/10.1016/j.apenergy.2016.01.029 | DK8: [1] Zainab Al-Waisi and Michael Opoku Agyeman. (2018). On the Challenges and Opportunities of Smart Meters in Smart Homes and Smart Grids. In <i>Proceedings of the 2nd International Symposium on Computer Science and Intelligent Control</i> (<i>ISCSIC '18</i>). Association for Computing Machinery, New York, NY, USA, Article 16, 1–6. DOI:https://doi.org/10.1145/3284557.3284561 [2] Rausser, G., Strielkowski, W., & Štreimikienė, D. (2018). Smart meters and household electricity consumption: A case study in Ireland. Energy & Environment, 29(1), 131–146. https://doi.org/10.1177/0958305X17741385 | DL8: [1] Arbabzadeh, M., Sioshansi, R., Johnson, J.X. et al. (2019). The role of energy storage in deep decarbonization of electricity production. Nat Commun 10, 3413. https://doi.org/10.1038/s41467-019-11161-5 | DM8: [1] Project Drawdown. (2021) "District heating" https://drawdown.org/solutions/district-heating | DN8: [1] Soloveichik, G. L. (2011). Battery technologies for large-scale stationary energy storage. Annual review of chemical and biomolecular engineering, 2, 503-527. [2] Zhou, L., Huang, Y., Guo, K., & Feng, Y. (2011). A survey of energy storage technology for micro grid. Power System Protection and Control, 39(7), 147-152. | DO8: [1] Jouhara, H., Żabnieńska-Góra, A., Khordehgah, N., Ahmad, D., & Lipinski, T. (2020). Latent thermal energy storage technologies and applications: A review. International Journal of Thermofluids, 5, 100039. [2] Leśko, M., Bujalski, W., & Futyma, K. (2018). Operational optimization in district heating systems with the use of thermal energy storage. Energy, 165, 902-915. | DP8: [1] National Renewable Energy Laboratory. "Distributed Solar PV" for Electricity Resilience". https://www.nrel.gov/docs/fy15osti/62631.pdf [2] United States Envrionmental Protection Agency. https://www.epa.gov/energy/distributed-generation-electricity-and-its-environmental-impacts | DQ8: [1] American Society of Mechanical Engineers. https://www.asme.org/topics-resources/content/how-are-robots-helping-us-to-recycle-better | DR8: [1] Project Drawdown. (2021). Electric Cars. https://drawdown.org/solutions/electric-cars | DS8: 0 | DT8: 0 | DU8: 0 | DV8: 0 | DW8: [1] Manoharan, Yogesh & Hosseini, Seyed Ehsan & Butler, Brayden & Alzahrani, Hisham & Foua, Bi & Ashuri, Turaj & Krohn, John. (2019). Hydrogen Fuel Cell Vehicles; Current Status and Future Prospect. Applied Sciences. 9. 10.3390/app9112296. | DX8: [1] UNECE. Mobility as a Service. Transport Trends and Economics 2018–2019. https://unece.org/fileadmin/DAM/trans/main/wp5/publications/Mobility_as_a_Service_Transport_Trends_and_Economics_2018-2019.pdf [2] Deloitte Review. (2017) "The rise of mobility as a service". https://www2.deloitte.com/content/dam/Deloitte/nl/Documents/consumer-business/deloitte-nl-cb-ths-rise-of-mobility-as-a-service.pdf | DY8: [1] Bagloee, S.A., Tavana, M., Asadi, M. et al. Autonomous vehicles: challenges, opportunities, and future implications for transportation policies. J. Mod. Transport. 24, 284–303 (2016). https://doi.org/10.1007/s40534-016-0117-3
B9: =tblIndicators!A5 -> 4 | C9: =tblIndicators!B5 -> 0 | D9: =tblIndicators!E5 -> IMPA1_2 | E9: =tblIndicators!F5 -> IMPA | F9: =tblIndicators!G5 -> 2 | N9: =REPT(" ",F9)&tblIndicators!AM5 -> 1.2) Carbon emissions reduction | O9: =tblIndicators!AR5 -> 0 | R9: 4 | S9: 4 | T9: 4 | U9: 4 | V9: 4 | W9: 4 | X9: 4 | Y9: 3 | Z9: 4 | AA9: 4 | AB9: 4 | AC9: 4 | AD9: 2 | AE9: 4 | AF9: 2 | AG9: 4 | AH9: 4 | AI9: 2 | AJ9: 4 | AK9: 3 | AL9: 2 | AM9: 4 | AN9: 1 | AO9: 2 | AP9: 2 | AQ9: 1 | AU9: 4 | AV9: 4 | AW9: 4 | AX9: 4 | AY9: 4 | AZ9: 4 | BA9: 4 | BB9: 3 | BC9: 4 | BD9: 4 | BE9: 4 | BF9: 4 | BG9: 2 | BH9: 4 | BI9: 2 | BJ9: 4 | BK9: 4 | BL9: 2 | BM9: 4 | BN9: 3 | BO9: 2 | BP9: 4 | BQ9: 1 | BR9: 2 | BS9: 2 | BT9: 1 | BW9: 0.6–1.1 Gigatons CO2 equivalent reduced / sequestered (2020–2050) [1] | BX9: 0.6–1.1 Gigatons CO2 equivalent reduced / sequestered (2020–2050) [1] | BY9: 0.29–0.47 Gigatons CO2 equivalent reduced / sequestered (2020–2050) [1] | BZ9: 10.04–12.63 Gigatons CO2 equivalent reduced / sequestered (2020–2050) [1] | CA9: Embodied carbon (kgCO2e) per m2 of wall varies between 5 to 40 kg CO2 versus the much higher levels of embodied carbon of high embodied carbon insulation materials (polyurethane expanded or unfaced) which are over 150 kg CO2. [1] Therefore, it is a reduction of between 145-110 kg CO2 per m2 of wall. | CB9: 4.16–9.29 Gigatons CO2 equivalent reduced / sequestered (2020–2050) [1] High efficiency heat pumps have the potential to reduce GHG by 1.8 GT annually [2] | CC9: Switching fully to low-carbon cement and eco-concrete could reduce between 1.72 and 2.75 billion tonnes of CO₂ emissions annually based on the type of cement technology used. [1] For example, by substituting clinker (cement's high-emission binding agent) with low-emission alternatives so that the substitute amount to 40% of a cement mixture could avoid up to 400 million tonnes of CO2 emissions annually. [2] 7.98–16.1 Gigatons CO2 equivalent reduced / sequestered (2020–2050) [3] | CD9: 35% increase in building maintenance and operational efficiency 50% increase in sustainability and resilience (by reducing GHG emissions and CO2 footprint [1] | CE9: 6.47–10.48 Gigatons CO2 equivalent reduced / sequestered (2020–2050) [1] | CF9: 1.05–3.8 Gigatons CO2 equivalent reduced / sequestered (2020-2050) [1] | CG9: Potential energy savings ranging between 74,336 and 87,339 kWh/year per underground subway station [1] An average non-transfer subway station consumes 1.8–2.3 million kWh/year [2] GHG emissions from electricity consumption are based on the energy sources of a local grid. In the UK, it is calculated that there are 0.233 kg of CO2e per kWh of electricity consumed. [3] | CH9: 12% direct reduction in Energy & CO2 Emissions to 2030 assuming a 100% penetration of the smart grid technologies. [1] 6% indirect reduction in Energy & CO2 Emissions to 2030 assuming a 100% penetration of the smart grid technologies. [1] | CI9: Yes, there is evidence that distributed energy storage can reduce CO2 emissions and "the greatest emissions reductions are achieved when charging storage with otherwise-curtailed renewables and discharging to reduce peak demands in areas consuming high volumes of fossil fuel power." [1] | CJ9: 6.28–9.85 Gigatons CO2 equivalent reduced / sequestered (2020–2050) [1] | CK9: Yes, there is evidence that battery energy storage reduces CO2 emissions by allowing for greater use of cleaner energy generation (such as solar or wind power) which may be less reliable [1] | CL9: 6.28–9.85 Gigatons CO2 equivalent reduced / sequestered (2020–2050) [1] | CM9: 27.98–68.64 Gigatons Co2 equivalent reduced by 2020-2050 [1] | CN9: Yes, there is evidence that 75% of waste can be diverted out of landfills through recycling and improved waste sorting systems, such as those which rely on waste sorting robotics. These robots can reduce waste mismanagement, thereby reducing emissions. [1] | CO9: 11.57-5.68 Gigatons CO2 equivalent reduced / sequestered (2020–2050) [1] | CP9: CO2 emissions reduction from EV charging ports is dependent on the kind of grid used, and at what point a vehicle is charged. Studies show that workplace charging is more efficient than personal/home charging. [1] EVs have the potential to reduce 11.57-5.68 gigatons of CO2 according to project drawdown and this CO2 reduction is not possible without EV charging ports [2] | CQ9: The consumption of CO2 is highly dependent on the kind of grid used, and at what point a vehicle is charged. Studies show that workplace charging is more efficient than personal/home charging. [1] | CR9: Optimizing V2G technologies for reduction of carbon-intensive electricity use can enable a 23.6% reduction in greenhouse gas emissions [1] | CS9: Improving the operation of batteries allows them to reduce energy consumption, in turn reducing emissions. However, this must also be accompanied by a reduction in emissions in the manufacturing of batteries as they have a high CO2 life-cycle assessment [1] | CT9: There is evidence that hydrogen-powered vehicles produce half the amount of CO2 emissions as compared to traditional cars. Hence, adoption would significantly reduce CO2 levels by 2020 - 2025[1] | CU9: There is evidence that by enhancing public transportation, MaaS could significantly reduce CO2 emissions.[1] | CV9: There is conflicting literature on whether Autonomous vehicles would increase/decrease CO2 levels -- most studies conclude that there isn't enough data yet to predict long term effects of AVs. [1] | CZ9: [1] Project Drawdown. (2021) "Green & Cool Roofs". https://drawdown.org/solutions/green-and-cool-roofs/technical-summary | DA9: [1] Project Drawdown. (2021) "Green & Cool Roofs". https://drawdown.org/solutions/green-and-cool-roofs/technical-summary | DB9: [1] Project Drawdown. (2021) "Dynamic Glass" https://drawdown.org/solutions/dynamic-glass | DC9: [1] Project Drawdown. (2021) "High-Performance Glass" https://drawdown.org/solutions/high-performance-glass | DD9: [1] Bull, Jamie. (2021) "Embodied Carbon of Insulation". GreenSpec. https://www.greenspec.co.uk/building-design/embodied-carbon-of-insulation/ | DE9: [1] Project Drawdown. (2021) "High-efficiency heat pumps" https://drawdown.org/solutions/high-efficiency-heat-pumps [2] Staffell, Iain, et al. "A review of domestic heat pumps." Energy & Environmental Science 5.11 (2012): 9291-9306. | DF9: [1] Provis, J. L. (2014). Green concrete or red herring? – future of alkali-activated materials. Advances in Applied Ceramics, 113(8), 472-477. doi:10.1179/1743676114Y.0000000177 [2] UN Environment Programme (2016). Eco-efficient cements: Potential economically viable solutions for a low-CO2 cement-based materials industry. https://wedocs.unep.org/bitstream/handle/20.500.11822/25281/eco_efficient_cements.pdf [3] Project Drawdown. (2021) "Alternative Cement" https://drawdown.org/solutions/alternative-cement | DG9: [1] Lukesh, Todd et al. (2021) "Digital Twin: the Age of Aquarius in construction and real estate" EY: Building a better working world https://www.scl.org.au/sites/default/files/Digital%20twin%20-%20the%20Age%20of%20Aquarius%20in%20construction%20 and%20real%20estate.pdf | DH9: [1] Project Drawdown. (2021) "Building Automation Systems" https://drawdown.org/solutions/building-automation-systems | DI9: [1] Project Drawdown. (2021). Telepresence. https://drawdown.org/solutions/telepresence | DJ9: [1] Casals, M., Gangolells, M., Forcada, N., Macarulla, M., Giretti, A., & Vaccarini, M. (2016). SEAM4US: An intelligent energy management system for underground stations. Applied Energy, 166, 150-164. doi:https://doi.org/10.1016/j.apenergy.2016.01.029 [2] Guan, B., Liu, X., Zhang, T., & Xia, J. (2018). Energy consumption of subway stations in China: Data and influencing factors. Sustainable Cities and Society, 43, 451-461. doi:https://doi.org/10.1016/j.scs.2018.09.018 [3] UK Department for Business, Energy & Industrial Strategy. (2020). Greenhouse gas reporting: conversion factors 2020. https://www.gov.uk/government/publications/greenhouse-gas-reporting-conversion-factors-2020 | DK9: [1] Pratt, R. G., Balducci, P. J., Gerkensmeyer, C., Katipamula, S., Kintner-Meyer, M. C., Sanquist, T. F., ... & Secrest, T. J. (2010). The smart grid: an estimation of the energy and CO2 benefits (No. PNNL-19112 Rev 1). Pacific Northwest National Lab.(PNNL), Richland, WA (United States). https://www.pnnl.gov/main/publications/external/technical_reports/PNNL-19112.pdf | DL9: [1] Pimm, A. J., Palczewski, J., Barbour, E. R., & Cockerill, T. T. (2021). Using electricity storage to reduce greenhouse gas emissions. Applied Energy, 282, 116199. | DM9: [1] Project Drawdown. (2021) "District heating" https://drawdown.org/solutions/district-heating | DN9: [1] Zogg, R., Tyson, L., Ofer, D., & Brodrick, J. (2007). Distributed energy storage. ASHRAE journal, 49(5), 90. | DO9: [1] Project Drawdown. (2021) "Geothermal Power" https://drawdown.org/solutions/geothermal-power | DP9: [1] Project Drawdown. (2021). Distributed Solar Power. https://drawdown.org/solutions/distributed-solar-photovoltaics/technical-summary | DQ9: [1] Diya, S. Z., Proma, R. A., Islam, M. N., Anannya, T. T., Al Mamun, A., Arefeen, R., ... & Rabbi, M. F. (2018, December). Developing an intelligent waste sorting system with robotic arm: A step towards green environment. In 2018 International Conference on Innovation in Engineering and Technology (ICIET) (pp. 1-6). IEEE. | DR9: [1] Project Drawdown. (2021). Electric Cars. https://drawdown.org/solutions/electric-cars | DS9: [1] National Renewable Energy Labortory https://afdc.energy.gov/files/u/publication/ev_emissions_impact.pdf [2] Project Drawdown. (2021). Electric Cars. https://drawdown.org/solutions/electric-cars | DT9: [1] National Renewable Energy Labortory https://afdc.energy.gov/files/u/publication/ev_emissions_impact.pdf | DU9: [1] Sutherland, B. R. (2020). Reducing Emissions and Costs with Vehicle-to-Grid. Joule, 4(8), 1630-1632. https://www.sciencedirect.com/science/article/pii/S2542435120303494 | DV9: [1] Mu, X., Pan, H., He, P., & Zhou, H. (2020). Li–CO2 and Na–CO2 batteries: toward greener and sustainable electrical energy storage. Advanced Materials, 32(27), 1903790. | DW9: [1] UCUSA. How Clean Are Hydrogen Fuel Cell Electric Vehicles? https://www.ucsusa.org/sites/default/files/attach/2014/10/How-Clean-Are-Hydrogen-Fuel-Cells-Fact-Sheet.pdf | DX9: [1] Cepeliauskaite, G.; Keppner, B.; Simkute, Z.; Stasiskiene, Z.; Leuser, L.; Kalnina, I.; Kotovica, N.; Andin, š, J.; Muiste, M. Smart-Mobility Services for Climate Mitigation in Urban Areas: Case Studies of Baltic Countries and Germany. Sustainability 2021, 13, 4127. https://doi.org/10.3390/su13084127 | DY9: [1] Massar, M.; Reza, I.; Rahman, S.M.; Abdullah, S.M.H.; Jamal, A.; Al-Ismail, F.S. Impacts of Autonomous Vehicles on Greenhouse Gas Emissions—Positive or Negative?. Int. J. Environ. Res. Public Health 2021, 18, 5567. https://doi.org/10.3390/ijerph18115567
B10: =tblIndicators!A6 -> 5 | C10: =tblIndicators!B6 -> 0 | D10: =tblIndicators!E6 -> IMPA1_3 | E10: =tblIndicators!F6 -> IMPA | F10: =tblIndicators!G6 -> 2 | N10: =REPT(" ",F10)&tblIndicators!AM6 -> 1.3) Potential additional benefits | O10: =tblIndicators!AR6 -> 0 | R10: 4 | S10: 4 | T10: 4 | U10: 2 | V10: 2 | W10: 4 | X10: 4 | Y10: 3 | Z10: 2 | AA10: 3 | AB10: 4 | AC10: 4 | AD10: 4 | AE10: 4 | AF10: 3 | AG10: 4 | AH10: 4 | AI10: 4 | AJ10: 4 | AK10: 1 | AL10: 3 | AM10: 4 | AN10: 2 | AO10: 3 | AP10: 4 | AQ10: 3 | AU10: 4 | AV10: 4 | AW10: 4 | AX10: 2 | AY10: 2 | AZ10: 4 | BA10: 4 | BB10: 3 | BC10: 2 | BD10: 3 | BE10: 4 | BF10: 4 | BG10: 4 | BH10: 4 | BI10: 3 | BJ10: 4 | BK10: 4 | BL10: 4 | BM10: 4 | BN10: 1 | BO10: 3 | BP10: 4 | BQ10: 2 | BR10: 3 | BS10: 4 | BT10: 3 | BW10: Improves stormwater management by storing water in the green roof system which reduces and delays runoff during high periods of rainfall. [1] Improves water runoff quality [2] Improves urban air quality [3] Extends period between replacing roof [4] Reduces urban heat island effect [4] Enhances architectural interest [4] Reduces energy costs for cooling and/or heating of buildings. They can save between 9% in energy usage for heating in buildings with well-insulated roofs to 45% in buildings with non-insulated roofs. Green roofs do not reduce energy consumption for cooling in well insulated building but can reduce energy consumption by 45% in non-insulated buildings; meaning energy savings can sit between 2 to 44%, respectively per year. [5] | BX10: Reduces local air temperatures (sometimes referred to as the urban heat island effect). [1], [2] Might bring benefits like reduced summer energy demand. [2] Reduces urban heat island effect. [1] | BY10: Reduces building energy load for heating, cooling, and lighting. [1] Dynamic Glass reduces overall HVAC energy consumption and costs by limiting unwanted heat gain in summer but allowing beneficial passive heat gain in winter. Intermediate states convey additional benefits by saving lighting energy, thus allowing for optimal daylighting. [2] Positively affect worker productivity through improved thermal and visual comfort as well as connection to the outdoors. [2] | BZ10: Increases energy efficiency for commercial buildings by 6-9 percent and by 13-17 for residential buildings [1] | CA10: Insulation is one of the most practical and cost-effective ways to make buildings more energy efficient—both in new construction and through retrofitting older buildings that often are not well encased [1] Insulation reduces overall energy cost [2] Important to note: there is little peer-reviewed literature on insulation and its impact other than insulation helping in reduce cost and emissions. [3] | CB10: Reduced electricity usage up to 50% [1] High-efficiency heat pumps also dehumidify better than standard central air conditioners, resulting in less energy usage and more cooling comfort in summer months [1] Many high-efficiency heat pumps are equipped with a desuperheater, which recovers waste heat from the heat pump's cooling mode and uses it to heat water. [1] Cost effective in the longer run [2] The emissions and energy saved via a heat pump various depending on the outside climate [3] | CC10: Reduced thermal efficiency [1] Economy of scale of production and optimised processing [2] affecting both cost and energy requirements [2] Widespread availability of raw materials [2[ Ease of use enabled by workability time before setting [2] Confidence in long term durability based on wide-ranging and prolonged usage [2] Industries that switch to low-carbon cement also save on carbon tax [3] | CD10: Allows for more efficient building, and planning of projects -- by collecting real time data, the model is able to indicate how the real-life project will behave in various scenarios. This allows developers/construction workers to cut costs, avail economies of scale, and create a more sustainable product in the longer run [1] Digital twin can align sustainability with design goals. In other words, making a digital twin can disclose its carbon footprint and energy efficiency up front. In addition, the technology means that the various pieces of a structure can be produced in an off-site factory and then assembled on site—thus buildings can be not only easily assembled but also disassembled and reused to support a circular economy. [2] | CE10: Building owners could save US$1.8–3.1 trillion in operating costs [1] | CF10: Travel cost savings of US$1.2–4.4 trillion [1] Reduction of unproductive travel hours by 107–143 [1] | CG10: Could increase a transit authority’s awareness of the relationship between system management and subway air quality. [1] Could help monitor the air-quality that patrons and subway users are exposed to, promoting a healthier subway environment [1] It could also alert system managers of issues and yield savings in limiting the degradation of wheels and rails and extending the life of brake shoes. [1] Integrated and intelligent ventilation systems can conserve energy in subway stations. [2] | CH10: 1. Smart grids: - More efficient transmission of electricity - Quicker restoration of electricity after power disturbances - Reduced operations and management costs for utilities, and ultimately lower power costs for consumers - Reduced peak demand, which will also help lower electricity rates - Increased integration of large-scale renewable energy systems - Better integration of customer-owner power generation systems, including renewable energy systems - Improved security [1] 2. Smart Meters: - Allow consumers to monitor their electricity consumption, making it easier for them to look at more sustainable usage - Can help consumers reduce costs [2] | CI10: Energy storage is provided in the range where the electricity tariff is inexpensive. In the range where electricity is expensive, it can offer consumers stored energy. [1] Prevents power fluctuation and power quality problems caused by systems in the grid. [1] ESS in a microgrid also provides benefits for power support and operating reserves. [2] Increased use of existing equipment, thereby deferring or eliminating costly upgrades [3] | CJ10: By replacing existing stand-alone water- and space-heating systems, district heating and save US$1.6–2.4 trillion in energy costs [1] The systems are highly flexible: it is much easier to impact ten buildings if they are on a common distribution loop than by trying to negotiate with each of the individual buildings to install efficient renewable technology at each of the buildings. [1] District heating employs economies of scale and economies of scope to install preferred technologies prior to achieving cost-effectiveness at the individual building scale. [1] | CK10: Very high efficiency, rechargeable many times, energy is quickly available [1] | CL10: Reduction of energy consumption [1] Increase of energy efficiency [1] Increased energy security [1] Increased energy reliability [1] Reduction of energy costs [1] by $0.81–1.22 Trillion $US in lifetime net operational savings [2] | CM10: Reduced costs [1] Improved public health [1] Waste Reduction [1] | CN10: Mass Reproduction Mind/Data Sharing can increase efficiency and learning The technology is extremely durable | CO10: Using an energy source such as electricity for transportation creates a resiliency benefit. The multiple fuel sources used in the generation of electricity results in a more secure and domestically generated energy source for the electrified portion of the transportation sector. All of this adds to our nation’s energy security. [1] The cost of the electricity required to charge an EV is around 40% less than the cost to use petrol for a similar sized vehicle driving the same distance 1. The cost will be lower if you charge your EV from your solar PV system or at free charging stations. [2] Various health benefits due to reduced pollution & GHGs [2] | CP10: At the most basic level, electric vehicle charging can be managed so that the impact on the grid is minimal. Charging can be managed either through voluntary adoption of utility-offered time-of-use rates that reward off-peak charging (indirect control) or it can be managed through utility-controlled charging signals (direct control). This type of management would result in minimized additional load and grid impact from EVs as well as greater energy cost savings for EV owners and operators. [1] | CQ10: Public charging, fast charging, multi-unit dwellings [1] Helps with energy optimization [1] | CR10: The V2G concept can improve the performance of the electricity grid in areas such as efficiency, stability, and reliability. [1] A V2G-capable vehicle offers reactive power support, active power regulation, tracking of variable renewable energy sources, load balancing, and current harmonic filtering. [1] These technologies can enable ancillary services, such as voltage and frequency control and spinning reserve. [1] | CS10: Research on hybrid power sources demonstrates that the combination of ultracapacitors and batteries achieves a longer run-time and a higher power capability compared to a battery-alone under a pulsed load condition [1] | CT10: Lower costs: from at least one original equipment manufacturer, the predicted cost of mass-produced fuel cell electric vehicles could be similar to the cost of their hybrid counterparts by 2025. Unlike a battery, where most of the cost comes from the raw materials used to make it, the most expensive part of a fuel cell is manufacturing the fuel cell stack itself—not the materials to produce it. The cost to build and maintain hydrogen stations also needs to decrease for the market to support a hydrogen economy. [1] When used to power highly efficient fuel cell electric vehicles, hydrogen holds the promise of helping strengthen national energy security, conserve fuel, and diversify our transportation energy options for a more resilient system.[1] | CU10: The reporting functionality offers analytical information that can be useful to mobility service operator/provider to further adjust its mobility products and services. The public authorities can better understand mobility patterns and further facilitate or reverse them depending on mobility goals set for a region or area [1] Travellers benefit from tailored-made offers based on their preferences for high-quality and value-for-money mobility compared to owning and using a private vehicle. [1] Moreover, MaaS can be seen not only as bridging the gap between mobility service operators/providers in the same city, but also between different cities and initiate the idea of “roaming” in the transport sector [1] Indirect benefits of MaaS through reduced congestion:higher productivity, better air quality, fewer traffic accidents, and a smaller urban footprint for parking. [2] | CV10: AVs can also create benefits such as increasing accessibility and mobility and even improving land use. [1] Reduce negative externalities of driving such as congestion, accidents and environment degradation, as well as security. However, they can also be prone to accidents and still require further development [1] AVs also provide an opportunity for vehicles to communicate their maneuvers and actions with each other which may reduce idle time, improving both traffic and drive-cycle efficiencies [1] | CZ10: [1] Mentens, J., Raes, D., & Hermy, M. (2006). Green roofs as a tool for solving the rainwater runoff problem in the urbanized 21st century? Landscape and Urban Planning, 77(3), 217-226. doi:https://doi.org/10.1016/j.landurbplan.2005.02.010 [2] Berndtsson, J. C., Bengtsson, L., & Jinno, K. (2009). Runoff water quality from intensive and extensive vegetated roofs. Ecological Engineering, 35(3), 369-380. doi:https://doi.org/10.1016/j.ecoleng.2008.09.020 [3] Yang, J., Yu, Q., & Gong, P. (2008). Quantifying air pollution removal by green roofs in Chicago. Atmospheric Environment, 42(31), 7266-7273. doi:https://doi.org/10.1016/j.atmosenv.2008.07.003 [4] Castleton, H. F., Stovin, V., Beck, S. B. M., & Davison, J. B. (2010). Green roofs; building energy savings and the potential for retrofit. Energy and Buildings, 42(10), 1582-1591. doi:https://doi.org/10.1016/j.enbuild.2010.05.004 [5] Niachou, Aikaterini, et al. "Analysis of the green roof thermal properties and investigation of its energy performance." Energy and buildings 33.7 (2001): 719-729. | DA10: [1] "Cool Roofs" https://www.energy.gov/energysaver/cool-roofs [2] H.L. Macintyre, C. Heaviside. (2018) "Potential benefits of cool roofs in reducing heat-related mortality during heatwaves in a European city",Environment International, 127, 430-441, https://doi.org/10.1016/j.envint.2019.02.065. | DB10: [1] Project Drawdown. (2021). Dynamic Glass. https://drawdown.org/solutions/dynamic-glass/technical-summary [2] View. "Energy benefits of View Dynamic Glass in workplaces GLASS GLASS ". https://view.com/sites/default/files/documents/workplace-white-paper.pdf | DC10: [1] Project Drawdown. High-performance glass. (2021). https://drawdown.org/solutions/high-performance-glass/technical-summary | DD10: [1] Project Drawdown. (2021). Insulation. https://www.drawdown.org/solutions/insulation/technical-summary | DE10: [1] Energy Saver. (2021). https://www.energy.gov/energysaver/heat-and-cool/heat-pump-systems/geothermal-heat-pumps [2] Project drawdown. (2021) Heat-pumps. https://www.drawdown.org/solutions/high-efficiency-heat-pumps/technical-summary [3] Forsén, Martin. (2015) "Heat Pumps: Technology and Impacts"", European Heat Pump Association , 9-13. https://ec.europa.eu/environment/ecolabel/about_ecolabel/reports/hp_tech_env_impact_aug2005.pdf | DF10: [1] Riccardo Maddalena, Jennifer J. Roberts, Andrea Hamilton,"Can Portland cement be replaced by low-carbon alternative materials? A study on the thermal properties and carbon emissions of innovative cements", Journal of Cleaner Production,2018, 933-942. https://doi.org/10.1016/j.jclepro.2018.02.138. [2] UN Environment. "Eco-efficient cements:Potential economically viable solutions for a low-CO2 cement based materials industry". https://wedocs.unep.org/bitstream/handle/20.500.11822/25281/eco_efficient_cements.pdf [3] Green Biz. (2018). https://www.greenbiz.com/article/concrete-change-making-cement-carbon-negative | DG10: [1] Calin Boje, Annie Guerriero, Sylvain Kubicki, Yacine Rezgui,Towards a semantic Construction Digital Twin: Directions for future research, Automation in Construction,2020. doi: https://doi.org/10.1016/j.autcon.2020.103179. [2] Global infrastructure Initiative. (2019). Digital twins: Taking modular construction to the next level. https://www.globalinfrastructureinitiative.com/article/digital-twins-taking-modular-construction-next-level | DH10: [1] Project Drawdown. (2021) "Building Automation Systems" https://drawdown.org/solutions/building-automation-systems | DI10: [1] Project Drawdown. (2021). Telepresence. https://drawdown.org/solutions/telepresence | DJ10: [1] Keith Van Ryswyk, Ryan Kulka, Leonora Marro, Dominik Yang, Elton Toma, Luckshya Mehta, Leigh McNeil-Taboika, and Greg J. Evans Environmental Science & Technology 2021 55 (16), 11133-11143. doi: 10.1021/acs.est.1c00703 [2] Wen, Yueming et al. “Environmental and Health Effects of Ventilation in Subway Stations: A Literature Review.” International journal of environmental research and public health vol. 17,3 1084. 8 Feb. 2020. doi:10.3390/ijerph17031084 | DK10: [1] Smart Grid. (2021). https://www.smartgrid.gov/the_smart_grid/smart_grid.html [2] ESMIG. (2021). https://esmig.eu/page/benefits-smart-meters | DL10: [1] Jürgen Garche,"Encyclopedia of Electrochemical Power Sources",Elsevier,2009,Pages 324-333, https://doi.org/10.1016/B978-044452745-5.00391-9. [2] David Wenzhong Gao, "Energy Storage for Sustainable Microgrid", Academic Press, 2015, Pages vii-ix, https://doi.org/10.1016/B978-0-12-803374-6.00009-3. (https://www.sciencedirect.com/science/article/pii/B9780128033746000093) [3] Department of Energy. (2021). https://www.energy.gov/oe/energy-storage | DM10: [1] Project Drawdown. (2021). District Heating. https://drawdown.org/solutions/district-heating/technical-summary | DN10: [1] Elements. (2021) https://elements.evonik.com/research-and-innovation/overview-of-energy-storage-systems/ | DO10: [1] Celsius. Thermal Energy Storage. https://celsiuscity.eu/thermal-energy-storage/ [2] Project Drawdown. (2021) "Geothermal Power" https://drawdown.org/solutions/geothermal-power | DP10: [1] Environmental Defense Fund. {2016). http://blogs.edf.org/energyexchange/2016/10/21/8-benefits-of-distributed-solar-that-prove-its-worth-more-than-dollars-and-cents/ | DQ10: https://www.irjet.net/archives/V5/i2/IRJET-V5I2110.pdf | DR10: [1] US Department of Energy. https://afdc.energy.gov/fuels/electricity_benefits.html. [2] Eragon Energy Network. https://www.ergon.com.au/network/smarter-energy/electric-vehicles/benefits-of-electric-vehicles. | DS10: [1] Ingrid Malmgren1. "Quantifying the Societal Benefits of Electric Vehicles". 2016, International Battery, Hybrid and Fuel Cell Electric Vehicle Symposium. | DT10: [1] The International Renewable Energy Agency (IRENA). https://www.irena.org/-/media/Files/IRENA/Agency/Publication/2019/May/IRENA_EV_smart_charging_2019_summary.pdf | DU10: [1] Yilmaz, M. & Krein, Philip. (2012). Review of benefits and challenges of vehicle-to-grid technology. Energy Conversion Congress and Exposition (ECCE). 3082-3089. 10.1109/ECCE.2012.6342356. | DV10: [1] Gao, Lijun & Dougal, R.A. & Liu, Shengyi. (2005). Power Enhancement of an Actively Controlled Battery/Ultracapacitor Hybrid. Power Electronics, IEEE Transactions on. 20. 236 - 243. 10.1109/TPEL.2004.839784(410). | DW10: [1] US Department of Energy. https://afdc.energy.gov/fuels/hydrogen_benefits.html | DX10: [1] UNECE. Mobility as a Service. Transport Trends and Economics 2018–2019. https://unece.org/fileadmin/DAM/trans/main/wp5/publications/Mobility_as_a_Service_Transport_Trends_and_Economics_2018-2019.pdf [2] Deloitte Review. (2017) "The rise of mobility as a service". https://www2.deloitte.com/content/dam/Deloitte/nl/Documents/consumer-business/deloitte-nl-cb-ths-rise-of-mobility-as-a-service.pdf | DY10: [1] Bagloee, S.A., Tavana, M., Asadi, M. et al. Autonomous vehicles: challenges, opportunities, and future implications for transportation policies. J. Mod. Transport. 24, 284–303 (2016). https://doi.org/10.1007/s40534-016-0117-3
B11: =tblIndicators!A7 -> 6 | C11: =tblIndicators!B7 -> 0 | D11: =tblIndicators!E7 -> IMPA1_4 | E11: =tblIndicators!F7 -> IMPA | F11: =tblIndicators!G7 -> 2 | N11: =REPT(" ",F11)&tblIndicators!AM7 -> 1.4) Potential harms / consequences | O11: =tblIndicators!AR7 -> 0 | R11: 2 | S11: 2 | T11: 3 | U11: 3 | V11: 2 | W11: 2 | X11: 4 | Y11: 2 | Z11: 2 | AA11: 2 | AB11: 3 | AC11: 1 | AD11: 4 | AE11: 3 | AF11: 2 | AG11: 3 | AH11: 4 | AI11: 3 | AJ11: 2 | AK11: 3 | AL11: 3 | AM11: 2 | AN11: 2 | AO11: 2 | AP11: 2 | AQ11: 1 | AU11: 2 | AV11: 2 | AW11: 3 | AX11: 3 | AY11: 2 | AZ11: 2 | BA11: 4 | BB11: 2 | BC11: 2 | BD11: 2 | BE11: 3 | BF11: 1 | BG11: 4 | BH11: 3 | BI11: 2 | BJ11: 3 | BK11: 4 | BL11: 3 | BM11: 2 | BN11: 3 | BO11: 3 | BP11: 2 | BQ11: 2 | BR11: 2 | BS11: 2 | BT11: 1 | BW11: Increased maintenance costs & frequency [1-5] There is evidence that green roofs can be more prone to causing building damage if improperly installed. [1-5] | BX11: The technology is limited in its potential, and has extremely high initial / maintenance costs [1, 2] | BY11: Realistically, architectural dynamic glass will be mainly adopted in wealthier regions with higher average temperatures, such as Australia and the southern and western areas of the US, otherwise the initial adoption cost is not financially viable. [1] | BZ11: High-performance glass would have to drop significantly in price to be economically viable in the regions studied. This may be a factor of low energy prices, and helps to explain why after so many years of availability on the market, many areas have not adopted high performing glass. Without some interventions that lower the upfront costs to installation, there is limited incentive for building owners to install high performance glass [1] | CA11: High amounts of emissions during the installation of insulation. [1] | CB11: High initial & maintenance cost [1] Data on the positive impact of heat pumps is murky -- many studies show that they have a higher environmental impact than gas boilers [2] | CC11: There is not a lot of evidence about any negative or unintended consequences of using low-carbon cement or its cement alternatives | CD11: Digital-twins technology can be prone to cyber attacks [1] High initial and upkeep costs [2] | CE11: The high up-front costs of BAS, as well as the complexity of building systems and the lack of standardization for control approaches, have been barriers to the implementation of these systems beyond the large commercial buildings in the U.S. and EU | CF11: Non-verbal communication is lost over the internet Requires a high amount of resources, and coordination between top management and the rest of the company | CG11: Due to the lack of a source of totally clean air in subways: natural airflows caused by pressure difference and piston wind may bring polluted air or fire smoke throughout the subway station and thereby worsen IAQ; the humid condition, huge load, continuous operation, and fixed installation all render it difficult to maintain a clean ventilation system. [1] | CH11: High upfront costs [1] Change in management that understands the use of smart grids [1] Possibility of network congestion [2] | CI11: Could not find any negative impacts | CJ11: High heat load density – because the heat network is capital-intensive, the heated area should have a high density to minimize the required pipe length [1] Economic viability – the district heating system is economically viable only if the total heat requirement of the entire system exceeds a minimum level [1] Location of buildings – to minimize connection length, buildings should be within the minimum proximity of the existing heat network, resulting in lower investment and operational costs [1] Location of heat source – by locating the heat source close to or within the urban areas, the total length of heat network can be minimized. [1] | CK11: Fire hazard (Li-ion batteries), high cost and maintenance (redox flow battery) [1] | CL11: High energy losses in some cases due to waste heat. | CM11: Distributed Solar Panels don't have any harms, but could run into other concerns: - It must be noted though that sunlight is intermittent, and electricity profiles from solar PV do not always match well with the typical demand profile of electricity consumers. This means that PV often must be installed alongside dispatchable sources such as coal and natural gas. [1] - There will need to be more demand flexibility, to change the demand profile to better match the generation profile. [1] - There may also be materials constraints on the expansion of production capacity for current PV technology, for several critical materials are only mined as by-products of other metals and could be limited in their ability to meet the levels of production needed for significant global adoption [1] | CN11: Needs a power supply [1] High installation costs [1] | CO11: Needs wider state coordination to instal charging ports, which can be extremely costly [1] Rapid battery wear & tear, which increases e-waste [1] | CP11: High implementation costs | CQ11: High implementation cost [1] | CR11: Battery degradation [1] Requires intensive communication between the vehicles and the grid which can impact grid distribution equipment [1] Needs state level Infrastructure changes [1] | CS11: Technology is not widely available [1] Technology requires high innovation costs [1] | CT11: Cars with hydrogen fuel cells were not as good as they were advertised and actively promoted. The efficiency of the car with hydrogen is quite high (0.7 km/MJ is the second result after the electric car). However, the handicap of this technology shows the total energy efficiency comparable to the efficiency of a diesel with incomparably greater cost and complexity. [1] | CU11: Heavy reliance on technology [1] Security challenges [1] It has been challenging to find a trusted mobility advisor [2] | CV11: Since the beginning of 2012, rapid advances in cybercrime technology and techniques targeting infrastructure have resulted in an unprecedented rise in data breaches. Despite the importance of cybersecurity of AV technology, there are issues that have not been raised in mainstream debate or research. It is important to understand that cyber threats exist on two frontiers: the operation of AVs themselves as ad-hoc vehicles and their communication capabilities as connected and/or cooperative automated vehicles. [1] Potential crashes with pedestrians [1] Legal and regulatory uncertainties during accident and insurance claims [1] | CZ11: [1] Mentens, J., Raes, D., & Hermy, M. (2006). Green roofs as a tool for solving the rainwater runoff problem in the urbanized 21st century? Landscape and Urban Planning, 77(3), 217-226. doi:https://doi.org/10.1016/j.landurbplan.2005.02.010 [2] Berndtsson, J. C., Bengtsson, L., & Jinno, K. (2009). Runoff water quality from intensive and extensive vegetated roofs. Ecological Engineering, 35(3), 369-380. doi:https://doi.org/10.1016/j.ecoleng.2008.09.020 [3] Yang, J., Yu, Q., & Gong, P. (2008). Quantifying air pollution removal by green roofs in Chicago. Atmospheric Environment, 42(31), 7266-7273. doi:https://doi.org/10.1016/j.atmosenv.2008.07.003 [4] Castleton, H. F., Stovin, V., Beck, S. B. M., & Davison, J. B. (2010). Green roofs; building energy savings and the potential for retrofit. Energy and Buildings, 42(10), 1582-1591. doi:https://doi.org/10.1016/j.enbuild.2010.05.004 [5] Niachou, Aikaterini, et al. "Analysis of the green roof thermal properties and investigation of its energy performance." Energy and buildings 33.7 (2001): 719-729. | DA11: [1] Including Irvine, Ridgwell, and Lunt (2011), Jacobson and Ten Hoeve (2012), and Zhang et al. (2016). [2] Project Drawdown. (2021). Green and cool roofs. https://drawdown.org/solutions/green-and-cool-roofs/technical-summary#_ednref7 | DB11: [1] Project Drawdown. (2021). Dynamic Glass. https://drawdown.org/solutions/dynamic-glass/technical-summary | DC11: [1] Project Drawdown. High-performance glass. (2021). https://drawdown.org/solutions/high-performance-glass/technical-summary | DD11: [1] Project Drawdown. (2021). Insulation. https://www.drawdown.org/solutions/insulation/technical-summary | DE11: [1] Forsén, Martin. (2015) "Heat Pumps: Technology and Impacts"", European Heat Pump Association , 9-13. https://ec.europa.eu/environment/ecolabel/about_ecolabel/reports/hp_tech_env_impact_aug2005.pdf [2] Benjamin Greening, Adisa Azapagic "Domestic heat pumps: Life cycle environmental impacts and potential implications for the UK", Energy,2012,Pages 205-217. https://doi.org/10.1016/j.energy.2012.01.028. | DF11: 0 | DG11: [1] https://www.globallogic.com/insights/blogs/if-you-build-products-you-should-be-using-digital-twins/ [2] https://www.cgtech.com/images/pdf/Challenges-and-Benefits-of-Implementing-a-Digital-Twin-in-Composites-Manufacturing.pdf | DH11: [1] Project Drawdown. (2021) "Building Automation Systems" https://drawdown.org/solutions/building-automation-systems | DI11: [1] Project Drawdown. (2021). Telepresence. https://drawdown.org/solutions/telepresence | DJ11: [1] Wen, Yueming et al. “Environmental and Health Effects of Ventilation in Subway Stations: A Literature Review.” International journal of environmental research and public health vol. 17,3 1084. 8 Feb. 2020. doi:10.3390/ijerph17031084 | DK11: [1] Smart gov. "Smart grid benefits and challenges". https://www.smartgrid.gov/files/documents/The_Smart_Grid_Benefits_Challenges_200812.pdf [2] Sultan, Vivian. "Solving electric grid network congestion problem with batteries—An exploratory study using GIS techniques". http://www.ijsgce.com/uploadfile/2018/0613/20180613054838879.pdf | DL11: 0 | DM11: [1] Project Drawdown. (2021). District Heating. https://drawdown.org/solutions/district-heating/technical-summary | DN11: [1] Elements. (2021) https://elements.evonik.com/research-and-innovation/overview-of-energy-storage-systems/ | DO11: [1] Elements. (2021) https://elements.evonik.com/research-and-innovation/overview-of-energy-storage-systems/ | DP11: [1] Project Drawdown. (2021). Distributed Solar Power. https://drawdown.org/solutions/distributed-solar-photovoltaics/technical-summary | DQ11: [1] P. Shiny Esther, Narmatha K., Saranya K. "E-waste management using robotics", International Research Journal of Engineering and Technology (IRJET). 2018. https://www.irjet.net/archives/V5/i2/IRJET-V5I2110.pdf | DR11: [1] Z S Gelmanova et al 2018 J. Phys.: Conf. Ser. 1015 052029 https://iopscience.iop.org/article/10.1088/1742-6596/1015/5/052029/pdf | DS11: [1] Z S Gelmanova et al 2018 J. Phys.: Conf. Ser. 1015 052029 https://iopscience.iop.org/article/10.1088/1742-6596/1015/5/052029/pdf | DT11: [1] Z S Gelmanova et al 2018 J. Phys.: Conf. Ser. 1015 052029 https://iopscience.iop.org/article/10.1088/1742-6596/1015/5/052029/pdf | DU11: Yilmaz, M. & Krein, Philip. (2012). Review of benefits and challenges of vehicle-to-grid technology. Energy Conversion Congress and Exposition (ECCE). 3082-3089. 10.1109/ECCE.2012.6342356. | DV11: [1] Gao, Lijun & Dougal, R.A. & Liu, Shengyi. (2005). Power Enhancement of an Actively Controlled Battery/Ultracapacitor Hybrid. Power Electronics, IEEE Transactions on. 20. 236 - 243. 10.1109/TPEL.2004.839784(410). | DW11: [1] Z S Gelmanova et al 2018 J. Phys.: Conf. Ser. 1015 052029 https://iopscience.iop.org/article/10.1088/1742-6596/1015/5/052029/pdf | DX11: [1] UNECE. Mobility as a Service. Transport Trends and Economics 2018–2019. https://unece.org/fileadmin/DAM/trans/main/wp5/publications/Mobility_as_a_Service_Transport_Trends_and_Economics_2018-2019.pdf [2] Deloitte Review. (2017) "The rise of mobility as a service". https://www2.deloitte.com/content/dam/Deloitte/nl/Documents/consumer-business/deloitte-nl-cb-ths-rise-of-mobility-as-a-service.pdf | DY11: Bagloee, S.A., Tavana, M., Asadi, M. et al. Autonomous vehicles: challenges, opportunities, and future implications for transportation policies. J. Mod. Transport. 24, 284–303 (2016). https://doi.org/10.1007/s40534-016-0117-3
B12: =tblIndicators!A8 -> 7 | C12: =tblIndicators!B8 -> 0 | D12: =tblIndicators!E8 -> SCAL | E12: =tblIndicators!F8 -> OVERALL | F12: =tblIndicators!G8 -> 1 | N12: =REPT(" ",F12)&tblIndicators!AM8 -> 2) SCALABILITY SCORE | O12: =tblIndicators!AR8 -> 0 | R12: 3.333333333 | S12: 3.333333333 | T12: 4 | U12: 3.333333333 | V12: 4 | W12: 4 | X12: 4 | Y12: 2 | Z12: 2.333333333 | AA12: 3.333333333 | AB12: 1.666666667 | AC12: 3.333333333 | AD12: 2.666666667 | AE12: 2.666666667 | AF12: 3.333333333 | AG12: 3.666666667 | AH12: 3 | AI12: 4 | AJ12: 2.333333333 | AK12: 3.333333333 | AL12: 3 | AM12: 2.666666667 | AN12: 2.333333333 | AO12: 2 | AP12: 3.333333333 | AQ12: 2 | AU12: 3.3 | AV12: 3.3 | AW12: 4 | AX12: 3.3 | AY12: 4 | AZ12: 4 | BA12: 4 | BB12: 2 | BC12: 2.3 | BD12: 3.3 | BE12: 1.7 | BF12: 3.3 | BG12: 2.7 | BH12: 2.7 | BI12: 3.3 | BJ12: 3.7 | BK12: 3 | BL12: 4 | BM12: 2.3 | BN12: 3.3 | BO12: 3 | BP12: 2.7 | BQ12: 2.3 | BR12: 2 | BS12: 3.3 | BT12: 2
B13: =tblIndicators!A9 -> 8 | C13: =tblIndicators!B9 -> 0 | D13: =tblIndicators!E9 -> SCAL2_1 | E13: =tblIndicators!F9 -> SCAL | F13: =tblIndicators!G9 -> 2 | N13: =REPT(" ",F13)&tblIndicators!AM9 -> 2.1) Current state of development | O13: =tblIndicators!AR9 -> 0 | R13: 4 | S13: 4 | T13: 4 | U13: 4 | V13: 4 | W13: 4 | X13: 4 | Y13: 4 | Z13: 4 | AA13: 4 | AB13: 2 | AC13: 4 | AD13: 4 | AE13: 4 | AF13: 4 | AG13: 4 | AH13: 4 | AI13: 4 | AJ13: 4 | AK13: 4 | AL13: 4 | AM13: 3 | AN13: 1 | AO13: 1 | AP13: 4 | AQ13: 4 | AU13: 4 | AV13: 4 | AW13: 4 | AX13: 4 | AY13: 4 | AZ13: 4 | BA13: 4 | BB13: 4 | BC13: 4 | BD13: 4 | BE13: 2 | BF13: 4 | BG13: 4 | BH13: 4 | BI13: 4 | BJ13: 4 | BK13: 4 | BL13: 4 | BM13: 4 | BN13: 4 | BO13: 4 | BP13: 3 | BQ13: 1 | BR13: 1 | BS13: 4 | BT13: 4 | BW13: Evidence it is out of research phase [1-9] Yes, there is evidence of availability to purchase in Germany [1] Yes, there is evidence of availability to purchase in France [2] Yes, there is evidence of availability to purchase in Spain [3] Yes, there is evidence of availability to purchase in Italy [4] Yes, there is evidence of availability to purchase in UK [5] Yes, there is evidence of availability to purchase in US [6] Yes, there is evidence of availability to purchase in India [7] Yes, there is evidence of availability to purchase in South Korea [8] Yes, there is evidence of availability to purchase in Singapore [9] | BX13: Evidence it is out of research phase [1-9] Yes, there is evidence of availability to purchase in Germany [1] Yes, there is evidence of availability to purchase in France [2] Yes, there is evidence of availability to purchase in Spain [3] Yes, there is evidence of availability to purchase in Italy [4] Yes, there is evidence of availability to purchase in UK [5] Yes, there is evidence of availability to purchase in US [6] Yes, there is evidence of availability to purchase in India [7] Yes, there is evidence of availability to purchase in South Korea [8] Yes, there is evidence of availability to purchase in Singapore [9] | BY13: Evidence it is out of research phase [1-9] Yes, there is evidence of availability to purchase in Germany [1] Yes, there is evidence of availability to purchase in France [2] Yes, there is evidence of availability to purchase in Spain [3] Yes, there is evidence of availability to purchase in Italy [4] Yes, there is evidence of availability to purchase in UK [5] Yes, there is evidence of availability to purchase in US [6] Yes, there is evidence of availability to purchase in India [7] Yes, there is evidence of availability to purchase in South Korea [8] Yes, there is evidence of availability to purchase in Singapore [9] | BZ13: Evidence it is out of research phase [1-9] Yes, there is evidence of availability to purchase in Germany [1] Yes, there is evidence of availability to purchase in France [2] Yes, there is evidence of availability to purchase in Spain [3] Yes, there is evidence of availability to purchase in Italy [4] Yes, there is evidence of availability to purchase in UK [5] Yes, there is evidence of availability to purchase in US [6] Yes, there is evidence of availability to purchase in India [7] Yes, there is evidence of availability to purchase in South Korea [8] Yes, there is evidence of availability to purchase in Singapore [9] | CA13: Evidence it is out of research phase [1-9] Yes, there is evidence of availability to purchase in Germany [1] Yes, there is evidence of availability to purchase in France [2] Yes, there is evidence of availability to purchase in Spain [3] Yes, there is evidence of availability to purchase in Italy [4] Yes, there is evidence of availability to purchase in UK [5] Yes, there is evidence of availability to purchase in US [6] Yes, there is evidence of availability to purchase in India [7] Yes, there is evidence of availability to purchase in South Korea [8] Yes, there is evidence of availability to purchase in Singapore [9] | CB13: Evidence it is out of research phase [1-9] Yes, there is evidence of availability to purchase in Germany [1] Yes, there is evidence of availability to purchase in France [2] Yes, there is evidence of availability to purchase in Spain [3] Yes, there is evidence of availability to purchase in Italy [4] Yes, there is evidence of availability to purchase in UK [5] Yes, there is evidence of availability to purchase in US [6] Yes, there is evidence of availability to purchase in India [7] Yes, there is evidence of availability to purchase in South Korea [8] Yes, there is evidence of availability to purchase in Singapore [9] | CC13: Evidence it is out of research phase [1-9] Yes, there is evidence of availability to purchase in Germany [1] Yes, there is evidence of availability to purchase in France [2] Yes, there is evidence of availability to purchase in Spain [3] Yes, there is evidence of availability to purchase in Italy [4] Yes, there is evidence of availability to purchase in UK [5] Yes, there is evidence of availability to purchase in US [6] Yes, there is evidence of availability to purchase in India [7] Yes, there is evidence of availability to purchase in South Korea [8] Yes, there is evidence of availability to purchase in Singapore [9] | CD13: Evidence it is out of research phase [1-4] Yes, there is evidence of availability to purchase in Germany [1] Yes, there is evidence of availability to purchase in France [2] Yes, there is evidence of availability to purchase in Spain [3] Yes, there is evidence of availability to purchase in Italy [3] Yes, there is evidence of availability to purchase in UK [3] Yes, there is evidence of availability to purchase in US [3] Yes, there is evidence of availability to purchase in India [3] Yes, there is evidence of availability to purchase in South Korea [4] Yes, there is evidence of availability to purchase in Singapore [3] | CE13: Evidence it is out of research phase [1] Yes, there is evidence of availability to purchase in Germany [1] Yes, there is evidence of availability to purchase in France [1] Yes, there is evidence of availability to purchase in Spain [1] Yes, there is evidence of availability to purchase in Italy [1] Yes, there is evidence of availability to purchase in UK [1] Yes, there is evidence of availability to purchase in US [1] Yes, there is evidence of availability to purchase in India [1] Yes, there is evidence of availability to purchase in South Korea [1] Yes, there is evidence of availability to purchase in Singapore [1] | CF13: Evidence it is out of research phase [1] Yes, there is evidence of availability to purchase in Germany [1] Yes, there is evidence of availability to purchase in France [1] Yes, there is evidence of availability to purchase in Spain [1] Yes, there is evidence of availability to purchase in Italy [1] Yes, there is evidence of availability to purchase in UK [1] Yes, there is evidence of availability to purchase in US [1] Yes, there is evidence of availability to purchase in India [1] Yes, there is evidence of availability to purchase in South Korea [1] Yes, there is evidence of availability to purchase in Singapore [1] | CG13: Evidence it is out of research phase [1] Yes, there is evidence of availability to purchase in Germany [1] No evidence of availability to purchase in France There evidence of research phase in Spain [2] No evidence of availability to purchase in Italy No evidence of availability to purchase in UK No evidence of availability to purchase in US No evidence of availability to purchase in India No evidence of availability to purchase in South Korea No evidence of availability to purchase in Singapore | CH13: Evidence it is out of research phase [1] Yes, there is evidence of availability to purchase in Germany [1] Yes, there is evidence of availability to purchase in France [1] Yes, there is evidence of availability to purchase in Spain [1] Yes, there is evidence of availability to purchase in Italy [1] Yes, there is evidence of availability to purchase in UK [1] Yes, there is evidence of availability to purchase in US [1] Yes, there is evidence of availability to purchase in India [1] Yes, there is evidence of availability to purchase in South Korea [1] Yes, there is evidence of availability to purchase in Singapore [1] | CI13: Evidence it is out of research phase [1-9] Yes, there is evidence of availability to purchase in Germany [1] Yes, there is evidence of availability to purchase in France [2] Yes, there is evidence of availability to purchase in Spain [2] Yes, there is evidence of availability to purchase in Italy [2] Yes, there is evidence of availability to purchase in UK [3] Yes, there is evidence of availability to purchase in US [4] Yes, there is evidence of availability to purchase in India [7] Yes, there is evidence of availability to purchase in South Korea [8] Yes, there is evidence of availability to purchase in Singapore [9] | CJ13: Evidence it is out of research phase [1] Yes, there is evidence of availability to implement this technology in Germany [1] Yes, there is evidence of availability to implement this technology in France [1] Yes, there is evidence of availability to implement this technology in Spain [1] Yes, there is evidence of availability to implement this technology in Italy [1] Yes, there is evidence of availability to implement this technology in UK [1] Yes, there is evidence of availability to implement this technology in US [1] Yes, there is evidence of availability to implement this technology in India [1] Yes, there is evidence of availability to implement this technology in South Korea [1] Yes, there is evidence of availability to implement this technology in Singapore [1] | CK13: Evidence it is out of research phase [1-9] Yes, there is evidence of availability to purchase in Germany [1] Yes, there is evidence of availability to purchase in France [2] Yes, there is evidence of availability to purchase in Spain [2] Yes, there is evidence of availability to purchase in Italy [2] Yes, there is evidence of availability to purchase in UK [3] Yes, there is evidence of availability to purchase in US [4] Yes, there is evidence of availability to purchase in India [7] Yes, there is evidence of availability to purchase in South Korea [8] Yes, there is evidence of availability to purchase in Singapore [9] | CL13: Evidence it is out of research phase [1-9] Yes, there is evidence of availability to purchase in Germany [1] Yes, there is evidence of availability to purchase in France [2] Yes, there is evidence of availability to purchase in Spain [3] Yes, there is evidence of availability to purchase in Italy [4] Yes, there is evidence of availability to purchase in UK [5] Yes, there is evidence of availability to purchase in US [6] Yes, there is evidence of availability to purchase in India [7] Yes, there is evidence of availability to purchase through a company which serves in South Korea [7] Yes, there is evidence of availability to purchase through a company which serves in Singapore [7] | CM13: Evidence it is out of research phase [1] Yes, there is evidence of availability to purchase in Germany [1] Yes, there is evidence of availability to purchase in France [1] Yes, there is evidence of availability to purchase in Spain [1] Yes, there is evidence of availability to purchase in Italy [1] Yes, there is evidence of availability to purchase in UK [1] Yes, there is evidence of availability to purchase in US [1] Yes, there is evidence of availability to purchase in India [1] Yes, there is evidence of availability to purchase in South Korea [1] Yes, there is evidence of availability to purchase in Singapore [1] | CN13: Evidence it is out of research phase [1-9] Yes, there is evidence of availability to purchase in Germany [1] Yes, there is evidence of availability to purchase in France [2] Yes, there is evidence of availability to purchase in Spain [2] Yes, there is evidence of availability to purchase in Italy [2] Yes, there is evidence of availability to purchase in UK [2] Yes, there is evidence of availability to purchase in US [3] Yes, there is evidence of availability to purchase in India [3] Yes, there is evidence of availability to purchase in South Korea [3] Yes, there is evidence of availability to purchase in Singapore [3] | CO13: Evidence it is out of research phase [1] Yes, there is evidence of availability to purchase in Germany [1] Yes, there is evidence of availability to purchase in France [1] Yes, there is evidence of availability to purchase in Spain [1] Yes, there is evidence of availability to purchase in Italy [1] Yes, there is evidence of availability to purchase in UK [1] Yes, there is evidence of availability to purchase in US [1] Yes, there is evidence of availability to purchase in India [1] Yes, there is evidence of availability to purchase in South Korea [1] Yes, there is evidence of availability to purchase in Singapore [1] | CP13: Evidence it is out of research phase [1] Yes, there is evidence of availability to purchase in Germany [1] Yes, there is evidence of availability to purchase in France [1] Yes, there is evidence of availability to purchase in Spain [1] Yes, there is evidence of availability to purchase in Italy [1] Yes, there is evidence of availability to purchase in UK [1] Yes, there is evidence of availability to purchase in US [2] Yes, there is evidence of availability to purchase in India [3] Yes, there is evidence of availability to purchase in South Korea [4] Yes, there is evidence of availability to purchase in Singapore [4] | CQ13: Evidence it is out of research phase [1] Yes, there is evidence of availability to purchase in Germany [1] Yes, there is evidence of availability to purchase in France [1] Yes, there is evidence of availability to purchase in Spain [1] Yes, there is evidence of availability to purchase in Italy [1] Yes, there is evidence of availability to purchase in UK [1] Yes, there is evidence of availability to purchase in US [2] Yes, there is evidence of availability to purchase in India [2] Yes, there is evidence of availability to purchase in South Korea [4] Yes, there is evidence of availability to purchase in Singapore [4] | CR13: Evidence it is out of research phase [1-9] There is evidence of research & pilot stage in Germany [2] Yes, there is evidence of implementation in France [1] Yes, there is evidence of implementation in Spain [3] There is evidence of pilot stage in Italy [4] Yes, there is evidence of implementation in UK [1] Yes, there is evidence of implementation in US [1] There is evidence of small pilot studies on implementing this technology in India [5] Yes, there is evidence of implementation in South Korea [6] There is evidence of trial phase in Singapore [7] | CS13: Evidence it is in research phase. [1] | CT13: Evidence it is in research & pilot phase [1] | CU13: Evidence it is out of research phase [1] Yes, there is evidence of availability to purchase in Germany [1] Yes, there is evidence of availability to purchase in France [1] Yes, there is evidence of availability to purchase in Spain [1] Yes, there is evidence of availability to purchase in Italy [1] Yes, there is evidence of availability to purchase in UK [1] Yes, there is evidence of availability to purchase in US [1] Yes, there is evidence of availability to purchase in India [1] Yes, there is evidence of availability to purchase in South Korea [1] Yes, there is evidence of availability to purchase in Singapore [1] | CV13: Evidence it is out of research phase and is being implemented in conjunction with regular cars. Fully self-driving cars are not yet available but automation is being implemented and continuing to improve. [1] Yes, there is evidence of availability to purchase in Germany [1] Yes, there is evidence of availability to purchase in France [1] Yes, there is evidence of availability to purchase in Spain [1] Yes, there is evidence of availability to purchase in Italy [1] Yes, there is evidence of availability to purchase in UK [1] Yes, there is evidence of availability to purchase in US [1] Yes, there is evidence of availability to purchase in India [1] Yes, there is evidence of availability to purchase in South Korea [1] Yes, there is evidence of availability to purchase in Singapore [1] | CZ13: [1] ZinCo (2021) "Zinco" https://www.zinco.de/ [2] Mon Toit Vert (2021) "Mon Toit Vert" https://www.montoitvert.fr/ [3] Techos Verdes Madrid (2021) "Techos Verdes" https://www.techosverdesmadrid.es/ [4] RasenFix (2021) "Prodotti per tetti verdi" https://www.rasenfix.com/it/tetti-verdi/prodotti/ [5] HS RoofClad (2021) "Green Roofing" https://www.hsroofclad.com/roofing-services/green-roofing/ [6] Liveroof (2021) "Live Roof" https://liveroof.com/ [7] IndiaMart (2021) "Green Roofs at Best Price" https://dir.indiamart.com/impcat/green-roofs.html [8] ZinCo (2021) "Zinco South Korea" https://zinco-greenroof.com/worldwide/south-korea [9] Prince's Landscape (2021) "#1 Best Green Roof Garden Systems in Singapore" https://www.princelandscape.com/green-roof-system/ | DA13: [1] Tausendundein Dächer (2021) https://www.tausendundeindach.at/ [2] Cool-Roof France (2021) https://coolroof-france.com/en/ [3] Techos Frescos (2021) https://www.techosfrescos.com/ [4] Il Tetto (2021) https://www.iltetto.eu/ [5] Morgan Ashphalte (2021) "Reflective Roofs" https://www.morganasphalte.co.uk/news/reflective-roofs/ [6] Cool Roofs (2021) https://www.1coolroof.com/about [7] Sulehka (2021) "Cool Roof Coating Contractors Mumbai" https://www.sulekha.com/cool-roof-coating-contractors/mumbai [8] Kompass (2021) " Companies - Roofing & Wall Cladding Contractors https://kr.kompass.com/a/roofing-and-wall-cladding-contractors/71200/ [9] Shayo Nano (2021) "Roof Coating - Cool Roofs" https://shayonano.com/roof-coating/ | DB13: [1] Sage Glass (2021) https://www.sageglass.com/de [2] Glass Partner Solutions (2021) " About Us" https://gps-glass.com/en/gps-group/ [3] Glass Partner Solutions (2021) " About Us" https://gps-glass.com/en/gps-group/ [4] InfoBuild (2021) "Ventro dinamico" https://www.infobuild.it/approfondimenti/vetro-dinamico-trasparente-scuro/ [5] Guardian Glass (2021) https://www.guardianglass.com/eu/en/why-glass/build-with-glass/applications-of-glass/glass-for-facades/dynamic-glazing [6] Dynamic Glass (2021) http://dynamicglass.com/ [7] Construction 24 New Delhi (2021) "Dynamic Glass" https://www.construction24.in/company-dynamic-glass-in-new-delhi-16913 [8] Suntuitive Glass (2021) https://suntuitiveglass.com/ [9] Suntuitive Glass (2021) https://suntuitiveglass.com/ | DC13: [1] Toom (2021) https://toom.de/p/hochleistungsgas-at-3000/1302059 [2] Riou Glass (2021) https://www.riouglass.com/ [3] Tvitec Glass (2021) https://tvitecglass.com/ [4] Isoglass (2021) http://isoglass.it/ [5] Endole (2021) https://suite.endole.co.uk/insight/company/04237418-high-performance-glass-limited [6] HPGlazing (2021) https://www.hpglazing.com/ [7] India Mart (2021) "High Performance Energy Efficient Glass" https://www.indiamart.com/proddetail/high-performance-energy-efficient-glass-17485535697.html [8] Saint-Gobain Korea (2021) https://www.saint-gobain.co.kr/en/about_us [9] SSG (2021) https://ssg.com.sg/products/eco-products/low-emissivity-glass/ | DD13: [1] Wlw (2021) https://www.wlw.de/de/suche/isolierarbeiten-gegen-waerme-und-kaelte [2] Biofib (2021) https://www.biofib.com/gamme-biofib-isolation/?gclid=CjwKCAjw1JeJBhB9EiwAV612y7WH-KvtFZ6pYOEQIws7gOsuhe8oFuxD4rx1mUd4mQP8I-JcMocoXRoCwxMQAvD_BwE [3] Ecohome (2021) https://ecogreenhome.es/ [4] Isolkappa (2021) https://www.isolkappa.it/ [5] Natural Insulation (2021) https://naturalinsulations.co.uk/ [6] Eco Tec Insulation (2021) https://ecotecinsulation.com/ [7] Knauf Insulation (2021) https://www.knaufinsulation.com/ [8] Green Insulator Co. (2021) http://supervac.koreasme.com/ [9] Knauf Insulation (2021) http://www.knaufinsulation.com.sg/ | DE13: [1] Energie Experten (2021) https://www.energie-experten.org/heizung/waermepumpe/hersteller [2] IZI by EDF (2021) "Quelle marque de pompe à chaleur" https://www.izi-by-edf-renov.fr/blog/les-marques-de-pompes-a-chaleur [3] Bomba de Calor (2021) https://www.bombadecalor.org/ [4] Teon (2021) https://www.teon.it/ [5] Green Match (2021) "Heat Pumps" https://www.greenmatch.co.uk/heat-pump [6] Leonard Splaine Co. (2021) "10 Best Heat Pump Brans of 2021" https://www.leonardsplaine.com/best-heat-pump-brands/ [7] ET Solutions (2021) "EcoTech - Heat Pump Manufacturers" https://etsolutions.in/ [8] Energy-Xpert (2021) "heat pump Companies in South Korea" https://www.energy-xprt.com/companies/keyword-heat-pump-5899/location-south-korea [9] AOS Bath (2021) "Heat Pump Technology" https://www.aosbath.com/heat-pump-technology-singapore/ | DF13: [1] Heidelberg Cement Group (2021) https://www.heidelbergcement.com/de/heidelbergcement-unterzeichnet-lctpi [2] Hoffman Green (2021) https://www.ciments-hoffmann.fr/dossier-ciment-decarbone/ [3] Concreteonline (2021) https://www.concretonline.com/cementos/ecoplanet-gama-de-cementos-bajos-en-carbono-de-lafargeholcim [4] Holcim Italia (2021) https://www.holcim.it/il-brand-ecopact-sbarca-italia [5] Cemex UK (2021) https://www.cemex.co.uk/vertua-low-carbon-concrete [6] Cemex USA (2021) https://www.cemexusa.com/vertua [7] We Mean Bussiness Coalition (2020) "SPOTLIGHT ON INDIA: CEMENT COMPANIES ACCELERATE TOWARDS A NET-ZERO TRANSITION" https://www.wemeanbusinesscoalition.org/blog/spotlight-on-india-cement-companies-accelerate-towards-a-net-zero-transition/ [8] Go4WorldBussiness (2021) "Low-Carbon Cement, South Korea" https://www.go4worldbusiness.com/find?countryFilter%5B%5D=south+korea+(republic+of+korea)&searchText=low-carbon+cement&BuyersOrSuppliers=suppliers [9] Go4WorldBussiness (2021) "Low-Carbon Cement, Singapore" https://www.go4worldbusiness.com/find?countryFilter%5B%5D=singapore&searchText=low-carbon+cement&BuyersOrSuppliers=suppliers | DG13: [1] Synavision (2021) https://www.synavision.de/digitaler-zwilling-fuer-gebaeudetechnik-auf-der-bim-world-munich-2019/ [2] Building Smart France (2021) https://buildingsmartfrance-mediaconstruct.fr/2019/05/14/jumeaux-numerique-ou-en-sommes-nous/ [3] IES (2021) "Digital Twins" https://www.iesve.com/digital-twins [4] Altair (2021) https://www.altair.co.kr/ | DH13: [1] Schneider Electric (2021) "Discover our building automation & control products" https://www.se.com/uk/en/work/products/building-automation-and-control/ | DI13: [1] Zoom (2021) https://explore.zoom.us/en/products/zoom-phone/?creative=542580810682&keyword=voip&matchtype=p&network=g&device=c&zcid=3453&gclid=CjwKCAjwybyJBhBwEiwAvz4G7ynijv79V0IErKRVjoEmiwB-JfX8-dI-VV2QDHYwwr-gCvy4WAoDEhoCduIQAvD_BwE | DJ13: [1] GP Systems (2020) "Case Study: Subway Control Systems With REGUL PLCs" https://www.gp-systems.com/case-studies/2020-05-14-case-study-subway-control-systems-regul-plc/ [2] Casals, M., Gangolells, M., Forcada, N., Macarulla, M., Giretti, A., & Vaccarini, M. (2016). SEAM4US: An intelligent energy management system for underground stations. Applied Energy, 166, 150-164. doi:https://doi.org/10.1016/j.apenergy.2016.01.029 | DK13: [1] Amazon (2021) "Smart Meter" https://www.amazon.co.uk/smart-meter/s?k=smart+meter | DL13: [1] Testvot (2021) https://www.tesvolt.com/en/ [2] Saft Batteries (2021) https://www.saftbatteries.com/media-resources/press-releases/venteea-frances-largest-battery-based-storage-solution-boosts-wind/ [3] Anesco (2021) https://anesco.co.uk/utility-scale-battery-storage/#:~:text=Anesco%20is%20the%20UK%20market,to%20exceed%20380MW%20by%202020. [4] Alfen (2021) https://alfen.com/en/energystorage?gclid=Cj0KCQjw1dGJBhD4ARIsANb6Odm3kbkZsJtLgaquFWZFNurR5cfas2pzIkbgN0Uvk8Emeknj5YJhj00aAtZFEALw_wcB [7] Targay (2021) https://www.targray.com/ [8] Warsila (2021) https://storage.wartsila.com/technology/gems/?gclid=Cj0KCQjw1dGJBhD4ARIsANb6OdmDkn3NXogKauCUQ6HIx4QQYladSfrH8FeigAPYXJ6hu3bDTUBtgsMaAk9aEALw_wcB [9] Enovatek Energy (2021) https://enovatekenergy.com/energy-storage-system/ | DM13: [1] Engie (2021) "District Heating and Cooling https://www.engie.com/en/businesses/district-heating-cooling-systems | DN13: [1] Testvot (2021) https://www.tesvolt.com/en/ [2] Saft Batteries (2021) https://www.saftbatteries.com/media-resources/press-releases/venteea-frances-largest-battery-based-storage-solution-boosts-wind/ [3] Anesco (2021) https://anesco.co.uk/utility-scale-battery-storage/#:~:text=Anesco%20is%20the%20UK%20market,to%20exceed%20380MW%20by%202020. [4] Alfen (2021) https://alfen.com/en/energystorage?gclid=Cj0KCQjw1dGJBhD4ARIsANb6Odm3kbkZsJtLgaquFWZFNurR5cfas2pzIkbgN0Uvk8Emeknj5YJhj00aAtZFEALw_wcB [7] Targay (2021) https://www.targray.com/ [8] Warsila (2021) https://storage.wartsila.com/technology/gems/?gclid=Cj0KCQjw1dGJBhD4ARIsANb6OdmDkn3NXogKauCUQ6HIx4QQYladSfrH8FeigAPYXJ6hu3bDTUBtgsMaAk9aEALw_wcB [9] Enovatek Energy (2021) https://enovatekenergy.com/energy-storage-system/ | DO13: [1] Kraftblock (2021) https://kraftblock.com/en/ [2] Accenta (2021) https://www.accenta.ai/accueil [3] SusPIRE-h2020 (2021) https://cordis.europa.eu/project/id/680169 [4] Zuccato Energia (2021) https://zuccatoenergia.it/it/ [5] Sunamp (2021) https://sunamp.com/ [6] Melink Corps (2021) https://melinkcorp.com/ [7] Fitzer Incorporation (2021) http://fitzerincorporation.com/ | DP13: [1] Jinko Solar (2021) https://www.jinkosolar.com/en | DQ13: [1] Haas Recycling (2021) https://haas-recycling.de/en/ [2] Machine Recycling (2021) https://www.machinexrecycling.com/ [3] Amp Robotics (2021) https://www.amprobotics.com/ | DR13: [1] Tesla (2021) https://www.tesla.com/en_gb | DS13: [1] Vitra Global (2021) https://www.virta.global/?utm_term=ev%20charging&utm_campaign=EN+-+General&utm_source=adwords&utm_medium=ppc&hsa_acc=5823902344&hsa_net=adwords&hsa_grp=121375461095&hsa_ver=3&hsa_kw=ev%20charging&hsa_tgt=kwd-297147636131&hsa_mt=p&hsa_ad=515037456455&hsa_src=g&hsa_cam=2065069416&gclid=Cj0KCQjw-NaJBhDsARIsAAja6dO5bxsiScYIxMhoVawCCf2tyaDH71HyM3J5PqDtJTlb3pOWV-NqbrIaAiTgEALw_wcB [2] Enelx (2021) https://evcharging.enelx.com/uk [3] Delta Electronics (2021) https://deltaelectronicsindia.com/energy-infrastructure/ev-charging/ [4] Siemens (2021) "Electric Vehicle Charging Solutions" https://new.siemens.com/global/en/products/automation/products-for-specific-requirements/e-car-charging.html?gclid=Cj0KCQjw-NaJBhDsARIsAAja6dNwvGxttr9lh4o1feO8sNUEoNcVZg6InzL6EOVJjCVjM75YuUV_K5IaAg03EALw_wcB | DT13: [1] GreenFlux (2021) "Smart Charging" https://www.greenflux.com/ [2] EO Charging (2021) https://www.eocharging.com/ [3] Daeyoung Chaebi (2021) https://www.chaevi.co.kr/ [4] Total Energies Singapore (2021) https://totalenergies.sg/ | DU13: [1] Nuuve (2021) https://nuvve.com/ [2] Electrive (2021) "Nissan V2G project in Germany shows results" https://www.electrive.com/2019/01/29/v2g-project-in-germany-shows-results/ [3] Nuuve (2021) "NUVVE LAUNCHES VEHICLE-TO-GRID (V2G) OPERATIONS IN BARCELONA, SPAIN" https://nuvve.com/nuvve-launches-vehicle-to-grid-v2g-operations-in-barcelona-spain/ [4] Inside Evs (2021) "FCA Inaugurates V2G Pilot Project At Mirafiori" https://insideevs.com/news/444527/fca-inaugurated-v2g-pilot-project-mirafiori/ [5] OLA Mobility Institute (2021) "Vehicle to Grid (V2G) in India" https://olawebcdn.com/ola-institute/OMI_White_Paper_Vehicle_to_Grid_(V2G)_in_India.pdf [6] Korea Times (2018) "KEPCO unveils vehicle-grid integration system" https://www.koreatimes.co.kr/www/tech/2018/03/419_246417.htmlhttp://iobe.gr/docs/pub/PRE_Mr%20WON%20Taiseung_01062017_PUB_GR.pdf%20(slide%2042)https://www.iere.jp/events/workshop/2016-hongkong/Presen/K-3_KESRI_Seung%20Il_MOON_1122_secured.pdf [7] The Strait Times (2021) "SP Group to trial charging points that can draw energy from EVs back into power grid" https://www.straitstimes.com/singapore/transport/sp-group-to-trial-charging-points-that-can-draw-energy-from-evs-back-into-power | DV13: [1] Ma, J., Li, Y., Grundish, N. S., Goodenough, J. B., Chen, Y., Guo, L., ... & Wan, L. J. (2021). The 2021 battery technology roadmap. Journal of Physics D: Applied Physics, 54(18), 183001. https://iopscience.iop.org/article/10.1088/1361-6463/abd353 | DW13: [1] EU Mobility & Transport (2021) "Clean transport, Urban transport: Hydrogen and fuels cells for transport" https://ec.europa.eu/transport/themes/urban/vehicles/road/hydrogen_en | DX13: [1] Uber (2021) https://www.uber.com/gb/en/ | DY13: [1] Tesla (2021) "Autopilot" https://www.tesla.com/en_GB/autopilot
B14: =tblIndicators!A10 -> 9 | C14: =tblIndicators!B10 -> 0 | D14: =tblIndicators!E10 -> SCAL2_2 | E14: =tblIndicators!F10 -> SCAL | F14: =tblIndicators!G10 -> 2 | N14: =REPT(" ",F14)&tblIndicators!AM10 -> 2.2) Initial investment costs | O14: =tblIndicators!AR10 -> 0 | R14: 2 | S14: 2 | T14: 4 | U14: 2 | V14: 4 | W14: 4 | X14: 4 | Y14: 1 | Z14: 2 | AA14: 3 | AB14: 2 | AC14: 2 | AD14: 3 | AE14: 3 | AF14: 3 | AG14: 4 | AH14: 3 | AI14: 4 | AJ14: 2 | AK14: 3 | AL14: 3 | AM14: 2 | AN14: 2 | AO14: 2 | AP14: 3 | AQ14: 1 | AU14: 2 | AV14: 2 | AW14: 4 | AX14: 2 | AY14: 4 | AZ14: 4 | BA14: 4 | BB14: 1 | BC14: 2 | BD14: 3 | BE14: 2 | BF14: 2 | BG14: 3 | BH14: 3 | BI14: 3 | BJ14: 4 | BK14: 3 | BL14: 4 | BM14: 2 | BN14: 3 | BO14: 3 | BP14: 2 | BQ14: 2 | BR14: 2 | BS14: 3 | BT14: 1 | BW14: $623.65–954.38 billion $US for net first cost to implement solution [1] | BX14: $623.65–954.38 billion $US for net first cost to implement solution [1] | BY14: $69.09–103.3 Billion $US Net first cost to implement solution [1] | BZ14: $3.21–3.43 Trillion $US Net first cost to implement solution [1] | CA14: $751.13–831.28 billion $US for net first cost to implement solution [1] | CB14: $77.88–120.12 billion $US Net first cost to implement solution [1] | CC14: $-63.46 billion $US for net first cost to implement solution [1] | CD14: Technology varies from different buildings -- Grade A Commercial Office between $1.2m and $1.7m; high School, Secondary School, Training Center between $290k and $410k.; University Campus between $1.4m and $2m.; General Hospital between $3m and $4.2m.; Distribution Center between $300k and $400k; High-tech Factory or Laboratory $600k and $800k; and Shopping Mall $4m and $5.6m. [1] | CE14: Evidence of $225.23–312.32 billion $US for net first cost to implement solution [1] | CF14: $104.42–365.95 billion $US Net first cost to implement solution [1] | CG14: To implement the SEAMUS4US in Barcelona, it cost 4,153,597.00 euros [1] | CH14: A Smart Grid in the USA would require $165 billion in net investment (beyond investment for load growth and maintaining reliability) [1] | CI14: The cost of storage as of 2016 is US$200 per kilowatt [1] | CJ14: Evidence of $226.82–337.38 billion $US for net first cost to implement solution [1] | CK14: The cost of storage as of 2016 is US$200 per kilowatt [1] | CL14: Evidence of $80.6–86.45 billion $US for net first cost to implement solution [1] | CM14: Evidence of $255–479.59 billion $US for net first cost to implement solution [1] | CN14: Evidence of $10.26–11.83 billion $US for net first cost to implement recycling as a solution [1] but no evidence specifically on waste robotics. | CO14: Evidence of $4.67–6.02 trillion $US for net first cost to implement solution [1] | CP14: There is no study which examines the exact price of implementing electric vehicle charging ports throughout a city however, the UK government committed £1.3bn to support electric vehicle charging infrastructure in 2020 [1] | CQ14: There is no study that examines the exact cost of introducing smart charging as the cost depends on the number of units installed. The UK government committed 1.3 billion pounds to support electric vehicle charging infrastructure, of which smart charging is included (although the target of this funding is EV charging ports, less necessarily smart charging) [1] | CR14: Evidence of the costs of V2G predicted to lower over the next decade. Vehicle to Grid Britain predict a premium of ca £650-1150 for a 7kW V2G charger in 2030 [2] | CS14: Increased battery operation costs is dependent on the costs of the technology development and materials used to improve battery performance. The EU Commission authorized €3.2 billion for research on batteries [1] | CT14: Hydrogen transport vehicles cost roughly €139k per truck, which is less than the cost of electric transport vehicles but still an expensive cost to implement. [1] | CU14: Costs are unclear as this technology is dependent on the types of platforms and existing infrastructure. However, it can reduce costs for businesses [1] | CV14: Costs are unclear due to a lack of data but assuming current market conditions hold, we estimate that using a robotaxi will cost consumers nearly three times more – on a per mile basis – than owning an older vehicle [1] | CZ14: [1] Project Drawdown. (2021) "Cool & Green Roofs" https://drawdown.org/solutions/green-and-cool-roofs | DA14: [1] Project Drawdown. (2021) "Cool & Green Roofs" https://drawdown.org/solutions/green-and-cool-roofs | DB14: [1] Project Drawdown. (2021) "Dynamic Glass". https://drawdown.org/solutions/dynamic-glass | DC14: [1] Project Drawdown. (2021) "High-Performance Glass" https://drawdown.org/solutions/high-performance-glass | DD14: [1] Project Drawdown. (2021) "Insulation" https://drawdown.org/solutions/insulation | DE14: [1] Project Drawdown. (2021) "High-efficiency heat pumps" https://drawdown.org/solutions/high-efficiency-heat-pumps | DF14: [1] Project Drawdown. (2021) "Alternative Cement" https://drawdown.org/solutions/alternative-cement | DG14: [1] The Consulting Engineer. https://www.consultengsurvivor.com/cost-to-build-a-digital-twin | DH14: [1] Project Drawdown. (2021) "Building Automation Systems" https://drawdown.org/solutions/building-automation-systems | DI14: 1] Project Drawdown. (2021) "Telepresence" https://drawdown.org/solutions/telepresence | DJ14: [1] SEAMUS4US (2021) "Count Me In" https://countmein.eu/project/seam4us/ | DK14: [1] Electric Power Research Institute. (2011) "Estimating the Costs and Benefits of the Smart Grid" https://smartgrid.gov/files/documents/Estimating_Costs_Benefits_Smart_Grid_Preliminary_Estimate_In_201103.pdf | DL14: [1] Project Drawdown. (2021) https://drawdown.org/solutions/distributed-energy-storage | DM14: [1] Project Drawdown. (2021) "District heating" https://drawdown.org/solutions/district-heating | DN14: [1] Project Drawdown. (2021) https://drawdown.org/solutions/distributed-energy-storage | DO14: [1] Project Drawdown. (2021) "Geothermal Power" https://drawdown.org/solutions/geothermal-power | DP14: [1] Project Drawdown. (2021) "Distributed Solar Photovoltaics" https://drawdown.org/solutions/distributed-solar-photovoltaics | DQ14: [1] Project Drawdown. (2021) "Recycling" https://drawdown.org/solutions/recycling | DR14: [1] Project Drawdown. (2021) "Electric Cars" https://drawdown.org/solutions/electric-cars | DS14: [1] UK Government (2021) "Final report: Summary: Building a comprehensive and competitive electric vehicle charging sector that works for all drivers" https://www.gov.uk/government/publications/electric-vehicle-charging-market-study-final-report/final-report | DT14: [1] UK Government (2021) "Final report: Summary: Building a comprehensive and competitive electric vehicle charging sector that works for all drivers" https://www.gov.uk/government/publications/electric-vehicle-charging-market-study-final-report/final-report | DU14: [2] V2GB Vehicle to Grid Britain (2019) http://www.element-energy.co.uk/wordpress/wp-content/uploads/2019/06/V2GB-Public-Report.pdf | DV14: [2] EC Europa (2019) La Commission autorise une aide publique de 3,2 milliards € dans le secteur des batteries https://ec.europa.eu/france/news/20191209/alliance_europeenne_batteries_fr | DW14: [1] Transport & Environment (2020), Comparison of hydrogen and battery electric trucks: Methodology and underlying assumptions https://www.transportenvironment.org/sites/te/files/publications/2020_06_TE_comparison_hydrogen_battery_electric_trucks_methodology.pdf | DX14: [1] UNECE. Mobility as a Service. Transport Trends and Economics 2018–2019. https://unece.org/fileadmin/DAM/trans/main/wp5/publications/Mobility_as_a_Service_Transport_Trends_and_Economics_2018-2019.pdf | DY14: [1] Harvard Business Review. https://hbr.org/2019/01/the-cost-of-self-driving-cars-will-be-the-biggest-barrier-to-their-adoption
B15: =tblIndicators!A11 -> 10 | C15: =tblIndicators!B11 -> 0 | D15: =tblIndicators!E11 -> SCAL2_3 | E15: =tblIndicators!F11 -> SCAL | F15: =tblIndicators!G11 -> 2 | N15: =REPT(" ",F15)&tblIndicators!AM11 -> 2.3) Ease of integration | O15: =tblIndicators!AR11 -> 0 | R15: 4 | S15: 4 | T15: 4 | U15: 4 | V15: 4 | W15: 4 | X15: 4 | Y15: 1 | Z15: 1 | AA15: 3 | AB15: 1 | AC15: 4 | AD15: 1 | AE15: 1 | AF15: 3 | AG15: 3 | AH15: 2 | AI15: 4 | AJ15: 1 | AK15: 3 | AL15: 2 | AM15: 3 | AN15: 4 | AO15: 3 | AP15: 3 | AQ15: 1 | AU15: 4 | AV15: 4 | AW15: 4 | AX15: 4 | AY15: 4 | AZ15: 4 | BA15: 4 | BB15: 1 | BC15: 1 | BD15: 3 | BE15: 1 | BF15: 4 | BG15: 1 | BH15: 1 | BI15: 3 | BJ15: 3 | BK15: 2 | BL15: 4 | BM15: 1 | BN15: 3 | BO15: 2 | BP15: 3 | BQ15: 4 | BR15: 3 | BS15: 3 | BT15: 1 | BW15: There is no evidence of additional investment needed but it does require additional maintenance [1,2] | BX15: There is no evidence of additional investment needed [1,2] | BY15: There is no evidence of additional investment needed [1,2] | BZ15: There is no evidence of additional investment needed [1] | CA15: There is no evidence of additional investment needed [1] | CB15: There is no evidence of additional investment needed [1,2,3] | CC15: There is no evidence of additional investment needed [1,2,3] | CD15: Yes, there is significant additional investment needed depending on the building where this technology is being implemented. It requires internet-enabled monitors of all operating systems to ensure the smooth running and monitoring of the building, as well as the ability to either manually or automatically change setting through the digital twin platform [1] | CE15: Yes, there is significant additional investment needed to implement this technology in a building because it requires internet-connected advanced utility meters to measure utility use (such as electrical power, natural gas or water use) in real time. It also requires a software program which can collect and analyze data from these advanced utility meters and use this data [1] | CF15: There is little additional infrastructure required to integrate telepresence & mobile connectivity (via VOIP) into existing systems. It requires internet-connected devices, such as laptops and smartphones which are already prevalent technologies among the populations of our 10 cities. [1] VOIP also requires cabling, electrical power, wide area network bandwidth, and some form of data network security [2] | CG15: Yes, there is significant additional investment needed to implement this technology in a subway because it requires meters to measure system operation in real time. It also requires a software program which can collect and analyze data from these advanced utility meters and use this data [1, 2] | CH15: No, there is not significant additional investment needed to implement this technology because the smart meter itself is the needed technology. [1] | CI15: Yes, there is additional investment required to implement this technology in the form of different types of energy storage (battery, thermal, etc.) as well as methods of connecting these energy stores to the grid. [1,2] | CJ15: No, there is not significant additional investment needed to implement this technology because the DHC itself is the needed technology. [1] | CK15: Yes, there is some additional investment required to implement this technology in the form of connecting these energy stores to the grid. [1,2] | CL15: Yes, there is some additional investment required to implement this technology in the form of connecting these energy stores to the grid. [1,2] | CM15: Yes, there is some additional investment required to implement this technology in the form of connecting these energy stores to the grid or a method of energy storage [1,2] | CN15: There is no evidence of additional investment needed beyond the technology itself [1] | CO15: Yes, there is significant infrastructure required in the form of increased electricity consumption and the implementation of charging stations so EVs have access to power, enabling their operation. [1] | CP15: Yes, electric vehicle charging ports require connection to an electricity power source, thereby necessitating a greater power supply. But this implementation is more linked to the requirements of electric vehicles themselves [1] | CQ15: Yes, electric vehicle charging ports require connection to an electricity power source, thereby necessitating a greater power supply and smart meters to monitor the energy demands on a grid so charging can happen at optimum times. [1,2] | CR15: Yes, V2G requires smart grids (or at least smart meters to monitor energy demands on the grid) and battery electric vehicles [1] | CS15: No additional technologies needed. [1] | CT15: Yes, hydrogen fuel-cell vehicles require re-fueling stations, albeit less often and fewer than electric vehicles and current gasoline cars [1] | CU15: MaaS can require new infrastructure (such as car fleets, scooter fleets, etc.) or it can also rely on existing systems (such as public transport or existing taxi services). [1] | CV15: Autonomous vehicles need the same infrastructure as electric vehicles in terms of charging stations but they could also require changes to city infrastructure on roads to make their operation safer and more city-friendly [1] | CZ15: [1] Mentens, J., Raes, D., & Hermy, M. (2006). Green roofs as a tool for solving the rainwater runoff problem in the urbanized 21st century? Landscape and Urban Planning, 77(3), 217-226. doi:https://doi.org/10.1016/j.landurbplan.2005.02.010 [2] Berndtsson, J. C., Bengtsson, L., & Jinno, K. (2009). Runoff water quality from intensive and extensive vegetated roofs. Ecological Engineering, 35(3), 369-380. doi:https://doi.org/10.1016/j.ecoleng.2008.09.020 | DA15: [1] "Cool Roofs" https://www.energy.gov/energysaver/cool-roofs [2] H.L. Macintyre, C. Heaviside. (2018) "Potential benefits of cool roofs in reducing heat-related mortality during heatwaves in a European city",Environment International, 127, 430-441, https://doi.org/10.1016/j.envint.2019.02.065. | DB15: [1] Project Drawdown. (2021). Dynamic Glass. https://drawdown.org/solutions/dynamic-glass/technical-summary [2] View. "Energy benefits of View Dynamic Glass in workplaces GLASS GLASS ". https://view.com/sites/default/files/documents/workplace-white-paper.pdf | DC15: [1] Project Drawdown. High-performance glass. (2021). https://drawdown.org/solutions/high-performance-glass/technical-summary | DD15: [1] Project Drawdown. (2021). Insulation. https://www.drawdown.org/solutions/insulation/technical-summary | DE15: [1] Energy Saver. (2021). https://www.energy.gov/energysaver/heat-and-cool/heat-pump-systems/geothermal-heat-pumps [2] Project drawdown. (2021) Heat-pumps. https://www.drawdown.org/solutions/high-efficiency-heat-pumps/technical-summary [3] Forsén, Martin. (2015) "Heat Pumps: Technology and Impacts"", European Heat Pump Association , 9-13. https://ec.europa.eu/environment/ecolabel/about_ecolabel/reports/hp_tech_env_impact_aug2005.pdf | DF15: [1] Provis, J. L. (2014). Green concrete or red herring? – future of alkali-activated materials. Advances in Applied Ceramics, 113(8), 472-477. doi:10.1179/1743676114Y.0000000177 [2] UN Environment Programme (2016). Eco-efficient cements: Potential economically viable solutions for a low-CO2 cement-based materials industry. https://wedocs.unep.org/bitstream/handle/20.500.11822/25281/eco_efficient_cements.pdf [3] Project Drawdown. (2021) "Alternative Cement" https://drawdown.org/solutions/alternative-cement | DG15: [1] Lukesh, Todd et al. (2021) "Digital Twin: the Age of Aquarius in construction and real estate" EY: Building a better working world https://www.scl.org.au/sites/default/files/Digital%20twin%20-%20the%20Age%20of%20Aquarius%20in%20construction%20and%20real%20estate.pdf | DH15: [1] Project Drawdown. (2021) "Building Automation Systems" https://drawdown.org/solutions/building-automation-systems | DI15: [1] Dantu, R., Fahmy, S., Schulzrinne, H., & Cangussu, J. (2009). Issues and challenges in securing VoIP. computers & security, 28(8), 743-753. [2] Swartz Consulting (2019) Infrastructure Considerations for VOIP https://swartzconsulting.com/infrastructure-considerations-for-voip/ | DJ15: [1] Keith Van Ryswyk, Ryan Kulka, Leonora Marro, Dominik Yang, Elton Toma, Luckshya Mehta, Leigh McNeil-Taboika, and Greg J. Evans Environmental Science & Technology 2021 55 (16), 11133-11143. doi: 10.1021/acs.est.1c00703 [2] Wen, Yueming et al. “Environmental and Health Effects of Ventilation in Subway Stations: A Literature Review.” International journal of environmental research and public health vol. 17,3 1084. 8 Feb. 2020. doi:10.3390/ijerph17031084 | DK15: [1] Pratt, R. G., Balducci, P. J., Gerkensmeyer, C., Katipamula, S., Kintner-Meyer, M. C., Sanquist, T. F., ... & Secrest, T. J. (2010). The smart grid: an estimation of the energy and CO2 benefits (No. PNNL-19112 Rev 1). Pacific Northwest National Lab.(PNNL), Richland, WA (United States). https://www.pnnl.gov/main/publications/external/technical_reports/PNNL-19112.pdf | DL15: [1] Soloveichik, G. L. (2011). Battery technologies for large-scale stationary energy storage. Annual review of chemical and biomolecular engineering, 2, 503-527. [2] Zhou, L., Huang, Y., Guo, K., & Feng, Y. (2011). A survey of energy storage technology for micro grid. Power System Protection and Control, 39(7), 147-152. | DM15: [1] Project Drawdown. (2021) "District heating" https://drawdown.org/solutions/district-heating | DN15: [1] Soloveichik, G. L. (2011). Battery technologies for large-scale stationary energy storage. Annual review of chemical and biomolecular engineering, 2, 503-527. [2] Zhou, L., Huang, Y., Guo, K., & Feng, Y. (2011). A survey of energy storage technology for micro grid. Power System Protection and Control, 39(7), 147-152. | DO15: [1] Jouhara, H., Żabnieńska-Góra, A., Khordehgah, N., Ahmad, D., & Lipinski, T. (2020). Latent thermal energy storage technologies and applications: A review. International Journal of Thermofluids, 5, 100039. [2] Leśko, M., Bujalski, W., & Futyma, K. (2018). Operational optimization in district heating systems with the use of thermal energy storage. Energy, 165, 902-915. | DP15: [1] National Renewable Energy Laboratory. "Distributed Solar PV" for Electricity Resilency". https://www.nrel.gov/docs/fy15osti/62631.pdf [2] United States Envrionmental Protection Agency. https://www.epa.gov/energy/distributed-generation-electricity-and-its-environmental-impacts | DQ15: [1] Diya, S. Z., Proma, R. A., Islam, M. N., Anannya, T. T., Al Mamun, A., Arefeen, R., ... & Rabbi, M. F. (2018, December). Developing an intelligent waste sorting system with robotic arm: A step towards green environment. In 2018 International Conference on Innovation in Engineering and Technology (ICIET) (pp. 1-6). IEEE. | DR15: [1] Z S Gelmanova et al 2018 J. Phys.: Conf. Ser. 1015 052029 https://iopscience.iop.org/article/10.1088/1742-6596/1015/5/052029/pdf | DS15: [1] Z S Gelmanova et al 2018 J. Phys.: Conf. Ser. 1015 052029 https://iopscience.iop.org/article/10.1088/1742-6596/1015/5/052029/pdf | DT15: [1] Z S Gelmanova et al 2018 J. Phys.: Conf. Ser. 1015 052029 https://iopscience.iop.org/article/10.1088/1742-6596/1015/5/052029/pdf [2] National Renewable Energy Labortory https://afdc.energy.gov/files/u/publication/ev_emissions_impact.pdf | DU15: [1] Yilmaz, M. & Krein, Philip. (2012). Review of benefits and challenges of vehicle-to-grid technology. Energy Conversion Congress and Exposition (ECCE). 3082-3089. 10.1109/ECCE.2012.6342356. | DV15: [1] Mu, X., Pan, H., He, P., & Zhou, H. (2020). Li–CO2 and Na–CO2 batteries: toward greener and sustainable electrical energy storage. Advanced Materials, 32(27), 1903790. | DW15: [1 International Council on Clean Transportation (2017), Developing hydrogen fueling infrastructure for fuel cell vehicles: A status update https://theicct.org/sites/default/files/publications/Hydrogen-infrastructure-status-update_ICCT-briefing_04102017_vF.pdf | DX15: [1] UNECE. Mobility as a Service. Transport Trends and Economics 2018–2019. https://unece.org/fileadmin/DAM/trans/main/wp5/publications/Mobility_as_a_Service_Transport_Trends_and_Economics_2018-2019.pdf | DY15: [1] Bagloee, S.A., Tavana, M., Asadi, M. et al. Autonomous vehicles: challenges, opportunities, and future implications for transportation policies. J. Mod. Transport. 24, 284–303 (2016). https://doi.org/10.1007/s40534-016-0117-3
B16: =tblIndicators!A12 -> 11 | C16: =tblIndicators!B12 -> 0 | D16: =tblIndicators!E12 -> INVE | E16: =tblIndicators!F12 -> OVERALL | F16: =tblIndicators!G12 -> 1 | N16: =REPT(" ",F16)&tblIndicators!AM12 -> 3) INVESTMENT SCORE | O16: =tblIndicators!AR12 -> 0 | R16: 2 | S16: 0.6666666667 | T16: 2 | U16: 1.666666667 | V16: 1.333333333 | W16: 2 | X16: 1.333333333 | Y16: 2 | Z16: 1.666666667 | AA16: 3.333333333 | AB16: 0.3333333333 | AC16: 3.333333333 | AD16: 4 | AE16: 2.333333333 | AF16: 3 | AG16: 2.333333333 | AH16: 3.666666667 | AI16: 1 | AJ16: 4 | AK16: 3.333333333 | AL16: 2 | AM16: 1 | AN16: 2.666666667 | AO16: 2.666666667 | AP16: 2 | AQ16: 3.666666667 | AU16: 2 | AV16: 0.7 | AW16: 2 | AX16: 1.7 | AY16: 1.3 | AZ16: 2 | BA16: 1.3 | BB16: 2 | BC16: 1.7 | BD16: 3.3 | BE16: 0.3 | BF16: 3.3 | BG16: 4 | BH16: 2.3 | BI16: 3 | BJ16: 2.3 | BK16: 3.7 | BL16: 1 | BM16: 4 | BN16: 3.3 | BO16: 2 | BP16: 1 | BQ16: 2.7 | BR16: 2.7 | BS16: 2 | BT16: 3.7
B17: =tblIndicators!A13 -> 12 | C17: =tblIndicators!B13 -> 0 | D17: =tblIndicators!E13 -> INVE3_1 | E17: =tblIndicators!F13 -> INVE | F17: =tblIndicators!G13 -> 2 | N17: =REPT(" ",F17)&tblIndicators!AM13 -> 3.1) Current level of investment | O17: =tblIndicators!AR13 -> 0 | R17: 1 | S17: 0 | T17: 3 | U17: 1 | V17: 1 | W17: 1 | X17: 1 | Y17: 3 | Z17: 1 | AA17: 4 | AB17: 0 | AC17: 3 | AD17: 4 | AE17: 3 | AF17: 3 | AG17: 2 | AH17: 4 | AI17: 1 | AJ17: 4 | AK17: 3 | AL17: 1 | AM17: 1 | AN17: 3 | AO17: 3 | AP17: 3 | AQ17: 4 | AU17: 1 | AV17: 0 | AW17: 3 | AX17: 1 | AY17: 1 | AZ17: 1 | BA17: 1 | BB17: 3 | BC17: 1 | BD17: 4 | BE17: 0 | BF17: 3 | BG17: 4 | BH17: 3 | BI17: 3 | BJ17: 2 | BK17: 4 | BL17: 1 | BM17: 4 | BN17: 3 | BO17: 1 | BP17: 1 | BQ17: 3 | BR17: 3 | BS17: 3 | BT17: 4 | BW17: Evidence of current level of investment according to crunchbase: $388,274.37 + $2,734,370.00 + $118,044.13 + $60,000.00 + $50,000.00 = $3,350,688.50 | BX17: No evidence of current level of investment according to crunchbase | BY17: Evidence of current level of investment according to crunchbase: (US$ 2 115 451 247) + (US$ 229 015 039) = US$ 2,344,466,286.00 | BZ17: Evidence of current level of investment according to crunchbase: US$4,053,879.00 | CA17: Evidence of current level of investment according to crunchbase: US$170,584,383.00 | CB17: Evidence of current level of investment according to crunchbase: $266,507,086.00 | CC17: Evidence of current level of investment according to crunchbase: $47,869,618.00 | CD17: Evidence of current level of investment according to crunchbase: $1,229,766,664.00 | CE17: Evidence of current level of investment according to crunchbase: $376,889,684.00 | CF17: Evidence of current level of investment according to crunchbase: $35,563,629,333.00 | CG17: No evidence of current level of investment according to crunchbase | CH17: Evidence of current level of investment according to crunchbase: $2,999,079,291.00 | CI17: Evidence of current level of investment according to crunchbase: $41,423,442,752.00 | CJ17: Evidence of current level of investment according to crunchbase: $1,474,116,766.00 | CK17: Evidence of current level of investment according to crunchbase: $6,326,085,239.00 | CL17: Evidence of current level of investment according to crunchbase: $658,774,054.00 | CM17: Evidence of current level of investment according to crunchbase: $26,404,113,791.00 | CN17: Evidence of current level of investment according to crunchbase: $108,412,225.00 | CO17: Evidence of current level of investment according to crunchbase: $115,581,399,256.00 | CP17: Evidence of current level of investment according to crunchbase: $3,574,430,644.00 | CQ17: Evidence of current level of investment according to crunchbase: $208,171,238.00 | CR17: Evidence of current level of investment according to crunchbase: $35,500,000.00 | CS17: Evidence of current level of investment according to crunchbase: $3,283,512,362.00 | CT17: Evidence of current level of investment according to crunchbase: $2,466,745,192.00 | CU17: Evidence of current level of investment according to crunchbase: $2,346,860,441.00 | CV17: Evidence of current level of investment according to crunchbase: $86,796,712,275.00 | CZ17: Crunchbase | DA17: Crunchbase | DB17: Crunchbase | DC17: Crunchbase | DD17: Crunchbase | DE17: Crunchbase | DF17: Crunchbase | DG17: Crunchbase | DH17: Crunchbase | DI17: Crunchbase | DJ17: Crunchbase | DK17: Crunchbase | DL17: Crunchbase | DM17: Crunchbase | DN17: Crunchbase | DO17: Crunchbase | DP17: Crunchbase | DQ17: Crunchbase | DR17: Crunchbase | DS17: Crunchbase | DT17: Crunchbase | DU17: Crunchbase | DV17: Crunchbase | DW17: Crunchbase | DX17: Crunchbase | DY17: Crunchbase
B18: =tblIndicators!A14 -> 13 | C18: =tblIndicators!B14 -> 0 | D18: =tblIndicators!E14 -> INVE3_2 | E18: =tblIndicators!F14 -> INVE | F18: =tblIndicators!G14 -> 2 | N18: =REPT(" ",F18)&tblIndicators!AM14 -> 3.2) Availability of private funding | O18: =tblIndicators!AR14 -> 0 | R18: 1 | S18: 0 | T18: 1 | U18: 1 | V18: 1 | W18: 1 | X18: 1 | Y18: 2 | Z18: 2 | AA18: 4 | AB18: 0 | AC18: 3 | AD18: 4 | AE18: 1 | AF18: 2 | AG18: 2 | AH18: 3 | AI18: 1 | AJ18: 4 | AK18: 3 | AL18: 1 | AM18: 1 | AN18: 2 | AO18: 1 | AP18: 2 | AQ18: 4 | AU18: 1 | AV18: 0 | AW18: 1 | AX18: 1 | AY18: 1 | AZ18: 1 | BA18: 1 | BB18: 2 | BC18: 2 | BD18: 4 | BE18: 0 | BF18: 3 | BG18: 4 | BH18: 1 | BI18: 2 | BJ18: 2 | BK18: 3 | BL18: 1 | BM18: 4 | BN18: 3 | BO18: 1 | BP18: 1 | BQ18: 2 | BR18: 1 | BS18: 2 | BT18: 4 | BW18: Evidence of 4 Investors in total Evidence of 1 Lead Investor | BX18: No results | BY18: Evidence of 27 Investors in total Evidence of 11 Lead Investors | BZ18: Evidence of 2 Investors in total Evidence of 2 Lead Investors | CA18: Evidence of 38 Investors in total Evidence of 11 Lead Investors | CB18: Evidence of 61 Investors in total Evidence of 25 Lead Investors | CC18: Evidence of 8 Investors in total Evidence of 4 Lead Investors | CD18: Evidence of 328 Investors in total Evidence of 106 Lead Investors | CE18: Evidence of 198 Investors in total Evidence of 60 Lead Investors | CF18: Evidence of 2,531 Investors in total Evidence of 780 Lead Investors | CG18: No results | CH18: Evidence of 470 Investors in total Evidence of 77 Lead Investors | CI18: Evidence of 1,703 Investors in total Evidence of 624 Lead Investors | CJ18: Evidence of 24 Investors in total Evidence of 16 Lead Investors | CK18: Evidence of 204 Investors in total Evidence of 81 Lead Investors | CL18: Evidence of 107 Investors in total Evidence of 44 Lead Investors | CM18: Evidence of 748 Investors in total Evidence of 293 Lead Investors | CN18: Evidence of 42 Investors in total Evidence of 16 Lead Investors | CO18: Evidence of 3,400 Investors in total Evidence of 1,106 Lead Investors | CP18: Evidence of 455 Investors in total Evidence of 160 Lead Investors | CQ18: Evidence of 52 Investors in total Evidence of 19 Lead Investors | CR18: Evidence of 14 Investors in total Evidence of 4 Lead Investors | CS18: Evidence of 259 Investors in total Evidence of 75 Lead Investors | CT18: Evidence of 44 Investors in total Evidence of 20 Lead Investors | CU18: Evidence of 281 Investors in total Evidence of 89 Lead Investors | CV18: Evidence of 3,165 Investors in total Evidence of 976 Lead Investors | CZ18: Crunchbase | DA18: Crunchbase | DB18: Crunchbase | DC18: Crunchbase | DD18: Crunchbase | DE18: Crunchbase | DF18: Crunchbase | DG18: Crunchbase | DH18: Crunchbase | DI18: Crunchbase | DJ18: Crunchbase | DK18: Crunchbase | DL18: Crunchbase | DM18: Crunchbase | DN18: Crunchbase | DO18: Crunchbase | DP18: Crunchbase | DQ18: Crunchbase | DR18: Crunchbase | DS18: Crunchbase | DT18: Crunchbase | DU18: Crunchbase | DV18: Crunchbase | DW18: Crunchbase | DX18: Crunchbase | DY18: Crunchbase
